Workbook

Sheet OrderForm
F1: Discount | I1: ORDER FORM
A3: Date | C3: =NOW() -> 2024-07-29T14:33:52.050 | F3: Ref. Number
A5: Comments
A7: Please fill only yellou column | H7: TOTAL | I7: =SUM(I10:I309) -> 0
A9: No | B9: Code | C9: Q-ty | D9: On Stock | E9: Product | F9: State | G9: Basic Price | H9: Cient price | I9: Total | K9: Expected Delivery | L9: Pakages
A10: 1 | D10: =IF(C10>0,IF(C10>VLOOKUP(B10,Pricelist!A:I,6,0),VLOOKUP(B10,Pricelist!A:I,6,0),C10),"") ->  | E10: =IF(B10>0,VLOOKUP(B10,Pricelist!A:I,2,FALSE),"") ->  | F10: =IF(B10>0,VLOOKUP(B10,Pricelist!A:I,5,0),"") ->  | G10: =IF(B10,VLOOKUP(B10,Pricelist!A:I,3,0),"") ->  | H10: =IF(B10>0,G10*(1-$G$1),"") ->  | I10: =IF(J10>0,IF(B10>0,D10*H10,""),"") ->  | J10: =SUMIF(Pricelist!A:A,B10,Pricelist!A:A) -> 0 | K10: =IF(B10>0,(IF(C10>D10,VLOOKUP(B10,Pricelist!A:I,9,FALSE),"")),"") ->  | L10: =IF(B10>0,VLOOKUP(B10,Pricelist!A:I,7,FALSE),"") -> 
A11: =A10+1 -> 2 | D11: =IF(C11>0,IF(C11>VLOOKUP(B11,Pricelist!A:I,6,0),VLOOKUP(B11,Pricelist!A:I,6,0),C11),"") ->  | E11: =IF(B11>0,VLOOKUP(B11,Pricelist!A:I,2,FALSE),"") ->  | F11: =IF(B11>0,VLOOKUP(B11,Pricelist!A:I,5,0),"") ->  | G11: =IF(B11,VLOOKUP(B11,Pricelist!A:I,3,0),"") ->  | H11: =IF(B11>0,G11*(1-$G$1),"") ->  | I11: =IF(J11>0,IF(B11>0,D11*H11,""),"") ->  | J11: =SUMIF(Pricelist!A:A,B11,Pricelist!A:A) -> 0 | K11: =IF(B11>0,(IF(C11>D11,VLOOKUP(B11,Pricelist!A:I,9,FALSE),"")),"") ->  | L11: =IF(B11>0,VLOOKUP(B11,Pricelist!A:I,7,FALSE),"") -> 
A12: 3 | D12: =IF(C12>0,IF(C12>VLOOKUP(B12,Pricelist!A:I,6,0),VLOOKUP(B12,Pricelist!A:I,6,0),C12),"") ->  | E12: =IF(B12>0,VLOOKUP(B12,Pricelist!A:I,2,FALSE),"") ->  | F12: =IF(B12>0,VLOOKUP(B12,Pricelist!A:I,5,0),"") ->  | G12: =IF(B12,VLOOKUP(B12,Pricelist!A:I,3,0),"") ->  | J12: =SUMIF(Pricelist!A:A,B12,Pricelist!A:A) -> 0 | K12: =IF(B12>0,(IF(C12>D12,VLOOKUP(B12,Pricelist!A:I,9,FALSE),"")),"") ->  | L12: =IF(B12>0,VLOOKUP(B12,Pricelist!A:I,7,FALSE),"") -> 
A13: 4 | D13: =IF(C13>0,IF(C13>VLOOKUP(B13,Pricelist!A:I,6,0),VLOOKUP(B13,Pricelist!A:I,6,0),C13),"") ->  | E13: =IF(B13>0,VLOOKUP(B13,Pricelist!A:I,2,FALSE),"") ->  | F13: =IF(B13>0,VLOOKUP(B13,Pricelist!A:I,5,0),"") ->  | G13: =IF(B13,VLOOKUP(B13,Pricelist!A:I,3,0),"") ->  | J13: =SUMIF(Pricelist!A:A,B13,Pricelist!A:A) -> 0 | K13: =IF(B13>0,(IF(C13>D13,VLOOKUP(B13,Pricelist!A:I,9,FALSE),"")),"") ->  | L13: =IF(B13>0,VLOOKUP(B13,Pricelist!A:I,7,FALSE),"") -> 
A14: 5 | D14: =IF(C14>0,IF(C14>VLOOKUP(B14,Pricelist!A:I,6,0),VLOOKUP(B14,Pricelist!A:I,6,0),C14),"") ->  | E14: =IF(B14>0,VLOOKUP(B14,Pricelist!A:I,2,FALSE),"") ->  | F14: =IF(B14>0,VLOOKUP(B14,Pricelist!A:I,5,0),"") ->  | G14: =IF(B14,VLOOKUP(B14,Pricelist!A:I,3,0),"") ->  | J14: =SUMIF(Pricelist!A:A,B14,Pricelist!A:A) -> 0 | K14: =IF(B14>0,(IF(C14>D14,VLOOKUP(B14,Pricelist!A:I,9,FALSE),"")),"") ->  | L14: =IF(B14>0,VLOOKUP(B14,Pricelist!A:I,7,FALSE),"") -> 
A15: 6 | D15: =IF(C15>0,IF(C15>VLOOKUP(B15,Pricelist!A:I,6,0),VLOOKUP(B15,Pricelist!A:I,6,0),C15),"") ->  | E15: =IF(B15>0,VLOOKUP(B15,Pricelist!A:I,2,FALSE),"") ->  | F15: =IF(B15>0,VLOOKUP(B15,Pricelist!A:I,5,0),"") ->  | G15: =IF(B15,VLOOKUP(B15,Pricelist!A:I,3,0),"") ->  | J15: =SUMIF(Pricelist!A:A,B15,Pricelist!A:A) -> 0 | K15: =IF(B15>0,(IF(C15>D15,VLOOKUP(B15,Pricelist!A:I,9,FALSE),"")),"") ->  | L15: =IF(B15>0,VLOOKUP(B15,Pricelist!A:I,7,FALSE),"") -> 
A16: 7 | D16: =IF(C16>0,IF(C16>VLOOKUP(B16,Pricelist!A:I,6,0),VLOOKUP(B16,Pricelist!A:I,6,0),C16),"") ->  | E16: =IF(B16>0,VLOOKUP(B16,Pricelist!A:I,2,FALSE),"") ->  | F16: =IF(B16>0,VLOOKUP(B16,Pricelist!A:I,5,0),"") ->  | G16: =IF(B16,VLOOKUP(B16,Pricelist!A:I,3,0),"") ->  | J16: =SUMIF(Pricelist!A:A,B16,Pricelist!A:A) -> 0 | K16: =IF(B16>0,(IF(C16>D16,VLOOKUP(B16,Pricelist!A:I,9,FALSE),"")),"") ->  | L16: =IF(B16>0,VLOOKUP(B16,Pricelist!A:I,7,FALSE),"") -> 
A17: 8 | D17: =IF(C17>0,IF(C17>VLOOKUP(B17,Pricelist!A:I,6,0),VLOOKUP(B17,Pricelist!A:I,6,0),C17),"") ->  | E17: =IF(B17>0,VLOOKUP(B17,Pricelist!A:I,2,FALSE),"") ->  | F17: =IF(B17>0,VLOOKUP(B17,Pricelist!A:I,5,0),"") ->  | G17: =IF(B17,VLOOKUP(B17,Pricelist!A:I,3,0),"") ->  | J17: =SUMIF(Pricelist!A:A,B17,Pricelist!A:A) -> 0 | K17: =IF(B17>0,(IF(C17>D17,VLOOKUP(B17,Pricelist!A:I,9,FALSE),"")),"") ->  | L17: =IF(B17>0,VLOOKUP(B17,Pricelist!A:I,7,FALSE),"") -> 
A18: 9 | D18: =IF(C18>0,IF(C18>VLOOKUP(B18,Pricelist!A:I,6,0),VLOOKUP(B18,Pricelist!A:I,6,0),C18),"") ->  | E18: =IF(B18>0,VLOOKUP(B18,Pricelist!A:I,2,FALSE),"") ->  | F18: =IF(B18>0,VLOOKUP(B18,Pricelist!A:I,5,0),"") ->  | G18: =IF(B18,VLOOKUP(B18,Pricelist!A:I,3,0),"") ->  | J18: =SUMIF(Pricelist!A:A,B18,Pricelist!A:A) -> 0 | K18: =IF(B18>0,(IF(C18>D18,VLOOKUP(B18,Pricelist!A:I,9,FALSE),"")),"") ->  | L18: =IF(B18>0,VLOOKUP(B18,Pricelist!A:I,7,FALSE),"") -> 
A19: 10 | D19: =IF(C19>0,IF(C19>VLOOKUP(B19,Pricelist!A:I,6,0),VLOOKUP(B19,Pricelist!A:I,6,0),C19),"") ->  | E19: =IF(B19>0,VLOOKUP(B19,Pricelist!A:I,2,FALSE),"") ->  | F19: =IF(B19>0,VLOOKUP(B19,Pricelist!A:I,5,0),"") ->  | G19: =IF(B19,VLOOKUP(B19,Pricelist!A:I,3,0),"") ->  | J19: =SUMIF(Pricelist!A:A,B19,Pricelist!A:A) -> 0 | K19: =IF(B19>0,(IF(C19>D19,VLOOKUP(B19,Pricelist!A:I,9,FALSE),"")),"") ->  | L19: =IF(B19>0,VLOOKUP(B19,Pricelist!A:I,7,FALSE),"") -> 
A20: 11 | D20: =IF(C20>0,IF(C20>VLOOKUP(B20,Pricelist!A:I,6,0),VLOOKUP(B20,Pricelist!A:I,6,0),C20),"") ->  | E20: =IF(B20>0,VLOOKUP(B20,Pricelist!A:I,2,FALSE),"") ->  | F20: =IF(B20>0,VLOOKUP(B20,Pricelist!A:I,5,0),"") ->  | G20: =IF(B20,VLOOKUP(B20,Pricelist!A:I,3,0),"") ->  | J20: =SUMIF(Pricelist!A:A,B20,Pricelist!A:A) -> 0 | K20: =IF(B20>0,(IF(C20>D20,VLOOKUP(B20,Pricelist!A:I,9,FALSE),"")),"") ->  | L20: =IF(B20>0,VLOOKUP(B20,Pricelist!A:I,7,FALSE),"") -> 
A21: 12 | D21: =IF(C21>0,IF(C21>VLOOKUP(B21,Pricelist!A:I,6,0),VLOOKUP(B21,Pricelist!A:I,6,0),C21),"") ->  | E21: =IF(B21>0,VLOOKUP(B21,Pricelist!A:I,2,FALSE),"") ->  | F21: =IF(B21>0,VLOOKUP(B21,Pricelist!A:I,5,0),"") ->  | G21: =IF(B21,VLOOKUP(B21,Pricelist!A:I,3,0),"") ->  | J21: =SUMIF(Pricelist!A:A,B21,Pricelist!A:A) -> 0 | K21: =IF(B21>0,(IF(C21>D21,VLOOKUP(B21,Pricelist!A:I,9,FALSE),"")),"") ->  | L21: =IF(B21>0,VLOOKUP(B21,Pricelist!A:I,7,FALSE),"") -> 
A22: 13 | D22: =IF(C22>0,IF(C22>VLOOKUP(B22,Pricelist!A:I,6,0),VLOOKUP(B22,Pricelist!A:I,6,0),C22),"") ->  | E22: =IF(B22>0,VLOOKUP(B22,Pricelist!A:I,2,FALSE),"") ->  | F22: =IF(B22>0,VLOOKUP(B22,Pricelist!A:I,5,0),"") ->  | G22: =IF(B22,VLOOKUP(B22,Pricelist!A:I,3,0),"") ->  | J22: =SUMIF(Pricelist!A:A,B22,Pricelist!A:A) -> 0 | K22: =IF(B22>0,(IF(C22>D22,VLOOKUP(B22,Pricelist!A:I,9,FALSE),"")),"") ->  | L22: =IF(B22>0,VLOOKUP(B22,Pricelist!A:I,7,FALSE),"") -> 
A23: 14 | D23: =IF(C23>0,IF(C23>VLOOKUP(B23,Pricelist!A:I,6,0),VLOOKUP(B23,Pricelist!A:I,6,0),C23),"") ->  | E23: =IF(B23>0,VLOOKUP(B23,Pricelist!A:I,2,FALSE),"") ->  | F23: =IF(B23>0,VLOOKUP(B23,Pricelist!A:I,5,0),"") ->  | G23: =IF(B23,VLOOKUP(B23,Pricelist!A:I,3,0),"") ->  | H23: =IF(B23>0,G23*(1-$G$1),"") ->  | J23: =SUMIF(Pricelist!A:A,B23,Pricelist!A:A) -> 0 | K23: =IF(B23>0,(IF(C23>D23,VLOOKUP(B23,Pricelist!A:I,9,FALSE),"")),"") ->  | L23: =IF(B23>0,VLOOKUP(B23,Pricelist!A:I,7,FALSE),"") -> 
A24: 15 | D24: =IF(C24>0,IF(C24>VLOOKUP(B24,Pricelist!A:I,6,0),VLOOKUP(B24,Pricelist!A:I,6,0),C24),"") ->  | E24: =IF(B24>0,VLOOKUP(B24,Pricelist!A:I,2,FALSE),"") ->  | F24: =IF(B24>0,VLOOKUP(B24,Pricelist!A:I,5,0),"") ->  | G24: =IF(B24,VLOOKUP(B24,Pricelist!A:I,3,0),"") ->  | H24: =IF(B24>0,G24*(1-$G$1),"") ->  | J24: =SUMIF(Pricelist!A:A,B24,Pricelist!A:A) -> 0 | K24: =IF(B24>0,(IF(C24>D24,VLOOKUP(B24,Pricelist!A:I,9,FALSE),"")),"") ->  | L24: =IF(B24>0,VLOOKUP(B24,Pricelist!A:I,7,FALSE),"") -> 
A25: 16 | D25: =IF(C25>0,IF(C25>VLOOKUP(B25,Pricelist!A:I,6,0),VLOOKUP(B25,Pricelist!A:I,6,0),C25),"") ->  | E25: =IF(B25>0,VLOOKUP(B25,Pricelist!A:I,2,FALSE),"") ->  | F25: =IF(B25>0,VLOOKUP(B25,Pricelist!A:I,5,0),"") ->  | G25: =IF(B25,VLOOKUP(B25,Pricelist!A:I,3,0),"") ->  | J25: =SUMIF(Pricelist!A:A,B25,Pricelist!A:A) -> 0 | K25: =IF(B25>0,(IF(C25>D25,VLOOKUP(B25,Pricelist!A:I,9,FALSE),"")),"") ->  | L25: =IF(B25>0,VLOOKUP(B25,Pricelist!A:I,7,FALSE),"") -> 
A26: 17 | D26: =IF(C26>0,IF(C26>VLOOKUP(B26,Pricelist!A:I,6,0),VLOOKUP(B26,Pricelist!A:I,6,0),C26),"") ->  | E26: =IF(B26>0,VLOOKUP(B26,Pricelist!A:I,2,FALSE),"") ->  | F26: =IF(B26>0,VLOOKUP(B26,Pricelist!A:I,5,0),"") ->  | G26: =IF(B26,VLOOKUP(B26,Pricelist!A:I,3,0),"") ->  | J26: =SUMIF(Pricelist!A:A,B26,Pricelist!A:A) -> 0 | K26: =IF(B26>0,(IF(C26>D26,VLOOKUP(B26,Pricelist!A:I,9,FALSE),"")),"") ->  | L26: =IF(B26>0,VLOOKUP(B26,Pricelist!A:I,7,FALSE),"") -> 
A27: 18 | D27: =IF(C27>0,IF(C27>VLOOKUP(B27,Pricelist!A:I,6,0),VLOOKUP(B27,Pricelist!A:I,6,0),C27),"") ->  | E27: =IF(B27>0,VLOOKUP(B27,Pricelist!A:I,2,FALSE),"") ->  | F27: =IF(B27>0,VLOOKUP(B27,Pricelist!A:I,5,0),"") ->  | G27: =IF(B27,VLOOKUP(B27,Pricelist!A:I,3,0),"") ->  | J27: =SUMIF(Pricelist!A:A,B27,Pricelist!A:A) -> 0 | K27: =IF(B27>0,(IF(C27>D27,VLOOKUP(B27,Pricelist!A:I,9,FALSE),"")),"") ->  | L27: =IF(B27>0,VLOOKUP(B27,Pricelist!A:I,7,FALSE),"") -> 
A28: 19 | D28: =IF(C28>0,IF(C28>VLOOKUP(B28,Pricelist!A:I,6,0),VLOOKUP(B28,Pricelist!A:I,6,0),C28),"") ->  | E28: =IF(B28>0,VLOOKUP(B28,Pricelist!A:I,2,FALSE),"") ->  | F28: =IF(B28>0,VLOOKUP(B28,Pricelist!A:I,5,0),"") ->  | G28: =IF(B28,VLOOKUP(B28,Pricelist!A:I,3,0),"") ->  | J28: =SUMIF(Pricelist!A:A,B28,Pricelist!A:A) -> 0 | K28: =IF(B28>0,(IF(C28>D28,VLOOKUP(B28,Pricelist!A:I,9,FALSE),"")),"") ->  | L28: =IF(B28>0,VLOOKUP(B28,Pricelist!A:I,7,FALSE),"") -> 
A29: 20 | D29: =IF(C29>0,IF(C29>VLOOKUP(B29,Pricelist!A:I,6,0),VLOOKUP(B29,Pricelist!A:I,6,0),C29),"") ->  | E29: =IF(B29>0,VLOOKUP(B29,Pricelist!A:I,2,FALSE),"") ->  | F29: =IF(B29>0,VLOOKUP(B29,Pricelist!A:I,5,0),"") ->  | G29: =IF(B29,VLOOKUP(B29,Pricelist!A:I,3,0),"") ->  | J29: =SUMIF(Pricelist!A:A,B29,Pricelist!A:A) -> 0 | K29: =IF(B29>0,(IF(C29>D29,VLOOKUP(B29,Pricelist!A:I,9,FALSE),"")),"") ->  | L29: =IF(B29>0,VLOOKUP(B29,Pricelist!A:I,7,FALSE),"") -> 
A30: 21 | D30: =IF(C30>0,IF(C30>VLOOKUP(B30,Pricelist!A:I,6,0),VLOOKUP(B30,Pricelist!A:I,6,0),C30),"") ->  | E30: =IF(B30>0,VLOOKUP(B30,Pricelist!A:I,2,FALSE),"") ->  | F30: =IF(B30>0,VLOOKUP(B30,Pricelist!A:I,5,0),"") ->  | G30: =IF(B30,VLOOKUP(B30,Pricelist!A:I,3,0),"") ->  | J30: =SUMIF(Pricelist!A:A,B30,Pricelist!A:A) -> 0 | K30: =IF(B30>0,(IF(C30>D30,VLOOKUP(B30,Pricelist!A:I,9,FALSE),"")),"") ->  | L30: =IF(B30>0,VLOOKUP(B30,Pricelist!A:I,7,FALSE),"") -> 
A31: 22 | D31: =IF(C31>0,IF(C31>VLOOKUP(B31,Pricelist!A:I,6,0),VLOOKUP(B31,Pricelist!A:I,6,0),C31),"") ->  | E31: =IF(B31>0,VLOOKUP(B31,Pricelist!A:I,2,FALSE),"") ->  | F31: =IF(B31>0,VLOOKUP(B31,Pricelist!A:I,5,0),"") ->  | G31: =IF(B31,VLOOKUP(B31,Pricelist!A:I,3,0),"") ->  | J31: =SUMIF(Pricelist!A:A,B31,Pricelist!A:A) -> 0 | K31: =IF(B31>0,(IF(C31>D31,VLOOKUP(B31,Pricelist!A:I,9,FALSE),"")),"") ->  | L31: =IF(B31>0,VLOOKUP(B31,Pricelist!A:I,7,FALSE),"") -> 
A32: 23 | D32: =IF(C32>0,IF(C32>VLOOKUP(B32,Pricelist!A:I,6,0),VLOOKUP(B32,Pricelist!A:I,6,0),C32),"") ->  | E32: =IF(B32>0,VLOOKUP(B32,Pricelist!A:I,2,FALSE),"") ->  | F32: =IF(B32>0,VLOOKUP(B32,Pricelist!A:I,5,0),"") ->  | G32: =IF(B32,VLOOKUP(B32,Pricelist!A:I,3,0),"") ->  | J32: =SUMIF(Pricelist!A:A,B32,Pricelist!A:A) -> 0 | K32: =IF(B32>0,(IF(C32>D32,VLOOKUP(B32,Pricelist!A:I,9,FALSE),"")),"") ->  | L32: =IF(B32>0,VLOOKUP(B32,Pricelist!A:I,7,FALSE),"") -> 
A33: 24 | D33: =IF(C33>0,IF(C33>VLOOKUP(B33,Pricelist!A:I,6,0),VLOOKUP(B33,Pricelist!A:I,6,0),C33),"") ->  | E33: =IF(B33>0,VLOOKUP(B33,Pricelist!A:I,2,FALSE),"") ->  | F33: =IF(B33>0,VLOOKUP(B33,Pricelist!A:I,5,0),"") ->  | G33: =IF(B33,VLOOKUP(B33,Pricelist!A:I,3,0),"") ->  | J33: =SUMIF(Pricelist!A:A,B33,Pricelist!A:A) -> 0 | K33: =IF(B33>0,(IF(C33>D33,VLOOKUP(B33,Pricelist!A:I,9,FALSE),"")),"") ->  | L33: =IF(B33>0,VLOOKUP(B33,Pricelist!A:I,7,FALSE),"") -> 
A34: 25 | D34: =IF(C34>0,IF(C34>VLOOKUP(B34,Pricelist!A:I,6,0),VLOOKUP(B34,Pricelist!A:I,6,0),C34),"") ->  | E34: =IF(B34>0,VLOOKUP(B34,Pricelist!A:I,2,FALSE),"") ->  | F34: =IF(B34>0,VLOOKUP(B34,Pricelist!A:I,5,0),"") ->  | G34: =IF(B34,VLOOKUP(B34,Pricelist!A:I,3,0),"") ->  | J34: =SUMIF(Pricelist!A:A,B34,Pricelist!A:A) -> 0 | K34: =IF(B34>0,(IF(C34>D34,VLOOKUP(B34,Pricelist!A:I,9,FALSE),"")),"") ->  | L34: =IF(B34>0,VLOOKUP(B34,Pricelist!A:I,7,FALSE),"") -> 
A35: 26 | D35: =IF(C35>0,IF(C35>VLOOKUP(B35,Pricelist!A:I,6,0),VLOOKUP(B35,Pricelist!A:I,6,0),C35),"") ->  | E35: =IF(B35>0,VLOOKUP(B35,Pricelist!A:I,2,FALSE),"") ->  | F35: =IF(B35>0,VLOOKUP(B35,Pricelist!A:I,5,0),"") ->  | G35: =IF(B35,VLOOKUP(B35,Pricelist!A:I,3,0),"") ->  | J35: =SUMIF(Pricelist!A:A,B35,Pricelist!A:A) -> 0 | K35: =IF(B35>0,(IF(C35>D35,VLOOKUP(B35,Pricelist!A:I,9,FALSE),"")),"") ->  | L35: =IF(B35>0,VLOOKUP(B35,Pricelist!A:I,7,FALSE),"") -> 
A36: 27 | D36: =IF(C36>0,IF(C36>VLOOKUP(B36,Pricelist!A:I,6,0),VLOOKUP(B36,Pricelist!A:I,6,0),C36),"") ->  | E36: =IF(B36>0,VLOOKUP(B36,Pricelist!A:I,2,FALSE),"") ->  | F36: =IF(B36>0,VLOOKUP(B36,Pricelist!A:I,5,0),"") ->  | G36: =IF(B36,VLOOKUP(B36,Pricelist!A:I,3,0),"") ->  | J36: =SUMIF(Pricelist!A:A,B36,Pricelist!A:A) -> 0 | K36: =IF(B36>0,(IF(C36>D36,VLOOKUP(B36,Pricelist!A:I,9,FALSE),"")),"") ->  | L36: =IF(B36>0,VLOOKUP(B36,Pricelist!A:I,7,FALSE),"") -> 
A37: 28 | D37: =IF(C37>0,IF(C37>VLOOKUP(B37,Pricelist!A:I,6,0),VLOOKUP(B37,Pricelist!A:I,6,0),C37),"") ->  | E37: =IF(B37>0,VLOOKUP(B37,Pricelist!A:I,2,FALSE),"") ->  | F37: =IF(B37>0,VLOOKUP(B37,Pricelist!A:I,5,0),"") ->  | G37: =IF(B37,VLOOKUP(B37,Pricelist!A:I,3,0),"") ->  | J37: =SUMIF(Pricelist!A:A,B37,Pricelist!A:A) -> 0 | K37: =IF(B37>0,(IF(C37>D37,VLOOKUP(B37,Pricelist!A:I,9,FALSE),"")),"") ->  | L37: =IF(B37>0,VLOOKUP(B37,Pricelist!A:I,7,FALSE),"") -> 
A38: 29 | D38: =IF(C38>0,IF(C38>VLOOKUP(B38,Pricelist!A:I,6,0),VLOOKUP(B38,Pricelist!A:I,6,0),C38),"") ->  | E38: =IF(B38>0,VLOOKUP(B38,Pricelist!A:I,2,FALSE),"") ->  | F38: =IF(B38>0,VLOOKUP(B38,Pricelist!A:I,5,0),"") ->  | G38: =IF(B38,VLOOKUP(B38,Pricelist!A:I,3,0),"") ->  | J38: =SUMIF(Pricelist!A:A,B38,Pricelist!A:A) -> 0 | K38: =IF(B38>0,(IF(C38>D38,VLOOKUP(B38,Pricelist!A:I,9,FALSE),"")),"") ->  | L38: =IF(B38>0,VLOOKUP(B38,Pricelist!A:I,7,FALSE),"") -> 
A39: 30 | D39: =IF(C39>0,IF(C39>VLOOKUP(B39,Pricelist!A:I,6,0),VLOOKUP(B39,Pricelist!A:I,6,0),C39),"") ->  | E39: =IF(B39>0,VLOOKUP(B39,Pricelist!A:I,2,FALSE),"") ->  | F39: =IF(B39>0,VLOOKUP(B39,Pricelist!A:I,5,0),"") ->  | G39: =IF(B39,VLOOKUP(B39,Pricelist!A:I,3,0),"") ->  | J39: =SUMIF(Pricelist!A:A,B39,Pricelist!A:A) -> 0 | K39: =IF(B39>0,(IF(C39>D39,VLOOKUP(B39,Pricelist!A:I,9,FALSE),"")),"") ->  | L39: =IF(B39>0,VLOOKUP(B39,Pricelist!A:I,7,FALSE),"") -> 
A40: 31 | D40: =IF(C40>0,IF(C40>VLOOKUP(B40,Pricelist!A:I,6,0),VLOOKUP(B40,Pricelist!A:I,6,0),C40),"") ->  | E40: =IF(B40>0,VLOOKUP(B40,Pricelist!A:I,2,FALSE),"") ->  | F40: =IF(B40>0,VLOOKUP(B40,Pricelist!A:I,5,0),"") ->  | G40: =IF(B40,VLOOKUP(B40,Pricelist!A:I,3,0),"") ->  | J40: =SUMIF(Pricelist!A:A,B40,Pricelist!A:A) -> 0 | K40: =IF(B40>0,(IF(C40>D40,VLOOKUP(B40,Pricelist!A:I,9,FALSE),"")),"") ->  | L40: =IF(B40>0,VLOOKUP(B40,Pricelist!A:I,7,FALSE),"") -> 
A41: 32 | D41: =IF(C41>0,IF(C41>VLOOKUP(B41,Pricelist!A:I,6,0),VLOOKUP(B41,Pricelist!A:I,6,0),C41),"") ->  | E41: =IF(B41>0,VLOOKUP(B41,Pricelist!A:I,2,FALSE),"") ->  | F41: =IF(B41>0,VLOOKUP(B41,Pricelist!A:I,5,0),"") ->  | G41: =IF(B41,VLOOKUP(B41,Pricelist!A:I,3,0),"") ->  | J41: =SUMIF(Pricelist!A:A,B41,Pricelist!A:A) -> 0 | K41: =IF(B41>0,(IF(C41>D41,VLOOKUP(B41,Pricelist!A:I,9,FALSE),"")),"") ->  | L41: =IF(B41>0,VLOOKUP(B41,Pricelist!A:I,7,FALSE),"") -> 
A42: 33 | D42: =IF(C42>0,IF(C42>VLOOKUP(B42,Pricelist!A:I,6,0),VLOOKUP(B42,Pricelist!A:I,6,0),C42),"") ->  | E42: =IF(B42>0,VLOOKUP(B42,Pricelist!A:I,2,FALSE),"") ->  | F42: =IF(B42>0,VLOOKUP(B42,Pricelist!A:I,5,0),"") ->  | G42: =IF(B42,VLOOKUP(B42,Pricelist!A:I,3,0),"") ->  | J42: =SUMIF(Pricelist!A:A,B42,Pricelist!A:A) -> 0 | K42: =IF(B42>0,(IF(C42>D42,VLOOKUP(B42,Pricelist!A:I,9,FALSE),"")),"") ->  | L42: =IF(B42>0,VLOOKUP(B42,Pricelist!A:I,7,FALSE),"") -> 
A43: 34 | D43: =IF(C43>0,IF(C43>VLOOKUP(B43,Pricelist!A:I,6,0),VLOOKUP(B43,Pricelist!A:I,6,0),C43),"") ->  | E43: =IF(B43>0,VLOOKUP(B43,Pricelist!A:I,2,FALSE),"") ->  | F43: =IF(B43>0,VLOOKUP(B43,Pricelist!A:I,5,0),"") ->  | G43: =IF(B43,VLOOKUP(B43,Pricelist!A:I,3,0),"") ->  | J43: =SUMIF(Pricelist!A:A,B43,Pricelist!A:A) -> 0 | K43: =IF(B43>0,(IF(C43>D43,VLOOKUP(B43,Pricelist!A:I,9,FALSE),"")),"") ->  | L43: =IF(B43>0,VLOOKUP(B43,Pricelist!A:I,7,FALSE),"") -> 
A44: 35 | D44: =IF(C44>0,IF(C44>VLOOKUP(B44,Pricelist!A:I,6,0),VLOOKUP(B44,Pricelist!A:I,6,0),C44),"") ->  | E44: =IF(B44>0,VLOOKUP(B44,Pricelist!A:I,2,FALSE),"") ->  | F44: =IF(B44>0,VLOOKUP(B44,Pricelist!A:I,5,0),"") ->  | G44: =IF(B44,VLOOKUP(B44,Pricelist!A:I,3,0),"") ->  | J44: =SUMIF(Pricelist!A:A,B44,Pricelist!A:A) -> 0 | K44: =IF(B44>0,(IF(C44>D44,VLOOKUP(B44,Pricelist!A:I,9,FALSE),"")),"") ->  | L44: =IF(B44>0,VLOOKUP(B44,Pricelist!A:I,7,FALSE),"") -> 
A45: 36 | D45: =IF(C45>0,IF(C45>VLOOKUP(B45,Pricelist!A:I,6,0),VLOOKUP(B45,Pricelist!A:I,6,0),C45),"") ->  | E45: =IF(B45>0,VLOOKUP(B45,Pricelist!A:I,2,FALSE),"") ->  | F45: =IF(B45>0,VLOOKUP(B45,Pricelist!A:I,5,0),"") ->  | G45: =IF(B45,VLOOKUP(B45,Pricelist!A:I,3,0),"") ->  | J45: =SUMIF(Pricelist!A:A,B45,Pricelist!A:A) -> 0 | K45: =IF(B45>0,(IF(C45>D45,VLOOKUP(B45,Pricelist!A:I,9,FALSE),"")),"") ->  | L45: =IF(B45>0,VLOOKUP(B45,Pricelist!A:I,7,FALSE),"") -> 
A46: 37 | D46: =IF(C46>0,IF(C46>VLOOKUP(B46,Pricelist!A:I,6,0),VLOOKUP(B46,Pricelist!A:I,6,0),C46),"") ->  | E46: =IF(B46>0,VLOOKUP(B46,Pricelist!A:I,2,FALSE),"") ->  | F46: =IF(B46>0,VLOOKUP(B46,Pricelist!A:I,5,0),"") ->  | G46: =IF(B46,VLOOKUP(B46,Pricelist!A:I,3,0),"") ->  | J46: =SUMIF(Pricelist!A:A,B46,Pricelist!A:A) -> 0 | K46: =IF(B46>0,(IF(C46>D46,VLOOKUP(B46,Pricelist!A:I,9,FALSE),"")),"") ->  | L46: =IF(B46>0,VLOOKUP(B46,Pricelist!A:I,7,FALSE),"") -> 
A47: 38 | D47: =IF(C47>0,IF(C47>VLOOKUP(B47,Pricelist!A:I,6,0),VLOOKUP(B47,Pricelist!A:I,6,0),C47),"") ->  | E47: =IF(B47>0,VLOOKUP(B47,Pricelist!A:I,2,FALSE),"") ->  | F47: =IF(B47>0,VLOOKUP(B47,Pricelist!A:I,5,0),"") ->  | G47: =IF(B47,VLOOKUP(B47,Pricelist!A:I,3,0),"") ->  | J47: =SUMIF(Pricelist!A:A,B47,Pricelist!A:A) -> 0 | K47: =IF(B47>0,(IF(C47>D47,VLOOKUP(B47,Pricelist!A:I,9,FALSE),"")),"") ->  | L47: =IF(B47>0,VLOOKUP(B47,Pricelist!A:I,7,FALSE),"") -> 
A48: 39 | D48: =IF(C48>0,IF(C48>VLOOKUP(B48,Pricelist!A:I,6,0),VLOOKUP(B48,Pricelist!A:I,6,0),C48),"") ->  | E48: =IF(B48>0,VLOOKUP(B48,Pricelist!A:I,2,FALSE),"") ->  | F48: =IF(B48>0,VLOOKUP(B48,Pricelist!A:I,5,0),"") ->  | G48: =IF(B48,VLOOKUP(B48,Pricelist!A:I,3,0),"") ->  | J48: =SUMIF(Pricelist!A:A,B48,Pricelist!A:A) -> 0 | K48: =IF(B48>0,(IF(C48>D48,VLOOKUP(B48,Pricelist!A:I,9,FALSE),"")),"") ->  | L48: =IF(B48>0,VLOOKUP(B48,Pricelist!A:I,7,FALSE),"") -> 
A49: 40 | D49: =IF(C49>0,IF(C49>VLOOKUP(B49,Pricelist!A:I,6,0),VLOOKUP(B49,Pricelist!A:I,6,0),C49),"") ->  | E49: =IF(B49>0,VLOOKUP(B49,Pricelist!A:I,2,FALSE),"") ->  | F49: =IF(B49>0,VLOOKUP(B49,Pricelist!A:I,5,0),"") ->  | G49: =IF(B49,VLOOKUP(B49,Pricelist!A:I,3,0),"") ->  | J49: =SUMIF(Pricelist!A:A,B49,Pricelist!A:A) -> 0 | K49: =IF(B49>0,(IF(C49>D49,VLOOKUP(B49,Pricelist!A:I,9,FALSE),"")),"") ->  | L49: =IF(B49>0,VLOOKUP(B49,Pricelist!A:I,7,FALSE),"") -> 
A50: 41 | D50: =IF(C50>0,IF(C50>VLOOKUP(B50,Pricelist!A:I,6,0),VLOOKUP(B50,Pricelist!A:I,6,0),C50),"") ->  | E50: =IF(B50>0,VLOOKUP(B50,Pricelist!A:I,2,FALSE),"") ->  | F50: =IF(B50>0,VLOOKUP(B50,Pricelist!A:I,5,0),"") ->  | G50: =IF(B50,VLOOKUP(B50,Pricelist!A:I,3,0),"") ->  | J50: =SUMIF(Pricelist!A:A,B50,Pricelist!A:A) -> 0 | K50: =IF(B50>0,(IF(C50>D50,VLOOKUP(B50,Pricelist!A:I,9,FALSE),"")),"") ->  | L50: =IF(B50>0,VLOOKUP(B50,Pricelist!A:I,7,FALSE),"") -> 
A51: 42 | D51: =IF(C51>0,IF(C51>VLOOKUP(B51,Pricelist!A:I,6,0),VLOOKUP(B51,Pricelist!A:I,6,0),C51),"") ->  | E51: =IF(B51>0,VLOOKUP(B51,Pricelist!A:I,2,FALSE),"") ->  | F51: =IF(B51>0,VLOOKUP(B51,Pricelist!A:I,5,0),"") ->  | G51: =IF(B51,VLOOKUP(B51,Pricelist!A:I,3,0),"") ->  | J51: =SUMIF(Pricelist!A:A,B51,Pricelist!A:A) -> 0 | K51: =IF(B51>0,(IF(C51>D51,VLOOKUP(B51,Pricelist!A:I,9,FALSE),"")),"") ->  | L51: =IF(B51>0,VLOOKUP(B51,Pricelist!A:I,7,FALSE),"") -> 
A52: 43 | D52: =IF(C52>0,IF(C52>VLOOKUP(B52,Pricelist!A:I,6,0),VLOOKUP(B52,Pricelist!A:I,6,0),C52),"") ->  | E52: =IF(B52>0,VLOOKUP(B52,Pricelist!A:I,2,FALSE),"") ->  | F52: =IF(B52>0,VLOOKUP(B52,Pricelist!A:I,5,0),"") ->  | G52: =IF(B52,VLOOKUP(B52,Pricelist!A:I,3,0),"") ->  | H52: =IF(B52>0,G52*(1-$G$1),"") ->  | J52: =SUMIF(Pricelist!A:A,B52,Pricelist!A:A) -> 0 | K52: =IF(B52>0,(IF(C52>D52,VLOOKUP(B52,Pricelist!A:I,9,FALSE),"")),"") ->  | L52: =IF(B52>0,VLOOKUP(B52,Pricelist!A:I,7,FALSE),"") -> 
A53: 44 | D53: =IF(C53>0,IF(C53>VLOOKUP(B53,Pricelist!A:I,6,0),VLOOKUP(B53,Pricelist!A:I,6,0),C53),"") ->  | E53: =IF(B53>0,VLOOKUP(B53,Pricelist!A:I,2,FALSE),"") ->  | F53: =IF(B53>0,VLOOKUP(B53,Pricelist!A:I,5,0),"") ->  | G53: =IF(B53,VLOOKUP(B53,Pricelist!A:I,3,0),"") ->  | H53: =IF(B53>0,G53*(1-$G$1),"") ->  | J53: =SUMIF(Pricelist!A:A,B53,Pricelist!A:A) -> 0 | K53: =IF(B53>0,(IF(C53>D53,VLOOKUP(B53,Pricelist!A:I,9,FALSE),"")),"") ->  | L53: =IF(B53>0,VLOOKUP(B53,Pricelist!A:I,7,FALSE),"") -> 
A54: 45 | D54: =IF(C54>0,IF(C54>VLOOKUP(B54,Pricelist!A:I,6,0),VLOOKUP(B54,Pricelist!A:I,6,0),C54),"") ->  | E54: =IF(B54>0,VLOOKUP(B54,Pricelist!A:I,2,FALSE),"") ->  | F54: =IF(B54>0,VLOOKUP(B54,Pricelist!A:I,5,0),"") ->  | G54: =IF(B54,VLOOKUP(B54,Pricelist!A:I,3,0),"") ->  | J54: =SUMIF(Pricelist!A:A,B54,Pricelist!A:A) -> 0 | K54: =IF(B54>0,(IF(C54>D54,VLOOKUP(B54,Pricelist!A:I,9,FALSE),"")),"") ->  | L54: =IF(B54>0,VLOOKUP(B54,Pricelist!A:I,7,FALSE),"") -> 
A55: 46 | D55: =IF(C55>0,IF(C55>VLOOKUP(B55,Pricelist!A:I,6,0),VLOOKUP(B55,Pricelist!A:I,6,0),C55),"") ->  | E55: =IF(B55>0,VLOOKUP(B55,Pricelist!A:I,2,FALSE),"") ->  | F55: =IF(B55>0,VLOOKUP(B55,Pricelist!A:I,5,0),"") ->  | G55: =IF(B55,VLOOKUP(B55,Pricelist!A:I,3,0),"") ->  | J55: =SUMIF(Pricelist!A:A,B55,Pricelist!A:A) -> 0 | K55: =IF(B55>0,(IF(C55>D55,VLOOKUP(B55,Pricelist!A:I,9,FALSE),"")),"") ->  | L55: =IF(B55>0,VLOOKUP(B55,Pricelist!A:I,7,FALSE),"") -> 
A56: 47 | D56: =IF(C56>0,IF(C56>VLOOKUP(B56,Pricelist!A:I,6,0),VLOOKUP(B56,Pricelist!A:I,6,0),C56),"") ->  | E56: =IF(B56>0,VLOOKUP(B56,Pricelist!A:I,2,FALSE),"") ->  | F56: =IF(B56>0,VLOOKUP(B56,Pricelist!A:I,5,0),"") ->  | G56: =IF(B56,VLOOKUP(B56,Pricelist!A:I,3,0),"") ->  | J56: =SUMIF(Pricelist!A:A,B56,Pricelist!A:A) -> 0 | K56: =IF(B56>0,(IF(C56>D56,VLOOKUP(B56,Pricelist!A:I,9,FALSE),"")),"") ->  | L56: =IF(B56>0,VLOOKUP(B56,Pricelist!A:I,7,FALSE),"") -> 
A57: 48 | D57: =IF(C57>0,IF(C57>VLOOKUP(B57,Pricelist!A:I,6,0),VLOOKUP(B57,Pricelist!A:I,6,0),C57),"") ->  | E57: =IF(B57>0,VLOOKUP(B57,Pricelist!A:I,2,FALSE),"") ->  | F57: =IF(B57>0,VLOOKUP(B57,Pricelist!A:I,5,0),"") ->  | G57: =IF(B57,VLOOKUP(B57,Pricelist!A:I,3,0),"") ->  | J57: =SUMIF(Pricelist!A:A,B57,Pricelist!A:A) -> 0 | K57: =IF(B57>0,(IF(C57>D57,VLOOKUP(B57,Pricelist!A:I,9,FALSE),"")),"") ->  | L57: =IF(B57>0,VLOOKUP(B57,Pricelist!A:I,7,FALSE),"") -> 
A58: 49 | D58: =IF(C58>0,IF(C58>VLOOKUP(B58,Pricelist!A:I,6,0),VLOOKUP(B58,Pricelist!A:I,6,0),C58),"") ->  | E58: =IF(B58>0,VLOOKUP(B58,Pricelist!A:I,2,FALSE),"") ->  | F58: =IF(B58>0,VLOOKUP(B58,Pricelist!A:I,5,0),"") ->  | G58: =IF(B58,VLOOKUP(B58,Pricelist!A:I,3,0),"") ->  | J58: =SUMIF(Pricelist!A:A,B58,Pricelist!A:A) -> 0 | K58: =IF(B58>0,(IF(C58>D58,VLOOKUP(B58,Pricelist!A:I,9,FALSE),"")),"") ->  | L58: =IF(B58>0,VLOOKUP(B58,Pricelist!A:I,7,FALSE),"") -> 
A59: 50 | D59: =IF(C59>0,IF(C59>VLOOKUP(B59,Pricelist!A:I,6,0),VLOOKUP(B59,Pricelist!A:I,6,0),C59),"") ->  | E59: =IF(B59>0,VLOOKUP(B59,Pricelist!A:I,2,FALSE),"") ->  | F59: =IF(B59>0,VLOOKUP(B59,Pricelist!A:I,5,0),"") ->  | G59: =IF(B59,VLOOKUP(B59,Pricelist!A:I,3,0),"") ->  | J59: =SUMIF(Pricelist!A:A,B59,Pricelist!A:A) -> 0 | K59: =IF(B59>0,(IF(C59>D59,VLOOKUP(B59,Pricelist!A:I,9,FALSE),"")),"") ->  | L59: =IF(B59>0,VLOOKUP(B59,Pricelist!A:I,7,FALSE),"") -> 
A60: 51 | D60: =IF(C60>0,IF(C60>VLOOKUP(B60,Pricelist!A:I,6,0),VLOOKUP(B60,Pricelist!A:I,6,0),C60),"") ->  | E60: =IF(B60>0,VLOOKUP(B60,Pricelist!A:I,2,FALSE),"") ->  | F60: =IF(B60>0,VLOOKUP(B60,Pricelist!A:I,5,0),"") ->  | G60: =IF(B60,VLOOKUP(B60,Pricelist!A:I,3,0),"") ->  | J60: =SUMIF(Pricelist!A:A,B60,Pricelist!A:A) -> 0 | K60: =IF(B60>0,(IF(C60>D60,VLOOKUP(B60,Pricelist!A:I,9,FALSE),"")),"") ->  | L60: =IF(B60>0,VLOOKUP(B60,Pricelist!A:I,7,FALSE),"") -> 
A61: 52 | D61: =IF(C61>0,IF(C61>VLOOKUP(B61,Pricelist!A:I,6,0),VLOOKUP(B61,Pricelist!A:I,6,0),C61),"") ->  | E61: =IF(B61>0,VLOOKUP(B61,Pricelist!A:I,2,FALSE),"") ->  | F61: =IF(B61>0,VLOOKUP(B61,Pricelist!A:I,5,0),"") ->  | G61: =IF(B61,VLOOKUP(B61,Pricelist!A:I,3,0),"") ->  | J61: =SUMIF(Pricelist!A:A,B61,Pricelist!A:A) -> 0 | K61: =IF(B61>0,(IF(C61>D61,VLOOKUP(B61,Pricelist!A:I,9,FALSE),"")),"") ->  | L61: =IF(B61>0,VLOOKUP(B61,Pricelist!A:I,7,FALSE),"") -> 
A62: 53 | D62: =IF(C62>0,IF(C62>VLOOKUP(B62,Pricelist!A:I,6,0),VLOOKUP(B62,Pricelist!A:I,6,0),C62),"") ->  | E62: =IF(B62>0,VLOOKUP(B62,Pricelist!A:I,2,FALSE),"") ->  | F62: =IF(B62>0,VLOOKUP(B62,Pricelist!A:I,5,0),"") ->  | G62: =IF(B62,VLOOKUP(B62,Pricelist!A:I,3,0),"") ->  | J62: =SUMIF(Pricelist!A:A,B62,Pricelist!A:A) -> 0 | K62: =IF(B62>0,(IF(C62>D62,VLOOKUP(B62,Pricelist!A:I,9,FALSE),"")),"") ->  | L62: =IF(B62>0,VLOOKUP(B62,Pricelist!A:I,7,FALSE),"") -> 
A63: 54 | D63: =IF(C63>0,IF(C63>VLOOKUP(B63,Pricelist!A:I,6,0),VLOOKUP(B63,Pricelist!A:I,6,0),C63),"") ->  | E63: =IF(B63>0,VLOOKUP(B63,Pricelist!A:I,2,FALSE),"") ->  | F63: =IF(B63>0,VLOOKUP(B63,Pricelist!A:I,5,0),"") ->  | G63: =IF(B63,VLOOKUP(B63,Pricelist!A:I,3,0),"") ->  | J63: =SUMIF(Pricelist!A:A,B63,Pricelist!A:A) -> 0 | K63: =IF(B63>0,(IF(C63>D63,VLOOKUP(B63,Pricelist!A:I,9,FALSE),"")),"") ->  | L63: =IF(B63>0,VLOOKUP(B63,Pricelist!A:I,7,FALSE),"") -> 
A64: 55 | D64: =IF(C64>0,IF(C64>VLOOKUP(B64,Pricelist!A:I,6,0),VLOOKUP(B64,Pricelist!A:I,6,0),C64),"") ->  | E64: =IF(B64>0,VLOOKUP(B64,Pricelist!A:I,2,FALSE),"") ->  | F64: =IF(B64>0,VLOOKUP(B64,Pricelist!A:I,5,0),"") ->  | G64: =IF(B64,VLOOKUP(B64,Pricelist!A:I,3,0),"") ->  | J64: =SUMIF(Pricelist!A:A,B64,Pricelist!A:A) -> 0 | K64: =IF(B64>0,(IF(C64>D64,VLOOKUP(B64,Pricelist!A:I,9,FALSE),"")),"") ->  | L64: =IF(B64>0,VLOOKUP(B64,Pricelist!A:I,7,FALSE),"") -> 
A65: 56 | D65: =IF(C65>0,IF(C65>VLOOKUP(B65,Pricelist!A:I,6,0),VLOOKUP(B65,Pricelist!A:I,6,0),C65),"") ->  | E65: =IF(B65>0,VLOOKUP(B65,Pricelist!A:I,2,FALSE),"") ->  | F65: =IF(B65>0,VLOOKUP(B65,Pricelist!A:I,5,0),"") ->  | G65: =IF(B65,VLOOKUP(B65,Pricelist!A:I,3,0),"") ->  | J65: =SUMIF(Pricelist!A:A,B65,Pricelist!A:A) -> 0 | K65: =IF(B65>0,(IF(C65>D65,VLOOKUP(B65,Pricelist!A:I,9,FALSE),"")),"") ->  | L65: =IF(B65>0,VLOOKUP(B65,Pricelist!A:I,7,FALSE),"") -> 
A66: 57 | D66: =IF(C66>0,IF(C66>VLOOKUP(B66,Pricelist!A:I,6,0),VLOOKUP(B66,Pricelist!A:I,6,0),C66),"") ->  | E66: =IF(B66>0,VLOOKUP(B66,Pricelist!A:I,2,FALSE),"") ->  | F66: =IF(B66>0,VLOOKUP(B66,Pricelist!A:I,5,0),"") ->  | G66: =IF(B66,VLOOKUP(B66,Pricelist!A:I,3,0),"") ->  | J66: =SUMIF(Pricelist!A:A,B66,Pricelist!A:A) -> 0 | K66: =IF(B66>0,(IF(C66>D66,VLOOKUP(B66,Pricelist!A:I,9,FALSE),"")),"") ->  | L66: =IF(B66>0,VLOOKUP(B66,Pricelist!A:I,7,FALSE),"") -> 
A67: 58 | D67: =IF(C67>0,IF(C67>VLOOKUP(B67,Pricelist!A:I,6,0),VLOOKUP(B67,Pricelist!A:I,6,0),C67),"") ->  | E67: =IF(B67>0,VLOOKUP(B67,Pricelist!A:I,2,FALSE),"") ->  | F67: =IF(B67>0,VLOOKUP(B67,Pricelist!A:I,5,0),"") ->  | G67: =IF(B67,VLOOKUP(B67,Pricelist!A:I,3,0),"") ->  | J67: =SUMIF(Pricelist!A:A,B67,Pricelist!A:A) -> 0 | K67: =IF(B67>0,(IF(C67>D67,VLOOKUP(B67,Pricelist!A:I,9,FALSE),"")),"") ->  | L67: =IF(B67>0,VLOOKUP(B67,Pricelist!A:I,7,FALSE),"") -> 
A68: 59 | D68: =IF(C68>0,IF(C68>VLOOKUP(B68,Pricelist!A:I,6,0),VLOOKUP(B68,Pricelist!A:I,6,0),C68),"") ->  | E68: =IF(B68>0,VLOOKUP(B68,Pricelist!A:I,2,FALSE),"") ->  | F68: =IF(B68>0,VLOOKUP(B68,Pricelist!A:I,5,0),"") ->  | G68: =IF(B68,VLOOKUP(B68,Pricelist!A:I,3,0),"") ->  | J68: =SUMIF(Pricelist!A:A,B68,Pricelist!A:A) -> 0 | K68: =IF(B68>0,(IF(C68>D68,VLOOKUP(B68,Pricelist!A:I,9,FALSE),"")),"") ->  | L68: =IF(B68>0,VLOOKUP(B68,Pricelist!A:I,7,FALSE),"") -> 
A69: 60 | D69: =IF(C69>0,IF(C69>VLOOKUP(B69,Pricelist!A:I,6,0),VLOOKUP(B69,Pricelist!A:I,6,0),C69),"") ->  | E69: =IF(B69>0,VLOOKUP(B69,Pricelist!A:I,2,FALSE),"") ->  | F69: =IF(B69>0,VLOOKUP(B69,Pricelist!A:I,5,0),"") ->  | G69: =IF(B69,VLOOKUP(B69,Pricelist!A:I,3,0),"") ->  | J69: =SUMIF(Pricelist!A:A,B69,Pricelist!A:A) -> 0 | K69: =IF(B69>0,(IF(C69>D69,VLOOKUP(B69,Pricelist!A:I,9,FALSE),"")),"") ->  | L69: =IF(B69>0,VLOOKUP(B69,Pricelist!A:I,7,FALSE),"") -> 
A70: 61 | D70: =IF(C70>0,IF(C70>VLOOKUP(B70,Pricelist!A:I,6,0),VLOOKUP(B70,Pricelist!A:I,6,0),C70),"") ->  | E70: =IF(B70>0,VLOOKUP(B70,Pricelist!A:I,2,FALSE),"") ->  | F70: =IF(B70>0,VLOOKUP(B70,Pricelist!A:I,5,0),"") ->  | G70: =IF(B70,VLOOKUP(B70,Pricelist!A:I,3,0),"") ->  | J70: =SUMIF(Pricelist!A:A,B70,Pricelist!A:A) -> 0 | K70: =IF(B70>0,(IF(C70>D70,VLOOKUP(B70,Pricelist!A:I,9,FALSE),"")),"") ->  | L70: =IF(B70>0,VLOOKUP(B70,Pricelist!A:I,7,FALSE),"") -> 
A71: 62 | D71: =IF(C71>0,IF(C71>VLOOKUP(B71,Pricelist!A:I,6,0),VLOOKUP(B71,Pricelist!A:I,6,0),C71),"") ->  | E71: =IF(B71>0,VLOOKUP(B71,Pricelist!A:I,2,FALSE),"") ->  | F71: =IF(B71>0,VLOOKUP(B71,Pricelist!A:I,5,0),"") ->  | G71: =IF(B71,VLOOKUP(B71,Pricelist!A:I,3,0),"") ->  | J71: =SUMIF(Pricelist!A:A,B71,Pricelist!A:A) -> 0 | K71: =IF(B71>0,(IF(C71>D71,VLOOKUP(B71,Pricelist!A:I,9,FALSE),"")),"") ->  | L71: =IF(B71>0,VLOOKUP(B71,Pricelist!A:I,7,FALSE),"") -> 
A72: 63 | D72: =IF(C72>0,IF(C72>VLOOKUP(B72,Pricelist!A:I,6,0),VLOOKUP(B72,Pricelist!A:I,6,0),C72),"") ->  | E72: =IF(B72>0,VLOOKUP(B72,Pricelist!A:I,2,FALSE),"") ->  | F72: =IF(B72>0,VLOOKUP(B72,Pricelist!A:I,5,0),"") ->  | G72: =IF(B72,VLOOKUP(B72,Pricelist!A:I,3,0),"") ->  | J72: =SUMIF(Pricelist!A:A,B72,Pricelist!A:A) -> 0 | K72: =IF(B72>0,(IF(C72>D72,VLOOKUP(B72,Pricelist!A:I,9,FALSE),"")),"") ->  | L72: =IF(B72>0,VLOOKUP(B72,Pricelist!A:I,7,FALSE),"") -> 
A73: 64 | D73: =IF(C73>0,IF(C73>VLOOKUP(B73,Pricelist!A:I,6,0),VLOOKUP(B73,Pricelist!A:I,6,0),C73),"") ->  | E73: =IF(B73>0,VLOOKUP(B73,Pricelist!A:I,2,FALSE),"") ->  | F73: =IF(B73>0,VLOOKUP(B73,Pricelist!A:I,5,0),"") ->  | G73: =IF(B73,VLOOKUP(B73,Pricelist!A:I,3,0),"") ->  | J73: =SUMIF(Pricelist!A:A,B73,Pricelist!A:A) -> 0 | K73: =IF(B73>0,(IF(C73>D73,VLOOKUP(B73,Pricelist!A:I,9,FALSE),"")),"") ->  | L73: =IF(B73>0,VLOOKUP(B73,Pricelist!A:I,7,FALSE),"") -> 
A74: 65 | D74: =IF(C74>0,IF(C74>VLOOKUP(B74,Pricelist!A:I,6,0),VLOOKUP(B74,Pricelist!A:I,6,0),C74),"") ->  | E74: =IF(B74>0,VLOOKUP(B74,Pricelist!A:I,2,FALSE),"") ->  | F74: =IF(B74>0,VLOOKUP(B74,Pricelist!A:I,5,0),"") ->  | G74: =IF(B74,VLOOKUP(B74,Pricelist!A:I,3,0),"") ->  | I74: =IF(J74>0,IF(B74>0,D74*H74,""),"") ->  | J74: =SUMIF(Pricelist!A:A,B74,Pricelist!A:A) -> 0 | K74: =IF(B74>0,(IF(C74>D74,VLOOKUP(B74,Pricelist!A:I,9,FALSE),"")),"") ->  | L74: =IF(B74>0,VLOOKUP(B74,Pricelist!A:I,7,FALSE),"") -> 
A75: 66 | D75: =IF(C75>0,IF(C75>VLOOKUP(B75,Pricelist!A:I,6,0),VLOOKUP(B75,Pricelist!A:I,6,0),C75),"") ->  | E75: =IF(B75>0,VLOOKUP(B75,Pricelist!A:I,2,FALSE),"") ->  | F75: =IF(B75>0,VLOOKUP(B75,Pricelist!A:I,5,0),"") ->  | G75: =IF(B75,VLOOKUP(B75,Pricelist!A:I,3,0),"") ->  | H75: =IF(B75>0,G75*(1-$G$1),"") ->  | J75: =SUMIF(Pricelist!A:A,B75,Pricelist!A:A) -> 0 | K75: =IF(B75>0,(IF(C75>D75,VLOOKUP(B75,Pricelist!A:I,9,FALSE),"")),"") ->  | L75: =IF(B75>0,VLOOKUP(B75,Pricelist!A:I,7,FALSE),"") -> 
A76: 67 | D76: =IF(C76>0,IF(C76>VLOOKUP(B76,Pricelist!A:I,6,0),VLOOKUP(B76,Pricelist!A:I,6,0),C76),"") ->  | E76: =IF(B76>0,VLOOKUP(B76,Pricelist!A:I,2,FALSE),"") ->  | F76: =IF(B76>0,VLOOKUP(B76,Pricelist!A:I,5,0),"") ->  | G76: =IF(B76,VLOOKUP(B76,Pricelist!A:I,3,0),"") ->  | J76: =SUMIF(Pricelist!A:A,B76,Pricelist!A:A) -> 0 | K76: =IF(B76>0,(IF(C76>D76,VLOOKUP(B76,Pricelist!A:I,9,FALSE),"")),"") ->  | L76: =IF(B76>0,VLOOKUP(B76,Pricelist!A:I,7,FALSE),"") -> 
A77: 68 | D77: =IF(C77>0,IF(C77>VLOOKUP(B77,Pricelist!A:I,6,0),VLOOKUP(B77,Pricelist!A:I,6,0),C77),"") ->  | E77: =IF(B77>0,VLOOKUP(B77,Pricelist!A:I,2,FALSE),"") ->  | F77: =IF(B77>0,VLOOKUP(B77,Pricelist!A:I,5,0),"") ->  | G77: =IF(B77,VLOOKUP(B77,Pricelist!A:I,3,0),"") ->  | J77: =SUMIF(Pricelist!A:A,B77,Pricelist!A:A) -> 0 | K77: =IF(B77>0,(IF(C77>D77,VLOOKUP(B77,Pricelist!A:I,9,FALSE),"")),"") ->  | L77: =IF(B77>0,VLOOKUP(B77,Pricelist!A:I,7,FALSE),"") -> 
A78: 69 | D78: =IF(C78>0,IF(C78>VLOOKUP(B78,Pricelist!A:I,6,0),VLOOKUP(B78,Pricelist!A:I,6,0),C78),"") ->  | E78: =IF(B78>0,VLOOKUP(B78,Pricelist!A:I,2,FALSE),"") ->  | F78: =IF(B78>0,VLOOKUP(B78,Pricelist!A:I,5,0),"") ->  | G78: =IF(B78,VLOOKUP(B78,Pricelist!A:I,3,0),"") ->  | J78: =SUMIF(Pricelist!A:A,B78,Pricelist!A:A) -> 0 | K78: =IF(B78>0,(IF(C78>D78,VLOOKUP(B78,Pricelist!A:I,9,FALSE),"")),"") ->  | L78: =IF(B78>0,VLOOKUP(B78,Pricelist!A:I,7,FALSE),"") -> 
A79: 70 | D79: =IF(C79>0,IF(C79>VLOOKUP(B79,Pricelist!A:I,6,0),VLOOKUP(B79,Pricelist!A:I,6,0),C79),"") ->  | E79: =IF(B79>0,VLOOKUP(B79,Pricelist!A:I,2,FALSE),"") ->  | F79: =IF(B79>0,VLOOKUP(B79,Pricelist!A:I,5,0),"") ->  | G79: =IF(B79,VLOOKUP(B79,Pricelist!A:I,3,0),"") ->  | J79: =SUMIF(Pricelist!A:A,B79,Pricelist!A:A) -> 0 | K79: =IF(B79>0,(IF(C79>D79,VLOOKUP(B79,Pricelist!A:I,9,FALSE),"")),"") ->  | L79: =IF(B79>0,VLOOKUP(B79,Pricelist!A:I,7,FALSE),"") -> 
A80: 71 | D80: =IF(C80>0,IF(C80>VLOOKUP(B80,Pricelist!A:I,6,0),VLOOKUP(B80,Pricelist!A:I,6,0),C80),"") ->  | E80: =IF(B80>0,VLOOKUP(B80,Pricelist!A:I,2,FALSE),"") ->  | F80: =IF(B80>0,VLOOKUP(B80,Pricelist!A:I,5,0),"") ->  | G80: =IF(B80,VLOOKUP(B80,Pricelist!A:I,3,0),"") ->  | J80: =SUMIF(Pricelist!A:A,B80,Pricelist!A:A) -> 0 | K80: =IF(B80>0,(IF(C80>D80,VLOOKUP(B80,Pricelist!A:I,9,FALSE),"")),"") ->  | L80: =IF(B80>0,VLOOKUP(B80,Pricelist!A:I,7,FALSE),"") -> 
A81: 72 | D81: =IF(C81>0,IF(C81>VLOOKUP(B81,Pricelist!A:I,6,0),VLOOKUP(B81,Pricelist!A:I,6,0),C81),"") ->  | E81: =IF(B81>0,VLOOKUP(B81,Pricelist!A:I,2,FALSE),"") ->  | F81: =IF(B81>0,VLOOKUP(B81,Pricelist!A:I,5,0),"") ->  | G81: =IF(B81,VLOOKUP(B81,Pricelist!A:I,3,0),"") ->  | J81: =SUMIF(Pricelist!A:A,B81,Pricelist!A:A) -> 0 | K81: =IF(B81>0,(IF(C81>D81,VLOOKUP(B81,Pricelist!A:I,9,FALSE),"")),"") ->  | L81: =IF(B81>0,VLOOKUP(B81,Pricelist!A:I,7,FALSE),"") -> 
A82: 73 | D82: =IF(C82>0,IF(C82>VLOOKUP(B82,Pricelist!A:I,6,0),VLOOKUP(B82,Pricelist!A:I,6,0),C82),"") ->  | E82: =IF(B82>0,VLOOKUP(B82,Pricelist!A:I,2,FALSE),"") ->  | F82: =IF(B82>0,VLOOKUP(B82,Pricelist!A:I,5,0),"") ->  | G82: =IF(B82,VLOOKUP(B82,Pricelist!A:I,3,0),"") ->  | J82: =SUMIF(Pricelist!A:A,B82,Pricelist!A:A) -> 0 | K82: =IF(B82>0,(IF(C82>D82,VLOOKUP(B82,Pricelist!A:I,9,FALSE),"")),"") ->  | L82: =IF(B82>0,VLOOKUP(B82,Pricelist!A:I,7,FALSE),"") -> 
A83: 74 | D83: =IF(C83>0,IF(C83>VLOOKUP(B83,Pricelist!A:I,6,0),VLOOKUP(B83,Pricelist!A:I,6,0),C83),"") ->  | E83: =IF(B83>0,VLOOKUP(B83,Pricelist!A:I,2,FALSE),"") ->  | F83: =IF(B83>0,VLOOKUP(B83,Pricelist!A:I,5,0),"") ->  | G83: =IF(B83,VLOOKUP(B83,Pricelist!A:I,3,0),"") ->  | J83: =SUMIF(Pricelist!A:A,B83,Pricelist!A:A) -> 0 | K83: =IF(B83>0,(IF(C83>D83,VLOOKUP(B83,Pricelist!A:I,9,FALSE),"")),"") ->  | L83: =IF(B83>0,VLOOKUP(B83,Pricelist!A:I,7,FALSE),"") -> 
A84: 75 | D84: =IF(C84>0,IF(C84>VLOOKUP(B84,Pricelist!A:I,6,0),VLOOKUP(B84,Pricelist!A:I,6,0),C84),"") ->  | E84: =IF(B84>0,VLOOKUP(B84,Pricelist!A:I,2,FALSE),"") ->  | F84: =IF(B84>0,VLOOKUP(B84,Pricelist!A:I,5,0),"") ->  | G84: =IF(B84,VLOOKUP(B84,Pricelist!A:I,3,0),"") ->  | J84: =SUMIF(Pricelist!A:A,B84,Pricelist!A:A) -> 0 | K84: =IF(B84>0,(IF(C84>D84,VLOOKUP(B84,Pricelist!A:I,9,FALSE),"")),"") ->  | L84: =IF(B84>0,VLOOKUP(B84,Pricelist!A:I,7,FALSE),"") -> 
A85: 76 | D85: =IF(C85>0,IF(C85>VLOOKUP(B85,Pricelist!A:I,6,0),VLOOKUP(B85,Pricelist!A:I,6,0),C85),"") ->  | E85: =IF(B85>0,VLOOKUP(B85,Pricelist!A:I,2,FALSE),"") ->  | F85: =IF(B85>0,VLOOKUP(B85,Pricelist!A:I,5,0),"") ->  | G85: =IF(B85,VLOOKUP(B85,Pricelist!A:I,3,0),"") ->  | J85: =SUMIF(Pricelist!A:A,B85,Pricelist!A:A) -> 0 | K85: =IF(B85>0,(IF(C85>D85,VLOOKUP(B85,Pricelist!A:I,9,FALSE),"")),"") ->  | L85: =IF(B85>0,VLOOKUP(B85,Pricelist!A:I,7,FALSE),"") -> 
A86: 77 | D86: =IF(C86>0,IF(C86>VLOOKUP(B86,Pricelist!A:I,6,0),VLOOKUP(B86,Pricelist!A:I,6,0),C86),"") ->  | E86: =IF(B86>0,VLOOKUP(B86,Pricelist!A:I,2,FALSE),"") ->  | F86: =IF(B86>0,VLOOKUP(B86,Pricelist!A:I,5,0),"") ->  | G86: =IF(B86,VLOOKUP(B86,Pricelist!A:I,3,0),"") ->  | J86: =SUMIF(Pricelist!A:A,B86,Pricelist!A:A) -> 0 | K86: =IF(B86>0,(IF(C86>D86,VLOOKUP(B86,Pricelist!A:I,9,FALSE),"")),"") ->  | L86: =IF(B86>0,VLOOKUP(B86,Pricelist!A:I,7,FALSE),"") -> 
A87: 78 | D87: =IF(C87>0,IF(C87>VLOOKUP(B87,Pricelist!A:I,6,0),VLOOKUP(B87,Pricelist!A:I,6,0),C87),"") ->  | E87: =IF(B87>0,VLOOKUP(B87,Pricelist!A:I,2,FALSE),"") ->  | F87: =IF(B87>0,VLOOKUP(B87,Pricelist!A:I,5,0),"") ->  | G87: =IF(B87,VLOOKUP(B87,Pricelist!A:I,3,0),"") ->  | J87: =SUMIF(Pricelist!A:A,B87,Pricelist!A:A) -> 0 | K87: =IF(B87>0,(IF(C87>D87,VLOOKUP(B87,Pricelist!A:I,9,FALSE),"")),"") ->  | L87: =IF(B87>0,VLOOKUP(B87,Pricelist!A:I,7,FALSE),"") -> 
A88: 79 | D88: =IF(C88>0,IF(C88>VLOOKUP(B88,Pricelist!A:I,6,0),VLOOKUP(B88,Pricelist!A:I,6,0),C88),"") ->  | E88: =IF(B88>0,VLOOKUP(B88,Pricelist!A:I,2,FALSE),"") ->  | F88: =IF(B88>0,VLOOKUP(B88,Pricelist!A:I,5,0),"") ->  | G88: =IF(B88,VLOOKUP(B88,Pricelist!A:I,3,0),"") ->  | J88: =SUMIF(Pricelist!A:A,B88,Pricelist!A:A) -> 0 | K88: =IF(B88>0,(IF(C88>D88,VLOOKUP(B88,Pricelist!A:I,9,FALSE),"")),"") ->  | L88: =IF(B88>0,VLOOKUP(B88,Pricelist!A:I,7,FALSE),"") -> 
A89: 80 | D89: =IF(C89>0,IF(C89>VLOOKUP(B89,Pricelist!A:I,6,0),VLOOKUP(B89,Pricelist!A:I,6,0),C89),"") ->  | E89: =IF(B89>0,VLOOKUP(B89,Pricelist!A:I,2,FALSE),"") ->  | F89: =IF(B89>0,VLOOKUP(B89,Pricelist!A:I,5,0),"") ->  | G89: =IF(B89,VLOOKUP(B89,Pricelist!A:I,3,0),"") ->  | J89: =SUMIF(Pricelist!A:A,B89,Pricelist!A:A) -> 0 | K89: =IF(B89>0,(IF(C89>D89,VLOOKUP(B89,Pricelist!A:I,9,FALSE),"")),"") ->  | L89: =IF(B89>0,VLOOKUP(B89,Pricelist!A:I,7,FALSE),"") -> 
A90: 81 | D90: =IF(C90>0,IF(C90>VLOOKUP(B90,Pricelist!A:I,6,0),VLOOKUP(B90,Pricelist!A:I,6,0),C90),"") ->  | E90: =IF(B90>0,VLOOKUP(B90,Pricelist!A:I,2,FALSE),"") ->  | F90: =IF(B90>0,VLOOKUP(B90,Pricelist!A:I,5,0),"") ->  | G90: =IF(B90,VLOOKUP(B90,Pricelist!A:I,3,0),"") ->  | J90: =SUMIF(Pricelist!A:A,B90,Pricelist!A:A) -> 0 | K90: =IF(B90>0,(IF(C90>D90,VLOOKUP(B90,Pricelist!A:I,9,FALSE),"")),"") ->  | L90: =IF(B90>0,VLOOKUP(B90,Pricelist!A:I,7,FALSE),"") -> 
A91: 82 | D91: =IF(C91>0,IF(C91>VLOOKUP(B91,Pricelist!A:I,6,0),VLOOKUP(B91,Pricelist!A:I,6,0),C91),"") ->  | E91: =IF(B91>0,VLOOKUP(B91,Pricelist!A:I,2,FALSE),"") ->  | F91: =IF(B91>0,VLOOKUP(B91,Pricelist!A:I,5,0),"") ->  | G91: =IF(B91,VLOOKUP(B91,Pricelist!A:I,3,0),"") ->  | J91: =SUMIF(Pricelist!A:A,B91,Pricelist!A:A) -> 0 | K91: =IF(B91>0,(IF(C91>D91,VLOOKUP(B91,Pricelist!A:I,9,FALSE),"")),"") ->  | L91: =IF(B91>0,VLOOKUP(B91,Pricelist!A:I,7,FALSE),"") -> 
A92: 83 | D92: =IF(C92>0,IF(C92>VLOOKUP(B92,Pricelist!A:I,6,0),VLOOKUP(B92,Pricelist!A:I,6,0),C92),"") ->  | E92: =IF(B92>0,VLOOKUP(B92,Pricelist!A:I,2,FALSE),"") ->  | F92: =IF(B92>0,VLOOKUP(B92,Pricelist!A:I,5,0),"") ->  | G92: =IF(B92,VLOOKUP(B92,Pricelist!A:I,3,0),"") ->  | J92: =SUMIF(Pricelist!A:A,B92,Pricelist!A:A) -> 0 | K92: =IF(B92>0,(IF(C92>D92,VLOOKUP(B92,Pricelist!A:I,9,FALSE),"")),"") ->  | L92: =IF(B92>0,VLOOKUP(B92,Pricelist!A:I,7,FALSE),"") -> 
A93: 84 | D93: =IF(C93>0,IF(C93>VLOOKUP(B93,Pricelist!A:I,6,0),VLOOKUP(B93,Pricelist!A:I,6,0),C93),"") ->  | E93: =IF(B93>0,VLOOKUP(B93,Pricelist!A:I,2,FALSE),"") ->  | F93: =IF(B93>0,VLOOKUP(B93,Pricelist!A:I,5,0),"") ->  | G93: =IF(B93,VLOOKUP(B93,Pricelist!A:I,3,0),"") ->  | J93: =SUMIF(Pricelist!A:A,B93,Pricelist!A:A) -> 0 | K93: =IF(B93>0,(IF(C93>D93,VLOOKUP(B93,Pricelist!A:I,9,FALSE),"")),"") ->  | L93: =IF(B93>0,VLOOKUP(B93,Pricelist!A:I,7,FALSE),"") -> 
A94: 85 | D94: =IF(C94>0,IF(C94>VLOOKUP(B94,Pricelist!A:I,6,0),VLOOKUP(B94,Pricelist!A:I,6,0),C94),"") ->  | E94: =IF(B94>0,VLOOKUP(B94,Pricelist!A:I,2,FALSE),"") ->  | F94: =IF(B94>0,VLOOKUP(B94,Pricelist!A:I,5,0),"") ->  | G94: =IF(B94,VLOOKUP(B94,Pricelist!A:I,3,0),"") ->  | J94: =SUMIF(Pricelist!A:A,B94,Pricelist!A:A) -> 0 | K94: =IF(B94>0,(IF(C94>D94,VLOOKUP(B94,Pricelist!A:I,9,FALSE),"")),"") ->  | L94: =IF(B94>0,VLOOKUP(B94,Pricelist!A:I,7,FALSE),"") -> 
A95: 86 | D95: =IF(C95>0,IF(C95>VLOOKUP(B95,Pricelist!A:I,6,0),VLOOKUP(B95,Pricelist!A:I,6,0),C95),"") ->  | E95: =IF(B95>0,VLOOKUP(B95,Pricelist!A:I,2,FALSE),"") ->  | F95: =IF(B95>0,VLOOKUP(B95,Pricelist!A:I,5,0),"") ->  | G95: =IF(B95,VLOOKUP(B95,Pricelist!A:I,3,0),"") ->  | J95: =SUMIF(Pricelist!A:A,B95,Pricelist!A:A) -> 0 | K95: =IF(B95>0,(IF(C95>D95,VLOOKUP(B95,Pricelist!A:I,9,FALSE),"")),"") ->  | L95: =IF(B95>0,VLOOKUP(B95,Pricelist!A:I,7,FALSE),"") -> 
A96: 87 | D96: =IF(C96>0,IF(C96>VLOOKUP(B96,Pricelist!A:I,6,0),VLOOKUP(B96,Pricelist!A:I,6,0),C96),"") ->  | E96: =IF(B96>0,VLOOKUP(B96,Pricelist!A:I,2,FALSE),"") ->  | F96: =IF(B96>0,VLOOKUP(B96,Pricelist!A:I,5,0),"") ->  | G96: =IF(B96,VLOOKUP(B96,Pricelist!A:I,3,0),"") ->  | J96: =SUMIF(Pricelist!A:A,B96,Pricelist!A:A) -> 0 | K96: =IF(B96>0,(IF(C96>D96,VLOOKUP(B96,Pricelist!A:I,9,FALSE),"")),"") ->  | L96: =IF(B96>0,VLOOKUP(B96,Pricelist!A:I,7,FALSE),"") -> 
A97: 88 | D97: =IF(C97>0,IF(C97>VLOOKUP(B97,Pricelist!A:I,6,0),VLOOKUP(B97,Pricelist!A:I,6,0),C97),"") ->  | E97: =IF(B97>0,VLOOKUP(B97,Pricelist!A:I,2,FALSE),"") ->  | F97: =IF(B97>0,VLOOKUP(B97,Pricelist!A:I,5,0),"") ->  | G97: =IF(B97,VLOOKUP(B97,Pricelist!A:I,3,0),"") ->  | J97: =SUMIF(Pricelist!A:A,B97,Pricelist!A:A) -> 0 | K97: =IF(B97>0,(IF(C97>D97,VLOOKUP(B97,Pricelist!A:I,9,FALSE),"")),"") ->  | L97: =IF(B97>0,VLOOKUP(B97,Pricelist!A:I,7,FALSE),"") -> 
A98: 89 | D98: =IF(C98>0,IF(C98>VLOOKUP(B98,Pricelist!A:I,6,0),VLOOKUP(B98,Pricelist!A:I,6,0),C98),"") ->  | E98: =IF(B98>0,VLOOKUP(B98,Pricelist!A:I,2,FALSE),"") ->  | F98: =IF(B98>0,VLOOKUP(B98,Pricelist!A:I,5,0),"") ->  | G98: =IF(B98,VLOOKUP(B98,Pricelist!A:I,3,0),"") ->  | J98: =SUMIF(Pricelist!A:A,B98,Pricelist!A:A) -> 0 | K98: =IF(B98>0,(IF(C98>D98,VLOOKUP(B98,Pricelist!A:I,9,FALSE),"")),"") ->  | L98: =IF(B98>0,VLOOKUP(B98,Pricelist!A:I,7,FALSE),"") -> 
A99: 90 | D99: =IF(C99>0,IF(C99>VLOOKUP(B99,Pricelist!A:I,6,0),VLOOKUP(B99,Pricelist!A:I,6,0),C99),"") ->  | E99: =IF(B99>0,VLOOKUP(B99,Pricelist!A:I,2,FALSE),"") ->  | F99: =IF(B99>0,VLOOKUP(B99,Pricelist!A:I,5,0),"") ->  | G99: =IF(B99,VLOOKUP(B99,Pricelist!A:I,3,0),"") ->  | J99: =SUMIF(Pricelist!A:A,B99,Pricelist!A:A) -> 0 | K99: =IF(B99>0,(IF(C99>D99,VLOOKUP(B99,Pricelist!A:I,9,FALSE),"")),"") ->  | L99: =IF(B99>0,VLOOKUP(B99,Pricelist!A:I,7,FALSE),"") -> 
A100: 91 | D100: =IF(C100>0,IF(C100>VLOOKUP(B100,Pricelist!A:I,6,0),VLOOKUP(B100,Pricelist!A:I,6,0),C100),"") ->  | E100: =IF(B100>0,VLOOKUP(B100,Pricelist!A:I,2,FALSE),"") ->  | F100: =IF(B100>0,VLOOKUP(B100,Pricelist!A:I,5,0),"") ->  | G100: =IF(B100,VLOOKUP(B100,Pricelist!A:I,3,0),"") ->  | J100: =SUMIF(Pricelist!A:A,B100,Pricelist!A:A) -> 0 | K100: =IF(B100>0,(IF(C100>D100,VLOOKUP(B100,Pricelist!A:I,9,FALSE),"")),"") ->  | L100: =IF(B100>0,VLOOKUP(B100,Pricelist!A:I,7,FALSE),"") -> 
A101: 92 | D101: =IF(C101>0,IF(C101>VLOOKUP(B101,Pricelist!A:I,6,0),VLOOKUP(B101,Pricelist!A:I,6,0),C101),"") ->  | E101: =IF(B101>0,VLOOKUP(B101,Pricelist!A:I,2,FALSE),"") ->  | F101: =IF(B101>0,VLOOKUP(B101,Pricelist!A:I,5,0),"") ->  | G101: =IF(B101,VLOOKUP(B101,Pricelist!A:I,3,0),"") ->  | J101: =SUMIF(Pricelist!A:A,B101,Pricelist!A:A) -> 0 | K101: =IF(B101>0,(IF(C101>D101,VLOOKUP(B101,Pricelist!A:I,9,FALSE),"")),"") ->  | L101: =IF(B101>0,VLOOKUP(B101,Pricelist!A:I,7,FALSE),"") -> 
A102: 93 | D102: =IF(C102>0,IF(C102>VLOOKUP(B102,Pricelist!A:I,6,0),VLOOKUP(B102,Pricelist!A:I,6,0),C102),"") ->  | E102: =IF(B102>0,VLOOKUP(B102,Pricelist!A:I,2,FALSE),"") ->  | F102: =IF(B102>0,VLOOKUP(B102,Pricelist!A:I,5,0),"") ->  | G102: =IF(B102,VLOOKUP(B102,Pricelist!A:I,3,0),"") ->  | J102: =SUMIF(Pricelist!A:A,B102,Pricelist!A:A) -> 0 | K102: =IF(B102>0,(IF(C102>D102,VLOOKUP(B102,Pricelist!A:I,9,FALSE),"")),"") ->  | L102: =IF(B102>0,VLOOKUP(B102,Pricelist!A:I,7,FALSE),"") -> 
A103: 94 | D103: =IF(C103>0,IF(C103>VLOOKUP(B103,Pricelist!A:I,6,0),VLOOKUP(B103,Pricelist!A:I,6,0),C103),"") ->  | E103: =IF(B103>0,VLOOKUP(B103,Pricelist!A:I,2,FALSE),"") ->  | F103: =IF(B103>0,VLOOKUP(B103,Pricelist!A:I,5,0),"") ->  | G103: =IF(B103,VLOOKUP(B103,Pricelist!A:I,3,0),"") ->  | J103: =SUMIF(Pricelist!A:A,B103,Pricelist!A:A) -> 0 | K103: =IF(B103>0,(IF(C103>D103,VLOOKUP(B103,Pricelist!A:I,9,FALSE),"")),"") ->  | L103: =IF(B103>0,VLOOKUP(B103,Pricelist!A:I,7,FALSE),"") -> 
A104: 95 | D104: =IF(C104>0,IF(C104>VLOOKUP(B104,Pricelist!A:I,6,0),VLOOKUP(B104,Pricelist!A:I,6,0),C104),"") ->  | E104: =IF(B104>0,VLOOKUP(B104,Pricelist!A:I,2,FALSE),"") ->  | F104: =IF(B104>0,VLOOKUP(B104,Pricelist!A:I,5,0),"") ->  | G104: =IF(B104,VLOOKUP(B104,Pricelist!A:I,3,0),"") ->  | J104: =SUMIF(Pricelist!A:A,B104,Pricelist!A:A) -> 0 | K104: =IF(B104>0,(IF(C104>D104,VLOOKUP(B104,Pricelist!A:I,9,FALSE),"")),"") ->  | L104: =IF(B104>0,VLOOKUP(B104,Pricelist!A:I,7,FALSE),"") -> 
A105: 96 | D105: =IF(C105>0,IF(C105>VLOOKUP(B105,Pricelist!A:I,6,0),VLOOKUP(B105,Pricelist!A:I,6,0),C105),"") ->  | E105: =IF(B105>0,VLOOKUP(B105,Pricelist!A:I,2,FALSE),"") ->  | F105: =IF(B105>0,VLOOKUP(B105,Pricelist!A:I,5,0),"") ->  | G105: =IF(B105,VLOOKUP(B105,Pricelist!A:I,3,0),"") ->  | J105: =SUMIF(Pricelist!A:A,B105,Pricelist!A:A) -> 0 | K105: =IF(B105>0,(IF(C105>D105,VLOOKUP(B105,Pricelist!A:I,9,FALSE),"")),"") ->  | L105: =IF(B105>0,VLOOKUP(B105,Pricelist!A:I,7,FALSE),"") -> 
A106: 97 | D106: =IF(C106>0,IF(C106>VLOOKUP(B106,Pricelist!A:I,6,0),VLOOKUP(B106,Pricelist!A:I,6,0),C106),"") ->  | E106: =IF(B106>0,VLOOKUP(B106,Pricelist!A:I,2,FALSE),"") ->  | F106: =IF(B106>0,VLOOKUP(B106,Pricelist!A:I,5,0),"") ->  | G106: =IF(B106,VLOOKUP(B106,Pricelist!A:I,3,0),"") ->  | J106: =SUMIF(Pricelist!A:A,B106,Pricelist!A:A) -> 0 | K106: =IF(B106>0,(IF(C106>D106,VLOOKUP(B106,Pricelist!A:I,9,FALSE),"")),"") ->  | L106: =IF(B106>0,VLOOKUP(B106,Pricelist!A:I,7,FALSE),"") -> 
A107: 98 | D107: =IF(C107>0,IF(C107>VLOOKUP(B107,Pricelist!A:I,6,0),VLOOKUP(B107,Pricelist!A:I,6,0),C107),"") ->  | E107: =IF(B107>0,VLOOKUP(B107,Pricelist!A:I,2,FALSE),"") ->  | F107: =IF(B107>0,VLOOKUP(B107,Pricelist!A:I,5,0),"") ->  | G107: =IF(B107,VLOOKUP(B107,Pricelist!A:I,3,0),"") ->  | J107: =SUMIF(Pricelist!A:A,B107,Pricelist!A:A) -> 0 | K107: =IF(B107>0,(IF(C107>D107,VLOOKUP(B107,Pricelist!A:I,9,FALSE),"")),"") ->  | L107: =IF(B107>0,VLOOKUP(B107,Pricelist!A:I,7,FALSE),"") -> 
A108: 99 | D108: =IF(C108>0,IF(C108>VLOOKUP(B108,Pricelist!A:I,6,0),VLOOKUP(B108,Pricelist!A:I,6,0),C108),"") ->  | E108: =IF(B108>0,VLOOKUP(B108,Pricelist!A:I,2,FALSE),"") ->  | F108: =IF(B108>0,VLOOKUP(B108,Pricelist!A:I,5,0),"") ->  | G108: =IF(B108,VLOOKUP(B108,Pricelist!A:I,3,0),"") ->  | J108: =SUMIF(Pricelist!A:A,B108,Pricelist!A:A) -> 0 | K108: =IF(B108>0,(IF(C108>D108,VLOOKUP(B108,Pricelist!A:I,9,FALSE),"")),"") ->  | L108: =IF(B108>0,VLOOKUP(B108,Pricelist!A:I,7,FALSE),"") -> 
A109: 100 | D109: =IF(C109>0,IF(C109>VLOOKUP(B109,Pricelist!A:I,6,0),VLOOKUP(B109,Pricelist!A:I,6,0),C109),"") ->  | E109: =IF(B109>0,VLOOKUP(B109,Pricelist!A:I,2,FALSE),"") ->  | F109: =IF(B109>0,VLOOKUP(B109,Pricelist!A:I,5,0),"") ->  | G109: =IF(B109,VLOOKUP(B109,Pricelist!A:I,3,0),"") ->  | J109: =SUMIF(Pricelist!A:A,B109,Pricelist!A:A) -> 0 | K109: =IF(B109>0,(IF(C109>D109,VLOOKUP(B109,Pricelist!A:I,9,FALSE),"")),"") ->  | L109: =IF(B109>0,VLOOKUP(B109,Pricelist!A:I,7,FALSE),"") -> 
A110: 101 | D110: =IF(C110>0,IF(C110>VLOOKUP(B110,Pricelist!A:I,6,0),VLOOKUP(B110,Pricelist!A:I,6,0),C110),"") ->  | E110: =IF(B110>0,VLOOKUP(B110,Pricelist!A:I,2,FALSE),"") ->  | F110: =IF(B110>0,VLOOKUP(B110,Pricelist!A:I,5,0),"") ->  | G110: =IF(B110,VLOOKUP(B110,Pricelist!A:I,3,0),"") ->  | J110: =SUMIF(Pricelist!A:A,B110,Pricelist!A:A) -> 0 | K110: =IF(B110>0,(IF(C110>D110,VLOOKUP(B110,Pricelist!A:I,9,FALSE),"")),"") ->  | L110: =IF(B110>0,VLOOKUP(B110,Pricelist!A:I,7,FALSE),"") -> 
A111: 102 | D111: =IF(C111>0,IF(C111>VLOOKUP(B111,Pricelist!A:I,6,0),VLOOKUP(B111,Pricelist!A:I,6,0),C111),"") ->  | E111: =IF(B111>0,VLOOKUP(B111,Pricelist!A:I,2,FALSE),"") ->  | F111: =IF(B111>0,VLOOKUP(B111,Pricelist!A:I,5,0),"") ->  | G111: =IF(B111,VLOOKUP(B111,Pricelist!A:I,3,0),"") ->  | J111: =SUMIF(Pricelist!A:A,B111,Pricelist!A:A) -> 0 | K111: =IF(B111>0,(IF(C111>D111,VLOOKUP(B111,Pricelist!A:I,9,FALSE),"")),"") ->  | L111: =IF(B111>0,VLOOKUP(B111,Pricelist!A:I,7,FALSE),"") -> 
A112: 103 | D112: =IF(C112>0,IF(C112>VLOOKUP(B112,Pricelist!A:I,6,0),VLOOKUP(B112,Pricelist!A:I,6,0),C112),"") ->  | E112: =IF(B112>0,VLOOKUP(B112,Pricelist!A:I,2,FALSE),"") ->  | F112: =IF(B112>0,VLOOKUP(B112,Pricelist!A:I,5,0),"") ->  | G112: =IF(B112,VLOOKUP(B112,Pricelist!A:I,3,0),"") ->  | J112: =SUMIF(Pricelist!A:A,B112,Pricelist!A:A) -> 0 | K112: =IF(B112>0,(IF(C112>D112,VLOOKUP(B112,Pricelist!A:I,9,FALSE),"")),"") ->  | L112: =IF(B112>0,VLOOKUP(B112,Pricelist!A:I,7,FALSE),"") -> 
A113: 104 | D113: =IF(C113>0,IF(C113>VLOOKUP(B113,Pricelist!A:I,6,0),VLOOKUP(B113,Pricelist!A:I,6,0),C113),"") ->  | E113: =IF(B113>0,VLOOKUP(B113,Pricelist!A:I,2,FALSE),"") ->  | F113: =IF(B113>0,VLOOKUP(B113,Pricelist!A:I,5,0),"") ->  | G113: =IF(B113,VLOOKUP(B113,Pricelist!A:I,3,0),"") ->  | J113: =SUMIF(Pricelist!A:A,B113,Pricelist!A:A) -> 0 | K113: =IF(B113>0,(IF(C113>D113,VLOOKUP(B113,Pricelist!A:I,9,FALSE),"")),"") ->  | L113: =IF(B113>0,VLOOKUP(B113,Pricelist!A:I,7,FALSE),"") -> 
A114: 105 | D114: =IF(C114>0,IF(C114>VLOOKUP(B114,Pricelist!A:I,6,0),VLOOKUP(B114,Pricelist!A:I,6,0),C114),"") ->  | E114: =IF(B114>0,VLOOKUP(B114,Pricelist!A:I,2,FALSE),"") ->  | F114: =IF(B114>0,VLOOKUP(B114,Pricelist!A:I,5,0),"") ->  | G114: =IF(B114,VLOOKUP(B114,Pricelist!A:I,3,0),"") ->  | J114: =SUMIF(Pricelist!A:A,B114,Pricelist!A:A) -> 0 | K114: =IF(B114>0,(IF(C114>D114,VLOOKUP(B114,Pricelist!A:I,9,FALSE),"")),"") ->  | L114: =IF(B114>0,VLOOKUP(B114,Pricelist!A:I,7,FALSE),"") -> 
A115: 106 | D115: =IF(C115>0,IF(C115>VLOOKUP(B115,Pricelist!A:I,6,0),VLOOKUP(B115,Pricelist!A:I,6,0),C115),"") ->  | E115: =IF(B115>0,VLOOKUP(B115,Pricelist!A:I,2,FALSE),"") ->  | F115: =IF(B115>0,VLOOKUP(B115,Pricelist!A:I,5,0),"") ->  | G115: =IF(B115,VLOOKUP(B115,Pricelist!A:I,3,0),"") ->  | J115: =SUMIF(Pricelist!A:A,B115,Pricelist!A:A) -> 0 | K115: =IF(B115>0,(IF(C115>D115,VLOOKUP(B115,Pricelist!A:I,9,FALSE),"")),"") ->  | L115: =IF(B115>0,VLOOKUP(B115,Pricelist!A:I,7,FALSE),"") -> 
A116: 107 | D116: =IF(C116>0,IF(C116>VLOOKUP(B116,Pricelist!A:I,6,0),VLOOKUP(B116,Pricelist!A:I,6,0),C116),"") ->  | E116: =IF(B116>0,VLOOKUP(B116,Pricelist!A:I,2,FALSE),"") ->  | F116: =IF(B116>0,VLOOKUP(B116,Pricelist!A:I,5,0),"") ->  | G116: =IF(B116,VLOOKUP(B116,Pricelist!A:I,3,0),"") ->  | J116: =SUMIF(Pricelist!A:A,B116,Pricelist!A:A) -> 0 | K116: =IF(B116>0,(IF(C116>D116,VLOOKUP(B116,Pricelist!A:I,9,FALSE),"")),"") ->  | L116: =IF(B116>0,VLOOKUP(B116,Pricelist!A:I,7,FALSE),"") -> 
A117: 108 | D117: =IF(C117>0,IF(C117>VLOOKUP(B117,Pricelist!A:I,6,0),VLOOKUP(B117,Pricelist!A:I,6,0),C117),"") ->  | E117: =IF(B117>0,VLOOKUP(B117,Pricelist!A:I,2,FALSE),"") ->  | F117: =IF(B117>0,VLOOKUP(B117,Pricelist!A:I,5,0),"") ->  | G117: =IF(B117,VLOOKUP(B117,Pricelist!A:I,3,0),"") ->  | J117: =SUMIF(Pricelist!A:A,B117,Pricelist!A:A) -> 0 | K117: =IF(B117>0,(IF(C117>D117,VLOOKUP(B117,Pricelist!A:I,9,FALSE),"")),"") ->  | L117: =IF(B117>0,VLOOKUP(B117,Pricelist!A:I,7,FALSE),"") -> 
A118: 109 | D118: =IF(C118>0,IF(C118>VLOOKUP(B118,Pricelist!A:I,6,0),VLOOKUP(B118,Pricelist!A:I,6,0),C118),"") ->  | E118: =IF(B118>0,VLOOKUP(B118,Pricelist!A:I,2,FALSE),"") ->  | F118: =IF(B118>0,VLOOKUP(B118,Pricelist!A:I,5,0),"") ->  | G118: =IF(B118,VLOOKUP(B118,Pricelist!A:I,3,0),"") ->  | J118: =SUMIF(Pricelist!A:A,B118,Pricelist!A:A) -> 0 | K118: =IF(B118>0,(IF(C118>D118,VLOOKUP(B118,Pricelist!A:I,9,FALSE),"")),"") ->  | L118: =IF(B118>0,VLOOKUP(B118,Pricelist!A:I,7,FALSE),"") -> 
A119: 110 | D119: =IF(C119>0,IF(C119>VLOOKUP(B119,Pricelist!A:I,6,0),VLOOKUP(B119,Pricelist!A:I,6,0),C119),"") ->  | E119: =IF(B119>0,VLOOKUP(B119,Pricelist!A:I,2,FALSE),"") ->  | F119: =IF(B119>0,VLOOKUP(B119,Pricelist!A:I,5,0),"") ->  | G119: =IF(B119,VLOOKUP(B119,Pricelist!A:I,3,0),"") ->  | J119: =SUMIF(Pricelist!A:A,B119,Pricelist!A:A) -> 0 | K119: =IF(B119>0,(IF(C119>D119,VLOOKUP(B119,Pricelist!A:I,9,FALSE),"")),"") ->  | L119: =IF(B119>0,VLOOKUP(B119,Pricelist!A:I,7,FALSE),"") -> 
A120: 111 | D120: =IF(C120>0,IF(C120>VLOOKUP(B120,Pricelist!A:I,6,0),VLOOKUP(B120,Pricelist!A:I,6,0),C120),"") ->  | E120: =IF(B120>0,VLOOKUP(B120,Pricelist!A:I,2,FALSE),"") ->  | F120: =IF(B120>0,VLOOKUP(B120,Pricelist!A:I,5,0),"") ->  | G120: =IF(B120,VLOOKUP(B120,Pricelist!A:I,3,0),"") ->  | J120: =SUMIF(Pricelist!A:A,B120,Pricelist!A:A) -> 0 | K120: =IF(B120>0,(IF(C120>D120,VLOOKUP(B120,Pricelist!A:I,9,FALSE),"")),"") ->  | L120: =IF(B120>0,VLOOKUP(B120,Pricelist!A:I,7,FALSE),"") -> 
A121: 112 | D121: =IF(C121>0,IF(C121>VLOOKUP(B121,Pricelist!A:I,6,0),VLOOKUP(B121,Pricelist!A:I,6,0),C121),"") ->  | E121: =IF(B121>0,VLOOKUP(B121,Pricelist!A:I,2,FALSE),"") ->  | F121: =IF(B121>0,VLOOKUP(B121,Pricelist!A:I,5,0),"") ->  | G121: =IF(B121,VLOOKUP(B121,Pricelist!A:I,3,0),"") ->  | J121: =SUMIF(Pricelist!A:A,B121,Pricelist!A:A) -> 0 | K121: =IF(B121>0,(IF(C121>D121,VLOOKUP(B121,Pricelist!A:I,9,FALSE),"")),"") ->  | L121: =IF(B121>0,VLOOKUP(B121,Pricelist!A:I,7,FALSE),"") -> 
A122: 113 | D122: =IF(C122>0,IF(C122>VLOOKUP(B122,Pricelist!A:I,6,0),VLOOKUP(B122,Pricelist!A:I,6,0),C122),"") ->  | E122: =IF(B122>0,VLOOKUP(B122,Pricelist!A:I,2,FALSE),"") ->  | F122: =IF(B122>0,VLOOKUP(B122,Pricelist!A:I,5,0),"") ->  | G122: =IF(B122,VLOOKUP(B122,Pricelist!A:I,3,0),"") ->  | J122: =SUMIF(Pricelist!A:A,B122,Pricelist!A:A) -> 0 | K122: =IF(B122>0,(IF(C122>D122,VLOOKUP(B122,Pricelist!A:I,9,FALSE),"")),"") ->  | L122: =IF(B122>0,VLOOKUP(B122,Pricelist!A:I,7,FALSE),"") -> 
A123: 114 | D123: =IF(C123>0,IF(C123>VLOOKUP(B123,Pricelist!A:I,6,0),VLOOKUP(B123,Pricelist!A:I,6,0),C123),"") ->  | E123: =IF(B123>0,VLOOKUP(B123,Pricelist!A:I,2,FALSE),"") ->  | F123: =IF(B123>0,VLOOKUP(B123,Pricelist!A:I,5,0),"") ->  | G123: =IF(B123,VLOOKUP(B123,Pricelist!A:I,3,0),"") ->  | J123: =SUMIF(Pricelist!A:A,B123,Pricelist!A:A) -> 0 | K123: =IF(B123>0,(IF(C123>D123,VLOOKUP(B123,Pricelist!A:I,9,FALSE),"")),"") ->  | L123: =IF(B123>0,VLOOKUP(B123,Pricelist!A:I,7,FALSE),"") -> 
A124: 115 | D124: =IF(C124>0,IF(C124>VLOOKUP(B124,Pricelist!A:I,6,0),VLOOKUP(B124,Pricelist!A:I,6,0),C124),"") ->  | E124: =IF(B124>0,VLOOKUP(B124,Pricelist!A:I,2,FALSE),"") ->  | F124: =IF(B124>0,VLOOKUP(B124,Pricelist!A:I,5,0),"") ->  | G124: =IF(B124,VLOOKUP(B124,Pricelist!A:I,3,0),"") ->  | J124: =SUMIF(Pricelist!A:A,B124,Pricelist!A:A) -> 0 | K124: =IF(B124>0,(IF(C124>D124,VLOOKUP(B124,Pricelist!A:I,9,FALSE),"")),"") ->  | L124: =IF(B124>0,VLOOKUP(B124,Pricelist!A:I,7,FALSE),"") -> 
A125: 116 | D125: =IF(C125>0,IF(C125>VLOOKUP(B125,Pricelist!A:I,6,0),VLOOKUP(B125,Pricelist!A:I,6,0),C125),"") ->  | E125: =IF(B125>0,VLOOKUP(B125,Pricelist!A:I,2,FALSE),"") ->  | F125: =IF(B125>0,VLOOKUP(B125,Pricelist!A:I,5,0),"") ->  | G125: =IF(B125,VLOOKUP(B125,Pricelist!A:I,3,0),"") ->  | J125: =SUMIF(Pricelist!A:A,B125,Pricelist!A:A) -> 0 | K125: =IF(B125>0,(IF(C125>D125,VLOOKUP(B125,Pricelist!A:I,9,FALSE),"")),"") ->  | L125: =IF(B125>0,VLOOKUP(B125,Pricelist!A:I,7,FALSE),"") -> 
A126: 117 | D126: =IF(C126>0,IF(C126>VLOOKUP(B126,Pricelist!A:I,6,0),VLOOKUP(B126,Pricelist!A:I,6,0),C126),"") ->  | E126: =IF(B126>0,VLOOKUP(B126,Pricelist!A:I,2,FALSE),"") ->  | F126: =IF(B126>0,VLOOKUP(B126,Pricelist!A:I,5,0),"") ->  | G126: =IF(B126,VLOOKUP(B126,Pricelist!A:I,3,0),"") ->  | J126: =SUMIF(Pricelist!A:A,B126,Pricelist!A:A) -> 0 | K126: =IF(B126>0,(IF(C126>D126,VLOOKUP(B126,Pricelist!A:I,9,FALSE),"")),"") ->  | L126: =IF(B126>0,VLOOKUP(B126,Pricelist!A:I,7,FALSE),"") -> 
A127: 118 | D127: =IF(C127>0,IF(C127>VLOOKUP(B127,Pricelist!A:I,6,0),VLOOKUP(B127,Pricelist!A:I,6,0),C127),"") ->  | E127: =IF(B127>0,VLOOKUP(B127,Pricelist!A:I,2,FALSE),"") ->  | F127: =IF(B127>0,VLOOKUP(B127,Pricelist!A:I,5,0),"") ->  | G127: =IF(B127,VLOOKUP(B127,Pricelist!A:I,3,0),"") ->  | J127: =SUMIF(Pricelist!A:A,B127,Pricelist!A:A) -> 0 | K127: =IF(B127>0,(IF(C127>D127,VLOOKUP(B127,Pricelist!A:I,9,FALSE),"")),"") ->  | L127: =IF(B127>0,VLOOKUP(B127,Pricelist!A:I,7,FALSE),"") -> 
A128: 119 | D128: =IF(C128>0,IF(C128>VLOOKUP(B128,Pricelist!A:I,6,0),VLOOKUP(B128,Pricelist!A:I,6,0),C128),"") ->  | E128: =IF(B128>0,VLOOKUP(B128,Pricelist!A:I,2,FALSE),"") ->  | F128: =IF(B128>0,VLOOKUP(B128,Pricelist!A:I,5,0),"") ->  | G128: =IF(B128,VLOOKUP(B128,Pricelist!A:I,3,0),"") ->  | J128: =SUMIF(Pricelist!A:A,B128,Pricelist!A:A) -> 0 | K128: =IF(B128>0,(IF(C128>D128,VLOOKUP(B128,Pricelist!A:I,9,FALSE),"")),"") ->  | L128: =IF(B128>0,VLOOKUP(B128,Pricelist!A:I,7,FALSE),"") -> 
A129: 120 | D129: =IF(C129>0,IF(C129>VLOOKUP(B129,Pricelist!A:I,6,0),VLOOKUP(B129,Pricelist!A:I,6,0),C129),"") ->  | E129: =IF(B129>0,VLOOKUP(B129,Pricelist!A:I,2,FALSE),"") ->  | F129: =IF(B129>0,VLOOKUP(B129,Pricelist!A:I,5,0),"") ->  | G129: =IF(B129,VLOOKUP(B129,Pricelist!A:I,3,0),"") ->  | J129: =SUMIF(Pricelist!A:A,B129,Pricelist!A:A) -> 0 | K129: =IF(B129>0,(IF(C129>D129,VLOOKUP(B129,Pricelist!A:I,9,FALSE),"")),"") ->  | L129: =IF(B129>0,VLOOKUP(B129,Pricelist!A:I,7,FALSE),"") -> 
A130: 121 | D130: =IF(C130>0,IF(C130>VLOOKUP(B130,Pricelist!A:I,6,0),VLOOKUP(B130,Pricelist!A:I,6,0),C130),"") ->  | E130: =IF(B130>0,VLOOKUP(B130,Pricelist!A:I,2,FALSE),"") ->  | F130: =IF(B130>0,VLOOKUP(B130,Pricelist!A:I,5,0),"") ->  | G130: =IF(B130,VLOOKUP(B130,Pricelist!A:I,3,0),"") ->  | J130: =SUMIF(Pricelist!A:A,B130,Pricelist!A:A) -> 0 | K130: =IF(B130>0,(IF(C130>D130,VLOOKUP(B130,Pricelist!A:I,9,FALSE),"")),"") ->  | L130: =IF(B130>0,VLOOKUP(B130,Pricelist!A:I,7,FALSE),"") -> 
A131: 122 | D131: =IF(C131>0,IF(C131>VLOOKUP(B131,Pricelist!A:I,6,0),VLOOKUP(B131,Pricelist!A:I,6,0),C131),"") ->  | E131: =IF(B131>0,VLOOKUP(B131,Pricelist!A:I,2,FALSE),"") ->  | F131: =IF(B131>0,VLOOKUP(B131,Pricelist!A:I,5,0),"") ->  | G131: =IF(B131,VLOOKUP(B131,Pricelist!A:I,3,0),"") ->  | J131: =SUMIF(Pricelist!A:A,B131,Pricelist!A:A) -> 0 | K131: =IF(B131>0,(IF(C131>D131,VLOOKUP(B131,Pricelist!A:I,9,FALSE),"")),"") ->  | L131: =IF(B131>0,VLOOKUP(B131,Pricelist!A:I,7,FALSE),"") -> 
A132: 123 | D132: =IF(C132>0,IF(C132>VLOOKUP(B132,Pricelist!A:I,6,0),VLOOKUP(B132,Pricelist!A:I,6,0),C132),"") ->  | E132: =IF(B132>0,VLOOKUP(B132,Pricelist!A:I,2,FALSE),"") ->  | F132: =IF(B132>0,VLOOKUP(B132,Pricelist!A:I,5,0),"") ->  | G132: =IF(B132,VLOOKUP(B132,Pricelist!A:I,3,0),"") ->  | J132: =SUMIF(Pricelist!A:A,B132,Pricelist!A:A) -> 0 | K132: =IF(B132>0,(IF(C132>D132,VLOOKUP(B132,Pricelist!A:I,9,FALSE),"")),"") ->  | L132: =IF(B132>0,VLOOKUP(B132,Pricelist!A:I,7,FALSE),"") -> 
A133: 124 | D133: =IF(C133>0,IF(C133>VLOOKUP(B133,Pricelist!A:I,6,0),VLOOKUP(B133,Pricelist!A:I,6,0),C133),"") ->  | E133: =IF(B133>0,VLOOKUP(B133,Pricelist!A:I,2,FALSE),"") ->  | F133: =IF(B133>0,VLOOKUP(B133,Pricelist!A:I,5,0),"") ->  | G133: =IF(B133,VLOOKUP(B133,Pricelist!A:I,3,0),"") ->  | J133: =SUMIF(Pricelist!A:A,B133,Pricelist!A:A) -> 0 | K133: =IF(B133>0,(IF(C133>D133,VLOOKUP(B133,Pricelist!A:I,9,FALSE),"")),"") ->  | L133: =IF(B133>0,VLOOKUP(B133,Pricelist!A:I,7,FALSE),"") -> 
A134: 125 | D134: =IF(C134>0,IF(C134>VLOOKUP(B134,Pricelist!A:I,6,0),VLOOKUP(B134,Pricelist!A:I,6,0),C134),"") ->  | E134: =IF(B134>0,VLOOKUP(B134,Pricelist!A:I,2,FALSE),"") ->  | F134: =IF(B134>0,VLOOKUP(B134,Pricelist!A:I,5,0),"") ->  | G134: =IF(B134,VLOOKUP(B134,Pricelist!A:I,3,0),"") ->  | J134: =SUMIF(Pricelist!A:A,B134,Pricelist!A:A) -> 0 | K134: =IF(B134>0,(IF(C134>D134,VLOOKUP(B134,Pricelist!A:I,9,FALSE),"")),"") ->  | L134: =IF(B134>0,VLOOKUP(B134,Pricelist!A:I,7,FALSE),"") -> 
A135: 126 | D135: =IF(C135>0,IF(C135>VLOOKUP(B135,Pricelist!A:I,6,0),VLOOKUP(B135,Pricelist!A:I,6,0),C135),"") ->  | E135: =IF(B135>0,VLOOKUP(B135,Pricelist!A:I,2,FALSE),"") ->  | F135: =IF(B135>0,VLOOKUP(B135,Pricelist!A:I,5,0),"") ->  | G135: =IF(B135,VLOOKUP(B135,Pricelist!A:I,3,0),"") ->  | J135: =SUMIF(Pricelist!A:A,B135,Pricelist!A:A) -> 0 | K135: =IF(B135>0,(IF(C135>D135,VLOOKUP(B135,Pricelist!A:I,9,FALSE),"")),"") ->  | L135: =IF(B135>0,VLOOKUP(B135,Pricelist!A:I,7,FALSE),"") -> 
A136: 127 | D136: =IF(C136>0,IF(C136>VLOOKUP(B136,Pricelist!A:I,6,0),VLOOKUP(B136,Pricelist!A:I,6,0),C136),"") ->  | E136: =IF(B136>0,VLOOKUP(B136,Pricelist!A:I,2,FALSE),"") ->  | F136: =IF(B136>0,VLOOKUP(B136,Pricelist!A:I,5,0),"") ->  | G136: =IF(B136,VLOOKUP(B136,Pricelist!A:I,3,0),"") ->  | J136: =SUMIF(Pricelist!A:A,B136,Pricelist!A:A) -> 0 | K136: =IF(B136>0,(IF(C136>D136,VLOOKUP(B136,Pricelist!A:I,9,FALSE),"")),"") ->  | L136: =IF(B136>0,VLOOKUP(B136,Pricelist!A:I,7,FALSE),"") -> 
A137: 128 | D137: =IF(C137>0,IF(C137>VLOOKUP(B137,Pricelist!A:I,6,0),VLOOKUP(B137,Pricelist!A:I,6,0),C137),"") ->  | E137: =IF(B137>0,VLOOKUP(B137,Pricelist!A:I,2,FALSE),"") ->  | F137: =IF(B137>0,VLOOKUP(B137,Pricelist!A:I,5,0),"") ->  | G137: =IF(B137,VLOOKUP(B137,Pricelist!A:I,3,0),"") ->  | J137: =SUMIF(Pricelist!A:A,B137,Pricelist!A:A) -> 0 | K137: =IF(B137>0,(IF(C137>D137,VLOOKUP(B137,Pricelist!A:I,9,FALSE),"")),"") ->  | L137: =IF(B137>0,VLOOKUP(B137,Pricelist!A:I,7,FALSE),"") -> 
A138: 129 | D138: =IF(C138>0,IF(C138>VLOOKUP(B138,Pricelist!A:I,6,0),VLOOKUP(B138,Pricelist!A:I,6,0),C138),"") ->  | E138: =IF(B138>0,VLOOKUP(B138,Pricelist!A:I,2,FALSE),"") ->  | F138: =IF(B138>0,VLOOKUP(B138,Pricelist!A:I,5,0),"") ->  | G138: =IF(B138,VLOOKUP(B138,Pricelist!A:I,3,0),"") ->  | I138: =IF(J138>0,IF(B138>0,D138*H138,""),"") ->  | J138: =SUMIF(Pricelist!A:A,B138,Pricelist!A:A) -> 0 | K138: =IF(B138>0,(IF(C138>D138,VLOOKUP(B138,Pricelist!A:I,9,FALSE),"")),"") ->  | L138: =IF(B138>0,VLOOKUP(B138,Pricelist!A:I,7,FALSE),"") -> 
A139: 130 | D139: =IF(C139>0,IF(C139>VLOOKUP(B139,Pricelist!A:I,6,0),VLOOKUP(B139,Pricelist!A:I,6,0),C139),"") ->  | E139: =IF(B139>0,VLOOKUP(B139,Pricelist!A:I,2,FALSE),"") ->  | F139: =IF(B139>0,VLOOKUP(B139,Pricelist!A:I,5,0),"") ->  | G139: =IF(B139,VLOOKUP(B139,Pricelist!A:I,3,0),"") ->  | H139: =IF(B139>0,G139*(1-$G$1),"") ->  | J139: =SUMIF(Pricelist!A:A,B139,Pricelist!A:A) -> 0 | K139: =IF(B139>0,(IF(C139>D139,VLOOKUP(B139,Pricelist!A:I,9,FALSE),"")),"") ->  | L139: =IF(B139>0,VLOOKUP(B139,Pricelist!A:I,7,FALSE),"") -> 
A140: 131 | D140: =IF(C140>0,IF(C140>VLOOKUP(B140,Pricelist!A:I,6,0),VLOOKUP(B140,Pricelist!A:I,6,0),C140),"") ->  | E140: =IF(B140>0,VLOOKUP(B140,Pricelist!A:I,2,FALSE),"") ->  | F140: =IF(B140>0,VLOOKUP(B140,Pricelist!A:I,5,0),"") ->  | G140: =IF(B140,VLOOKUP(B140,Pricelist!A:I,3,0),"") ->  | J140: =SUMIF(Pricelist!A:A,B140,Pricelist!A:A) -> 0 | K140: =IF(B140>0,(IF(C140>D140,VLOOKUP(B140,Pricelist!A:I,9,FALSE),"")),"") ->  | L140: =IF(B140>0,VLOOKUP(B140,Pricelist!A:I,7,FALSE),"") -> 
A141: 132 | D141: =IF(C141>0,IF(C141>VLOOKUP(B141,Pricelist!A:I,6,0),VLOOKUP(B141,Pricelist!A:I,6,0),C141),"") ->  | E141: =IF(B141>0,VLOOKUP(B141,Pricelist!A:I,2,FALSE),"") ->  | F141: =IF(B141>0,VLOOKUP(B141,Pricelist!A:I,5,0),"") ->  | G141: =IF(B141,VLOOKUP(B141,Pricelist!A:I,3,0),"") ->  | J141: =SUMIF(Pricelist!A:A,B141,Pricelist!A:A) -> 0 | K141: =IF(B141>0,(IF(C141>D141,VLOOKUP(B141,Pricelist!A:I,9,FALSE),"")),"") ->  | L141: =IF(B141>0,VLOOKUP(B141,Pricelist!A:I,7,FALSE),"") -> 
A142: 133 | D142: =IF(C142>0,IF(C142>VLOOKUP(B142,Pricelist!A:I,6,0),VLOOKUP(B142,Pricelist!A:I,6,0),C142),"") ->  | E142: =IF(B142>0,VLOOKUP(B142,Pricelist!A:I,2,FALSE),"") ->  | F142: =IF(B142>0,VLOOKUP(B142,Pricelist!A:I,5,0),"") ->  | G142: =IF(B142,VLOOKUP(B142,Pricelist!A:I,3,0),"") ->  | J142: =SUMIF(Pricelist!A:A,B142,Pricelist!A:A) -> 0 | K142: =IF(B142>0,(IF(C142>D142,VLOOKUP(B142,Pricelist!A:I,9,FALSE),"")),"") ->  | L142: =IF(B142>0,VLOOKUP(B142,Pricelist!A:I,7,FALSE),"") -> 
A143: 134 | D143: =IF(C143>0,IF(C143>VLOOKUP(B143,Pricelist!A:I,6,0),VLOOKUP(B143,Pricelist!A:I,6,0),C143),"") ->  | E143: =IF(B143>0,VLOOKUP(B143,Pricelist!A:I,2,FALSE),"") ->  | F143: =IF(B143>0,VLOOKUP(B143,Pricelist!A:I,5,0),"") ->  | G143: =IF(B143,VLOOKUP(B143,Pricelist!A:I,3,0),"") ->  | J143: =SUMIF(Pricelist!A:A,B143,Pricelist!A:A) -> 0 | K143: =IF(B143>0,(IF(C143>D143,VLOOKUP(B143,Pricelist!A:I,9,FALSE),"")),"") ->  | L143: =IF(B143>0,VLOOKUP(B143,Pricelist!A:I,7,FALSE),"") -> 
A144: 135 | D144: =IF(C144>0,IF(C144>VLOOKUP(B144,Pricelist!A:I,6,0),VLOOKUP(B144,Pricelist!A:I,6,0),C144),"") ->  | E144: =IF(B144>0,VLOOKUP(B144,Pricelist!A:I,2,FALSE),"") ->  | F144: =IF(B144>0,VLOOKUP(B144,Pricelist!A:I,5,0),"") ->  | G144: =IF(B144,VLOOKUP(B144,Pricelist!A:I,3,0),"") ->  | J144: =SUMIF(Pricelist!A:A,B144,Pricelist!A:A) -> 0 | K144: =IF(B144>0,(IF(C144>D144,VLOOKUP(B144,Pricelist!A:I,9,FALSE),"")),"") ->  | L144: =IF(B144>0,VLOOKUP(B144,Pricelist!A:I,7,FALSE),"") -> 
A145: 136 | D145: =IF(C145>0,IF(C145>VLOOKUP(B145,Pricelist!A:I,6,0),VLOOKUP(B145,Pricelist!A:I,6,0),C145),"") ->  | E145: =IF(B145>0,VLOOKUP(B145,Pricelist!A:I,2,FALSE),"") ->  | F145: =IF(B145>0,VLOOKUP(B145,Pricelist!A:I,5,0),"") ->  | G145: =IF(B145,VLOOKUP(B145,Pricelist!A:I,3,0),"") ->  | J145: =SUMIF(Pricelist!A:A,B145,Pricelist!A:A) -> 0 | K145: =IF(B145>0,(IF(C145>D145,VLOOKUP(B145,Pricelist!A:I,9,FALSE),"")),"") ->  | L145: =IF(B145>0,VLOOKUP(B145,Pricelist!A:I,7,FALSE),"") -> 
A146: 137 | D146: =IF(C146>0,IF(C146>VLOOKUP(B146,Pricelist!A:I,6,0),VLOOKUP(B146,Pricelist!A:I,6,0),C146),"") ->  | E146: =IF(B146>0,VLOOKUP(B146,Pricelist!A:I,2,FALSE),"") ->  | F146: =IF(B146>0,VLOOKUP(B146,Pricelist!A:I,5,0),"") ->  | G146: =IF(B146,VLOOKUP(B146,Pricelist!A:I,3,0),"") ->  | J146: =SUMIF(Pricelist!A:A,B146,Pricelist!A:A) -> 0 | K146: =IF(B146>0,(IF(C146>D146,VLOOKUP(B146,Pricelist!A:I,9,FALSE),"")),"") ->  | L146: =IF(B146>0,VLOOKUP(B146,Pricelist!A:I,7,FALSE),"") -> 
A147: 138 | D147: =IF(C147>0,IF(C147>VLOOKUP(B147,Pricelist!A:I,6,0),VLOOKUP(B147,Pricelist!A:I,6,0),C147),"") ->  | E147: =IF(B147>0,VLOOKUP(B147,Pricelist!A:I,2,FALSE),"") ->  | F147: =IF(B147>0,VLOOKUP(B147,Pricelist!A:I,5,0),"") ->  | G147: =IF(B147,VLOOKUP(B147,Pricelist!A:I,3,0),"") ->  | J147: =SUMIF(Pricelist!A:A,B147,Pricelist!A:A) -> 0 | K147: =IF(B147>0,(IF(C147>D147,VLOOKUP(B147,Pricelist!A:I,9,FALSE),"")),"") ->  | L147: =IF(B147>0,VLOOKUP(B147,Pricelist!A:I,7,FALSE),"") -> 
A148: 139 | D148: =IF(C148>0,IF(C148>VLOOKUP(B148,Pricelist!A:I,6,0),VLOOKUP(B148,Pricelist!A:I,6,0),C148),"") ->  | E148: =IF(B148>0,VLOOKUP(B148,Pricelist!A:I,2,FALSE),"") ->  | F148: =IF(B148>0,VLOOKUP(B148,Pricelist!A:I,5,0),"") ->  | G148: =IF(B148,VLOOKUP(B148,Pricelist!A:I,3,0),"") ->  | J148: =SUMIF(Pricelist!A:A,B148,Pricelist!A:A) -> 0 | K148: =IF(B148>0,(IF(C148>D148,VLOOKUP(B148,Pricelist!A:I,9,FALSE),"")),"") ->  | L148: =IF(B148>0,VLOOKUP(B148,Pricelist!A:I,7,FALSE),"") -> 
A149: 140 | D149: =IF(C149>0,IF(C149>VLOOKUP(B149,Pricelist!A:I,6,0),VLOOKUP(B149,Pricelist!A:I,6,0),C149),"") ->  | E149: =IF(B149>0,VLOOKUP(B149,Pricelist!A:I,2,FALSE),"") ->  | F149: =IF(B149>0,VLOOKUP(B149,Pricelist!A:I,5,0),"") ->  | G149: =IF(B149,VLOOKUP(B149,Pricelist!A:I,3,0),"") ->  | J149: =SUMIF(Pricelist!A:A,B149,Pricelist!A:A) -> 0 | K149: =IF(B149>0,(IF(C149>D149,VLOOKUP(B149,Pricelist!A:I,9,FALSE),"")),"") ->  | L149: =IF(B149>0,VLOOKUP(B149,Pricelist!A:I,7,FALSE),"") -> 
A150: 141 | D150: =IF(C150>0,IF(C150>VLOOKUP(B150,Pricelist!A:I,6,0),VLOOKUP(B150,Pricelist!A:I,6,0),C150),"") ->  | E150: =IF(B150>0,VLOOKUP(B150,Pricelist!A:I,2,FALSE),"") ->  | F150: =IF(B150>0,VLOOKUP(B150,Pricelist!A:I,5,0),"") ->  | G150: =IF(B150,VLOOKUP(B150,Pricelist!A:I,3,0),"") ->  | J150: =SUMIF(Pricelist!A:A,B150,Pricelist!A:A) -> 0 | K150: =IF(B150>0,(IF(C150>D150,VLOOKUP(B150,Pricelist!A:I,9,FALSE),"")),"") ->  | L150: =IF(B150>0,VLOOKUP(B150,Pricelist!A:I,7,FALSE),"") -> 
A151: 142 | D151: =IF(C151>0,IF(C151>VLOOKUP(B151,Pricelist!A:I,6,0),VLOOKUP(B151,Pricelist!A:I,6,0),C151),"") ->  | E151: =IF(B151>0,VLOOKUP(B151,Pricelist!A:I,2,FALSE),"") ->  | F151: =IF(B151>0,VLOOKUP(B151,Pricelist!A:I,5,0),"") ->  | G151: =IF(B151,VLOOKUP(B151,Pricelist!A:I,3,0),"") ->  | J151: =SUMIF(Pricelist!A:A,B151,Pricelist!A:A) -> 0 | K151: =IF(B151>0,(IF(C151>D151,VLOOKUP(B151,Pricelist!A:I,9,FALSE),"")),"") ->  | L151: =IF(B151>0,VLOOKUP(B151,Pricelist!A:I,7,FALSE),"") -> 
A152: 143 | D152: =IF(C152>0,IF(C152>VLOOKUP(B152,Pricelist!A:I,6,0),VLOOKUP(B152,Pricelist!A:I,6,0),C152),"") ->  | E152: =IF(B152>0,VLOOKUP(B152,Pricelist!A:I,2,FALSE),"") ->  | F152: =IF(B152>0,VLOOKUP(B152,Pricelist!A:I,5,0),"") ->  | G152: =IF(B152,VLOOKUP(B152,Pricelist!A:I,3,0),"") ->  | J152: =SUMIF(Pricelist!A:A,B152,Pricelist!A:A) -> 0 | K152: =IF(B152>0,(IF(C152>D152,VLOOKUP(B152,Pricelist!A:I,9,FALSE),"")),"") ->  | L152: =IF(B152>0,VLOOKUP(B152,Pricelist!A:I,7,FALSE),"") -> 
A153: 144 | D153: =IF(C153>0,IF(C153>VLOOKUP(B153,Pricelist!A:I,6,0),VLOOKUP(B153,Pricelist!A:I,6,0),C153),"") ->  | E153: =IF(B153>0,VLOOKUP(B153,Pricelist!A:I,2,FALSE),"") ->  | F153: =IF(B153>0,VLOOKUP(B153,Pricelist!A:I,5,0),"") ->  | G153: =IF(B153,VLOOKUP(B153,Pricelist!A:I,3,0),"") ->  | J153: =SUMIF(Pricelist!A:A,B153,Pricelist!A:A) -> 0 | K153: =IF(B153>0,(IF(C153>D153,VLOOKUP(B153,Pricelist!A:I,9,FALSE),"")),"") ->  | L153: =IF(B153>0,VLOOKUP(B153,Pricelist!A:I,7,FALSE),"") -> 
A154: 145 | D154: =IF(C154>0,IF(C154>VLOOKUP(B154,Pricelist!A:I,6,0),VLOOKUP(B154,Pricelist!A:I,6,0),C154),"") ->  | E154: =IF(B154>0,VLOOKUP(B154,Pricelist!A:I,2,FALSE),"") ->  | F154: =IF(B154>0,VLOOKUP(B154,Pricelist!A:I,5,0),"") ->  | G154: =IF(B154,VLOOKUP(B154,Pricelist!A:I,3,0),"") ->  | J154: =SUMIF(Pricelist!A:A,B154,Pricelist!A:A) -> 0 | K154: =IF(B154>0,(IF(C154>D154,VLOOKUP(B154,Pricelist!A:I,9,FALSE),"")),"") ->  | L154: =IF(B154>0,VLOOKUP(B154,Pricelist!A:I,7,FALSE),"") -> 
A155: 146 | D155: =IF(C155>0,IF(C155>VLOOKUP(B155,Pricelist!A:I,6,0),VLOOKUP(B155,Pricelist!A:I,6,0),C155),"") ->  | E155: =IF(B155>0,VLOOKUP(B155,Pricelist!A:I,2,FALSE),"") ->  | F155: =IF(B155>0,VLOOKUP(B155,Pricelist!A:I,5,0),"") ->  | G155: =IF(B155,VLOOKUP(B155,Pricelist!A:I,3,0),"") ->  | J155: =SUMIF(Pricelist!A:A,B155,Pricelist!A:A) -> 0 | K155: =IF(B155>0,(IF(C155>D155,VLOOKUP(B155,Pricelist!A:I,9,FALSE),"")),"") ->  | L155: =IF(B155>0,VLOOKUP(B155,Pricelist!A:I,7,FALSE),"") -> 
A156: 147 | D156: =IF(C156>0,IF(C156>VLOOKUP(B156,Pricelist!A:I,6,0),VLOOKUP(B156,Pricelist!A:I,6,0),C156),"") ->  | E156: =IF(B156>0,VLOOKUP(B156,Pricelist!A:I,2,FALSE),"") ->  | F156: =IF(B156>0,VLOOKUP(B156,Pricelist!A:I,5,0),"") ->  | G156: =IF(B156,VLOOKUP(B156,Pricelist!A:I,3,0),"") ->  | J156: =SUMIF(Pricelist!A:A,B156,Pricelist!A:A) -> 0 | K156: =IF(B156>0,(IF(C156>D156,VLOOKUP(B156,Pricelist!A:I,9,FALSE),"")),"") ->  | L156: =IF(B156>0,VLOOKUP(B156,Pricelist!A:I,7,FALSE),"") -> 
A157: 148 | D157: =IF(C157>0,IF(C157>VLOOKUP(B157,Pricelist!A:I,6,0),VLOOKUP(B157,Pricelist!A:I,6,0),C157),"") ->  | E157: =IF(B157>0,VLOOKUP(B157,Pricelist!A:I,2,FALSE),"") ->  | F157: =IF(B157>0,VLOOKUP(B157,Pricelist!A:I,5,0),"") ->  | G157: =IF(B157,VLOOKUP(B157,Pricelist!A:I,3,0),"") ->  | J157: =SUMIF(Pricelist!A:A,B157,Pricelist!A:A) -> 0 | K157: =IF(B157>0,(IF(C157>D157,VLOOKUP(B157,Pricelist!A:I,9,FALSE),"")),"") ->  | L157: =IF(B157>0,VLOOKUP(B157,Pricelist!A:I,7,FALSE),"") -> 
A158: 149 | D158: =IF(C158>0,IF(C158>VLOOKUP(B158,Pricelist!A:I,6,0),VLOOKUP(B158,Pricelist!A:I,6,0),C158),"") ->  | E158: =IF(B158>0,VLOOKUP(B158,Pricelist!A:I,2,FALSE),"") ->  | F158: =IF(B158>0,VLOOKUP(B158,Pricelist!A:I,5,0),"") ->  | G158: =IF(B158,VLOOKUP(B158,Pricelist!A:I,3,0),"") ->  | J158: =SUMIF(Pricelist!A:A,B158,Pricelist!A:A) -> 0 | K158: =IF(B158>0,(IF(C158>D158,VLOOKUP(B158,Pricelist!A:I,9,FALSE),"")),"") ->  | L158: =IF(B158>0,VLOOKUP(B158,Pricelist!A:I,7,FALSE),"") -> 
A159: 150 | D159: =IF(C159>0,IF(C159>VLOOKUP(B159,Pricelist!A:I,6,0),VLOOKUP(B159,Pricelist!A:I,6,0),C159),"") ->  | E159: =IF(B159>0,VLOOKUP(B159,Pricelist!A:I,2,FALSE),"") ->  | F159: =IF(B159>0,VLOOKUP(B159,Pricelist!A:I,5,0),"") ->  | G159: =IF(B159,VLOOKUP(B159,Pricelist!A:I,3,0),"") ->  | J159: =SUMIF(Pricelist!A:A,B159,Pricelist!A:A) -> 0 | K159: =IF(B159>0,(IF(C159>D159,VLOOKUP(B159,Pricelist!A:I,9,FALSE),"")),"") ->  | L159: =IF(B159>0,VLOOKUP(B159,Pricelist!A:I,7,FALSE),"") -> 
A160: 151 | D160: =IF(C160>0,IF(C160>VLOOKUP(B160,Pricelist!A:I,6,0),VLOOKUP(B160,Pricelist!A:I,6,0),C160),"") ->  | E160: =IF(B160>0,VLOOKUP(B160,Pricelist!A:I,2,FALSE),"") ->  | F160: =IF(B160>0,VLOOKUP(B160,Pricelist!A:I,5,0),"") ->  | G160: =IF(B160,VLOOKUP(B160,Pricelist!A:I,3,0),"") ->  | J160: =SUMIF(Pricelist!A:A,B160,Pricelist!A:A) -> 0 | K160: =IF(B160>0,(IF(C160>D160,VLOOKUP(B160,Pricelist!A:I,9,FALSE),"")),"") ->  | L160: =IF(B160>0,VLOOKUP(B160,Pricelist!A:I,7,FALSE),"") -> 
A161: 152 | D161: =IF(C161>0,IF(C161>VLOOKUP(B161,Pricelist!A:I,6,0),VLOOKUP(B161,Pricelist!A:I,6,0),C161),"") ->  | E161: =IF(B161>0,VLOOKUP(B161,Pricelist!A:I,2,FALSE),"") ->  | F161: =IF(B161>0,VLOOKUP(B161,Pricelist!A:I,5,0),"") ->  | G161: =IF(B161,VLOOKUP(B161,Pricelist!A:I,3,0),"") ->  | J161: =SUMIF(Pricelist!A:A,B161,Pricelist!A:A) -> 0 | K161: =IF(B161>0,(IF(C161>D161,VLOOKUP(B161,Pricelist!A:I,9,FALSE),"")),"") ->  | L161: =IF(B161>0,VLOOKUP(B161,Pricelist!A:I,7,FALSE),"") -> 
A162: 153 | D162: =IF(C162>0,IF(C162>VLOOKUP(B162,Pricelist!A:I,6,0),VLOOKUP(B162,Pricelist!A:I,6,0),C162),"") ->  | E162: =IF(B162>0,VLOOKUP(B162,Pricelist!A:I,2,FALSE),"") ->  | F162: =IF(B162>0,VLOOKUP(B162,Pricelist!A:I,5,0),"") ->  | G162: =IF(B162,VLOOKUP(B162,Pricelist!A:I,3,0),"") ->  | J162: =SUMIF(Pricelist!A:A,B162,Pricelist!A:A) -> 0 | K162: =IF(B162>0,(IF(C162>D162,VLOOKUP(B162,Pricelist!A:I,9,FALSE),"")),"") ->  | L162: =IF(B162>0,VLOOKUP(B162,Pricelist!A:I,7,FALSE),"") -> 
A163: 154 | D163: =IF(C163>0,IF(C163>VLOOKUP(B163,Pricelist!A:I,6,0),VLOOKUP(B163,Pricelist!A:I,6,0),C163),"") ->  | E163: =IF(B163>0,VLOOKUP(B163,Pricelist!A:I,2,FALSE),"") ->  | F163: =IF(B163>0,VLOOKUP(B163,Pricelist!A:I,5,0),"") ->  | G163: =IF(B163,VLOOKUP(B163,Pricelist!A:I,3,0),"") ->  | J163: =SUMIF(Pricelist!A:A,B163,Pricelist!A:A) -> 0 | K163: =IF(B163>0,(IF(C163>D163,VLOOKUP(B163,Pricelist!A:I,9,FALSE),"")),"") ->  | L163: =IF(B163>0,VLOOKUP(B163,Pricelist!A:I,7,FALSE),"") -> 
A164: 155 | D164: =IF(C164>0,IF(C164>VLOOKUP(B164,Pricelist!A:I,6,0),VLOOKUP(B164,Pricelist!A:I,6,0),C164),"") ->  | E164: =IF(B164>0,VLOOKUP(B164,Pricelist!A:I,2,FALSE),"") ->  | F164: =IF(B164>0,VLOOKUP(B164,Pricelist!A:I,5,0),"") ->  | G164: =IF(B164,VLOOKUP(B164,Pricelist!A:I,3,0),"") ->  | J164: =SUMIF(Pricelist!A:A,B164,Pricelist!A:A) -> 0 | K164: =IF(B164>0,(IF(C164>D164,VLOOKUP(B164,Pricelist!A:I,9,FALSE),"")),"") ->  | L164: =IF(B164>0,VLOOKUP(B164,Pricelist!A:I,7,FALSE),"") -> 
A165: 156 | D165: =IF(C165>0,IF(C165>VLOOKUP(B165,Pricelist!A:I,6,0),VLOOKUP(B165,Pricelist!A:I,6,0),C165),"") ->  | E165: =IF(B165>0,VLOOKUP(B165,Pricelist!A:I,2,FALSE),"") ->  | F165: =IF(B165>0,VLOOKUP(B165,Pricelist!A:I,5,0),"") ->  | G165: =IF(B165,VLOOKUP(B165,Pricelist!A:I,3,0),"") ->  | J165: =SUMIF(Pricelist!A:A,B165,Pricelist!A:A) -> 0 | K165: =IF(B165>0,(IF(C165>D165,VLOOKUP(B165,Pricelist!A:I,9,FALSE),"")),"") ->  | L165: =IF(B165>0,VLOOKUP(B165,Pricelist!A:I,7,FALSE),"") -> 
A166: 157 | D166: =IF(C166>0,IF(C166>VLOOKUP(B166,Pricelist!A:I,6,0),VLOOKUP(B166,Pricelist!A:I,6,0),C166),"") ->  | E166: =IF(B166>0,VLOOKUP(B166,Pricelist!A:I,2,FALSE),"") ->  | F166: =IF(B166>0,VLOOKUP(B166,Pricelist!A:I,5,0),"") ->  | G166: =IF(B166,VLOOKUP(B166,Pricelist!A:I,3,0),"") ->  | J166: =SUMIF(Pricelist!A:A,B166,Pricelist!A:A) -> 0 | K166: =IF(B166>0,(IF(C166>D166,VLOOKUP(B166,Pricelist!A:I,9,FALSE),"")),"") ->  | L166: =IF(B166>0,VLOOKUP(B166,Pricelist!A:I,7,FALSE),"") -> 
A167: 158 | D167: =IF(C167>0,IF(C167>VLOOKUP(B167,Pricelist!A:I,6,0),VLOOKUP(B167,Pricelist!A:I,6,0),C167),"") ->  | E167: =IF(B167>0,VLOOKUP(B167,Pricelist!A:I,2,FALSE),"") ->  | F167: =IF(B167>0,VLOOKUP(B167,Pricelist!A:I,5,0),"") ->  | G167: =IF(B167,VLOOKUP(B167,Pricelist!A:I,3,0),"") ->  | J167: =SUMIF(Pricelist!A:A,B167,Pricelist!A:A) -> 0 | K167: =IF(B167>0,(IF(C167>D167,VLOOKUP(B167,Pricelist!A:I,9,FALSE),"")),"") ->  | L167: =IF(B167>0,VLOOKUP(B167,Pricelist!A:I,7,FALSE),"") -> 
A168: 159 | D168: =IF(C168>0,IF(C168>VLOOKUP(B168,Pricelist!A:I,6,0),VLOOKUP(B168,Pricelist!A:I,6,0),C168),"") ->  | E168: =IF(B168>0,VLOOKUP(B168,Pricelist!A:I,2,FALSE),"") ->  | F168: =IF(B168>0,VLOOKUP(B168,Pricelist!A:I,5,0),"") ->  | G168: =IF(B168,VLOOKUP(B168,Pricelist!A:I,3,0),"") ->  | J168: =SUMIF(Pricelist!A:A,B168,Pricelist!A:A) -> 0 | K168: =IF(B168>0,(IF(C168>D168,VLOOKUP(B168,Pricelist!A:I,9,FALSE),"")),"") ->  | L168: =IF(B168>0,VLOOKUP(B168,Pricelist!A:I,7,FALSE),"") -> 
A169: 160 | D169: =IF(C169>0,IF(C169>VLOOKUP(B169,Pricelist!A:I,6,0),VLOOKUP(B169,Pricelist!A:I,6,0),C169),"") ->  | E169: =IF(B169>0,VLOOKUP(B169,Pricelist!A:I,2,FALSE),"") ->  | F169: =IF(B169>0,VLOOKUP(B169,Pricelist!A:I,5,0),"") ->  | G169: =IF(B169,VLOOKUP(B169,Pricelist!A:I,3,0),"") ->  | J169: =SUMIF(Pricelist!A:A,B169,Pricelist!A:A) -> 0 | K169: =IF(B169>0,(IF(C169>D169,VLOOKUP(B169,Pricelist!A:I,9,FALSE),"")),"") ->  | L169: =IF(B169>0,VLOOKUP(B169,Pricelist!A:I,7,FALSE),"") -> 
A170: 161 | D170: =IF(C170>0,IF(C170>VLOOKUP(B170,Pricelist!A:I,6,0),VLOOKUP(B170,Pricelist!A:I,6,0),C170),"") ->  | E170: =IF(B170>0,VLOOKUP(B170,Pricelist!A:I,2,FALSE),"") ->  | F170: =IF(B170>0,VLOOKUP(B170,Pricelist!A:I,5,0),"") ->  | G170: =IF(B170,VLOOKUP(B170,Pricelist!A:I,3,0),"") ->  | J170: =SUMIF(Pricelist!A:A,B170,Pricelist!A:A) -> 0 | K170: =IF(B170>0,(IF(C170>D170,VLOOKUP(B170,Pricelist!A:I,9,FALSE),"")),"") ->  | L170: =IF(B170>0,VLOOKUP(B170,Pricelist!A:I,7,FALSE),"") -> 
A171: 162 | D171: =IF(C171>0,IF(C171>VLOOKUP(B171,Pricelist!A:I,6,0),VLOOKUP(B171,Pricelist!A:I,6,0),C171),"") ->  | E171: =IF(B171>0,VLOOKUP(B171,Pricelist!A:I,2,FALSE),"") ->  | F171: =IF(B171>0,VLOOKUP(B171,Pricelist!A:I,5,0),"") ->  | G171: =IF(B171,VLOOKUP(B171,Pricelist!A:I,3,0),"") ->  | J171: =SUMIF(Pricelist!A:A,B171,Pricelist!A:A) -> 0 | K171: =IF(B171>0,(IF(C171>D171,VLOOKUP(B171,Pricelist!A:I,9,FALSE),"")),"") ->  | L171: =IF(B171>0,VLOOKUP(B171,Pricelist!A:I,7,FALSE),"") -> 
A172: 163 | D172: =IF(C172>0,IF(C172>VLOOKUP(B172,Pricelist!A:I,6,0),VLOOKUP(B172,Pricelist!A:I,6,0),C172),"") ->  | E172: =IF(B172>0,VLOOKUP(B172,Pricelist!A:I,2,FALSE),"") ->  | F172: =IF(B172>0,VLOOKUP(B172,Pricelist!A:I,5,0),"") ->  | G172: =IF(B172,VLOOKUP(B172,Pricelist!A:I,3,0),"") ->  | J172: =SUMIF(Pricelist!A:A,B172,Pricelist!A:A) -> 0 | K172: =IF(B172>0,(IF(C172>D172,VLOOKUP(B172,Pricelist!A:I,9,FALSE),"")),"") ->  | L172: =IF(B172>0,VLOOKUP(B172,Pricelist!A:I,7,FALSE),"") -> 
A173: 164 | D173: =IF(C173>0,IF(C173>VLOOKUP(B173,Pricelist!A:I,6,0),VLOOKUP(B173,Pricelist!A:I,6,0),C173),"") ->  | E173: =IF(B173>0,VLOOKUP(B173,Pricelist!A:I,2,FALSE),"") ->  | F173: =IF(B173>0,VLOOKUP(B173,Pricelist!A:I,5,0),"") ->  | G173: =IF(B173,VLOOKUP(B173,Pricelist!A:I,3,0),"") ->  | J173: =SUMIF(Pricelist!A:A,B173,Pricelist!A:A) -> 0 | K173: =IF(B173>0,(IF(C173>D173,VLOOKUP(B173,Pricelist!A:I,9,FALSE),"")),"") ->  | L173: =IF(B173>0,VLOOKUP(B173,Pricelist!A:I,7,FALSE),"") -> 
A174: 165 | D174: =IF(C174>0,IF(C174>VLOOKUP(B174,Pricelist!A:I,6,0),VLOOKUP(B174,Pricelist!A:I,6,0),C174),"") ->  | E174: =IF(B174>0,VLOOKUP(B174,Pricelist!A:I,2,FALSE),"") ->  | F174: =IF(B174>0,VLOOKUP(B174,Pricelist!A:I,5,0),"") ->  | G174: =IF(B174,VLOOKUP(B174,Pricelist!A:I,3,0),"") ->  | J174: =SUMIF(Pricelist!A:A,B174,Pricelist!A:A) -> 0 | K174: =IF(B174>0,(IF(C174>D174,VLOOKUP(B174,Pricelist!A:I,9,FALSE),"")),"") ->  | L174: =IF(B174>0,VLOOKUP(B174,Pricelist!A:I,7,FALSE),"") -> 
A175: 166 | D175: =IF(C175>0,IF(C175>VLOOKUP(B175,Pricelist!A:I,6,0),VLOOKUP(B175,Pricelist!A:I,6,0),C175),"") ->  | E175: =IF(B175>0,VLOOKUP(B175,Pricelist!A:I,2,FALSE),"") ->  | F175: =IF(B175>0,VLOOKUP(B175,Pricelist!A:I,5,0),"") ->  | G175: =IF(B175,VLOOKUP(B175,Pricelist!A:I,3,0),"") ->  | J175: =SUMIF(Pricelist!A:A,B175,Pricelist!A:A) -> 0 | K175: =IF(B175>0,(IF(C175>D175,VLOOKUP(B175,Pricelist!A:I,9,FALSE),"")),"") ->  | L175: =IF(B175>0,VLOOKUP(B175,Pricelist!A:I,7,FALSE),"") -> 
A176: 167 | D176: =IF(C176>0,IF(C176>VLOOKUP(B176,Pricelist!A:I,6,0),VLOOKUP(B176,Pricelist!A:I,6,0),C176),"") ->  | E176: =IF(B176>0,VLOOKUP(B176,Pricelist!A:I,2,FALSE),"") ->  | F176: =IF(B176>0,VLOOKUP(B176,Pricelist!A:I,5,0),"") ->  | G176: =IF(B176,VLOOKUP(B176,Pricelist!A:I,3,0),"") ->  | J176: =SUMIF(Pricelist!A:A,B176,Pricelist!A:A) -> 0 | K176: =IF(B176>0,(IF(C176>D176,VLOOKUP(B176,Pricelist!A:I,9,FALSE),"")),"") ->  | L176: =IF(B176>0,VLOOKUP(B176,Pricelist!A:I,7,FALSE),"") -> 
A177: 168 | D177: =IF(C177>0,IF(C177>VLOOKUP(B177,Pricelist!A:I,6,0),VLOOKUP(B177,Pricelist!A:I,6,0),C177),"") ->  | E177: =IF(B177>0,VLOOKUP(B177,Pricelist!A:I,2,FALSE),"") ->  | F177: =IF(B177>0,VLOOKUP(B177,Pricelist!A:I,5,0),"") ->  | G177: =IF(B177,VLOOKUP(B177,Pricelist!A:I,3,0),"") ->  | J177: =SUMIF(Pricelist!A:A,B177,Pricelist!A:A) -> 0 | K177: =IF(B177>0,(IF(C177>D177,VLOOKUP(B177,Pricelist!A:I,9,FALSE),"")),"") ->  | L177: =IF(B177>0,VLOOKUP(B177,Pricelist!A:I,7,FALSE),"") -> 
A178: 169 | D178: =IF(C178>0,IF(C178>VLOOKUP(B178,Pricelist!A:I,6,0),VLOOKUP(B178,Pricelist!A:I,6,0),C178),"") ->  | E178: =IF(B178>0,VLOOKUP(B178,Pricelist!A:I,2,FALSE),"") ->  | F178: =IF(B178>0,VLOOKUP(B178,Pricelist!A:I,5,0),"") ->  | G178: =IF(B178,VLOOKUP(B178,Pricelist!A:I,3,0),"") ->  | J178: =SUMIF(Pricelist!A:A,B178,Pricelist!A:A) -> 0 | K178: =IF(B178>0,(IF(C178>D178,VLOOKUP(B178,Pricelist!A:I,9,FALSE),"")),"") ->  | L178: =IF(B178>0,VLOOKUP(B178,Pricelist!A:I,7,FALSE),"") -> 
A179: 170 | D179: =IF(C179>0,IF(C179>VLOOKUP(B179,Pricelist!A:I,6,0),VLOOKUP(B179,Pricelist!A:I,6,0),C179),"") ->  | E179: =IF(B179>0,VLOOKUP(B179,Pricelist!A:I,2,FALSE),"") ->  | F179: =IF(B179>0,VLOOKUP(B179,Pricelist!A:I,5,0),"") ->  | G179: =IF(B179,VLOOKUP(B179,Pricelist!A:I,3,0),"") ->  | J179: =SUMIF(Pricelist!A:A,B179,Pricelist!A:A) -> 0 | K179: =IF(B179>0,(IF(C179>D179,VLOOKUP(B179,Pricelist!A:I,9,FALSE),"")),"") ->  | L179: =IF(B179>0,VLOOKUP(B179,Pricelist!A:I,7,FALSE),"") -> 
A180: 171 | D180: =IF(C180>0,IF(C180>VLOOKUP(B180,Pricelist!A:I,6,0),VLOOKUP(B180,Pricelist!A:I,6,0),C180),"") ->  | E180: =IF(B180>0,VLOOKUP(B180,Pricelist!A:I,2,FALSE),"") ->  | F180: =IF(B180>0,VLOOKUP(B180,Pricelist!A:I,5,0),"") ->  | G180: =IF(B180,VLOOKUP(B180,Pricelist!A:I,3,0),"") ->  | J180: =SUMIF(Pricelist!A:A,B180,Pricelist!A:A) -> 0 | K180: =IF(B180>0,(IF(C180>D180,VLOOKUP(B180,Pricelist!A:I,9,FALSE),"")),"") ->  | L180: =IF(B180>0,VLOOKUP(B180,Pricelist!A:I,7,FALSE),"") -> 
A181: 172 | D181: =IF(C181>0,IF(C181>VLOOKUP(B181,Pricelist!A:I,6,0),VLOOKUP(B181,Pricelist!A:I,6,0),C181),"") ->  | E181: =IF(B181>0,VLOOKUP(B181,Pricelist!A:I,2,FALSE),"") ->  | F181: =IF(B181>0,VLOOKUP(B181,Pricelist!A:I,5,0),"") ->  | G181: =IF(B181,VLOOKUP(B181,Pricelist!A:I,3,0),"") ->  | J181: =SUMIF(Pricelist!A:A,B181,Pricelist!A:A) -> 0 | K181: =IF(B181>0,(IF(C181>D181,VLOOKUP(B181,Pricelist!A:I,9,FALSE),"")),"") ->  | L181: =IF(B181>0,VLOOKUP(B181,Pricelist!A:I,7,FALSE),"") -> 
A182: 173 | D182: =IF(C182>0,IF(C182>VLOOKUP(B182,Pricelist!A:I,6,0),VLOOKUP(B182,Pricelist!A:I,6,0),C182),"") ->  | E182: =IF(B182>0,VLOOKUP(B182,Pricelist!A:I,2,FALSE),"") ->  | F182: =IF(B182>0,VLOOKUP(B182,Pricelist!A:I,5,0),"") ->  | G182: =IF(B182,VLOOKUP(B182,Pricelist!A:I,3,0),"") ->  | J182: =SUMIF(Pricelist!A:A,B182,Pricelist!A:A) -> 0 | K182: =IF(B182>0,(IF(C182>D182,VLOOKUP(B182,Pricelist!A:I,9,FALSE),"")),"") ->  | L182: =IF(B182>0,VLOOKUP(B182,Pricelist!A:I,7,FALSE),"") -> 
A183: 174 | D183: =IF(C183>0,IF(C183>VLOOKUP(B183,Pricelist!A:I,6,0),VLOOKUP(B183,Pricelist!A:I,6,0),C183),"") ->  | E183: =IF(B183>0,VLOOKUP(B183,Pricelist!A:I,2,FALSE),"") ->  | F183: =IF(B183>0,VLOOKUP(B183,Pricelist!A:I,5,0),"") ->  | G183: =IF(B183,VLOOKUP(B183,Pricelist!A:I,3,0),"") ->  | J183: =SUMIF(Pricelist!A:A,B183,Pricelist!A:A) -> 0 | K183: =IF(B183>0,(IF(C183>D183,VLOOKUP(B183,Pricelist!A:I,9,FALSE),"")),"") ->  | L183: =IF(B183>0,VLOOKUP(B183,Pricelist!A:I,7,FALSE),"") -> 
A184: 175 | D184: =IF(C184>0,IF(C184>VLOOKUP(B184,Pricelist!A:I,6,0),VLOOKUP(B184,Pricelist!A:I,6,0),C184),"") ->  | E184: =IF(B184>0,VLOOKUP(B184,Pricelist!A:I,2,FALSE),"") ->  | F184: =IF(B184>0,VLOOKUP(B184,Pricelist!A:I,5,0),"") ->  | G184: =IF(B184,VLOOKUP(B184,Pricelist!A:I,3,0),"") ->  | J184: =SUMIF(Pricelist!A:A,B184,Pricelist!A:A) -> 0 | K184: =IF(B184>0,(IF(C184>D184,VLOOKUP(B184,Pricelist!A:I,9,FALSE),"")),"") ->  | L184: =IF(B184>0,VLOOKUP(B184,Pricelist!A:I,7,FALSE),"") -> 
A185: 176 | D185: =IF(C185>0,IF(C185>VLOOKUP(B185,Pricelist!A:I,6,0),VLOOKUP(B185,Pricelist!A:I,6,0),C185),"") ->  | E185: =IF(B185>0,VLOOKUP(B185,Pricelist!A:I,2,FALSE),"") ->  | F185: =IF(B185>0,VLOOKUP(B185,Pricelist!A:I,5,0),"") ->  | G185: =IF(B185,VLOOKUP(B185,Pricelist!A:I,3,0),"") ->  | J185: =SUMIF(Pricelist!A:A,B185,Pricelist!A:A) -> 0 | K185: =IF(B185>0,(IF(C185>D185,VLOOKUP(B185,Pricelist!A:I,9,FALSE),"")),"") ->  | L185: =IF(B185>0,VLOOKUP(B185,Pricelist!A:I,7,FALSE),"") -> 
A186: 177 | D186: =IF(C186>0,IF(C186>VLOOKUP(B186,Pricelist!A:I,6,0),VLOOKUP(B186,Pricelist!A:I,6,0),C186),"") ->  | E186: =IF(B186>0,VLOOKUP(B186,Pricelist!A:I,2,FALSE),"") ->  | F186: =IF(B186>0,VLOOKUP(B186,Pricelist!A:I,5,0),"") ->  | G186: =IF(B186,VLOOKUP(B186,Pricelist!A:I,3,0),"") ->  | J186: =SUMIF(Pricelist!A:A,B186,Pricelist!A:A) -> 0 | K186: =IF(B186>0,(IF(C186>D186,VLOOKUP(B186,Pricelist!A:I,9,FALSE),"")),"") ->  | L186: =IF(B186>0,VLOOKUP(B186,Pricelist!A:I,7,FALSE),"") -> 
A187: 178 | D187: =IF(C187>0,IF(C187>VLOOKUP(B187,Pricelist!A:I,6,0),VLOOKUP(B187,Pricelist!A:I,6,0),C187),"") ->  | E187: =IF(B187>0,VLOOKUP(B187,Pricelist!A:I,2,FALSE),"") ->  | F187: =IF(B187>0,VLOOKUP(B187,Pricelist!A:I,5,0),"") ->  | G187: =IF(B187,VLOOKUP(B187,Pricelist!A:I,3,0),"") ->  | J187: =SUMIF(Pricelist!A:A,B187,Pricelist!A:A) -> 0 | K187: =IF(B187>0,(IF(C187>D187,VLOOKUP(B187,Pricelist!A:I,9,FALSE),"")),"") ->  | L187: =IF(B187>0,VLOOKUP(B187,Pricelist!A:I,7,FALSE),"") -> 
A188: 179 | D188: =IF(C188>0,IF(C188>VLOOKUP(B188,Pricelist!A:I,6,0),VLOOKUP(B188,Pricelist!A:I,6,0),C188),"") ->  | E188: =IF(B188>0,VLOOKUP(B188,Pricelist!A:I,2,FALSE),"") ->  | F188: =IF(B188>0,VLOOKUP(B188,Pricelist!A:I,5,0),"") ->  | G188: =IF(B188,VLOOKUP(B188,Pricelist!A:I,3,0),"") ->  | J188: =SUMIF(Pricelist!A:A,B188,Pricelist!A:A) -> 0 | K188: =IF(B188>0,(IF(C188>D188,VLOOKUP(B188,Pricelist!A:I,9,FALSE),"")),"") ->  | L188: =IF(B188>0,VLOOKUP(B188,Pricelist!A:I,7,FALSE),"") -> 
A189: 180 | D189: =IF(C189>0,IF(C189>VLOOKUP(B189,Pricelist!A:I,6,0),VLOOKUP(B189,Pricelist!A:I,6,0),C189),"") ->  | E189: =IF(B189>0,VLOOKUP(B189,Pricelist!A:I,2,FALSE),"") ->  | F189: =IF(B189>0,VLOOKUP(B189,Pricelist!A:I,5,0),"") ->  | G189: =IF(B189,VLOOKUP(B189,Pricelist!A:I,3,0),"") ->  | J189: =SUMIF(Pricelist!A:A,B189,Pricelist!A:A) -> 0 | K189: =IF(B189>0,(IF(C189>D189,VLOOKUP(B189,Pricelist!A:I,9,FALSE),"")),"") ->  | L189: =IF(B189>0,VLOOKUP(B189,Pricelist!A:I,7,FALSE),"") -> 
A190: 181 | D190: =IF(C190>0,IF(C190>VLOOKUP(B190,Pricelist!A:I,6,0),VLOOKUP(B190,Pricelist!A:I,6,0),C190),"") ->  | E190: =IF(B190>0,VLOOKUP(B190,Pricelist!A:I,2,FALSE),"") ->  | F190: =IF(B190>0,VLOOKUP(B190,Pricelist!A:I,5,0),"") ->  | G190: =IF(B190,VLOOKUP(B190,Pricelist!A:I,3,0),"") ->  | J190: =SUMIF(Pricelist!A:A,B190,Pricelist!A:A) -> 0 | K190: =IF(B190>0,(IF(C190>D190,VLOOKUP(B190,Pricelist!A:I,9,FALSE),"")),"") ->  | L190: =IF(B190>0,VLOOKUP(B190,Pricelist!A:I,7,FALSE),"") -> 
A191: 182 | D191: =IF(C191>0,IF(C191>VLOOKUP(B191,Pricelist!A:I,6,0),VLOOKUP(B191,Pricelist!A:I,6,0),C191),"") ->  | E191: =IF(B191>0,VLOOKUP(B191,Pricelist!A:I,2,FALSE),"") ->  | F191: =IF(B191>0,VLOOKUP(B191,Pricelist!A:I,5,0),"") ->  | G191: =IF(B191,VLOOKUP(B191,Pricelist!A:I,3,0),"") ->  | J191: =SUMIF(Pricelist!A:A,B191,Pricelist!A:A) -> 0 | K191: =IF(B191>0,(IF(C191>D191,VLOOKUP(B191,Pricelist!A:I,9,FALSE),"")),"") ->  | L191: =IF(B191>0,VLOOKUP(B191,Pricelist!A:I,7,FALSE),"") -> 
A192: 183 | D192: =IF(C192>0,IF(C192>VLOOKUP(B192,Pricelist!A:I,6,0),VLOOKUP(B192,Pricelist!A:I,6,0),C192),"") ->  | E192: =IF(B192>0,VLOOKUP(B192,Pricelist!A:I,2,FALSE),"") ->  | F192: =IF(B192>0,VLOOKUP(B192,Pricelist!A:I,5,0),"") ->  | G192: =IF(B192,VLOOKUP(B192,Pricelist!A:I,3,0),"") ->  | J192: =SUMIF(Pricelist!A:A,B192,Pricelist!A:A) -> 0 | K192: =IF(B192>0,(IF(C192>D192,VLOOKUP(B192,Pricelist!A:I,9,FALSE),"")),"") ->  | L192: =IF(B192>0,VLOOKUP(B192,Pricelist!A:I,7,FALSE),"") -> 
A193: 184 | D193: =IF(C193>0,IF(C193>VLOOKUP(B193,Pricelist!A:I,6,0),VLOOKUP(B193,Pricelist!A:I,6,0),C193),"") ->  | E193: =IF(B193>0,VLOOKUP(B193,Pricelist!A:I,2,FALSE),"") ->  | F193: =IF(B193>0,VLOOKUP(B193,Pricelist!A:I,5,0),"") ->  | G193: =IF(B193,VLOOKUP(B193,Pricelist!A:I,3,0),"") ->  | J193: =SUMIF(Pricelist!A:A,B193,Pricelist!A:A) -> 0 | K193: =IF(B193>0,(IF(C193>D193,VLOOKUP(B193,Pricelist!A:I,9,FALSE),"")),"") ->  | L193: =IF(B193>0,VLOOKUP(B193,Pricelist!A:I,7,FALSE),"") -> 
A194: 185 | D194: =IF(C194>0,IF(C194>VLOOKUP(B194,Pricelist!A:I,6,0),VLOOKUP(B194,Pricelist!A:I,6,0),C194),"") ->  | E194: =IF(B194>0,VLOOKUP(B194,Pricelist!A:I,2,FALSE),"") ->  | F194: =IF(B194>0,VLOOKUP(B194,Pricelist!A:I,5,0),"") ->  | G194: =IF(B194,VLOOKUP(B194,Pricelist!A:I,3,0),"") ->  | J194: =SUMIF(Pricelist!A:A,B194,Pricelist!A:A) -> 0 | K194: =IF(B194>0,(IF(C194>D194,VLOOKUP(B194,Pricelist!A:I,9,FALSE),"")),"") ->  | L194: =IF(B194>0,VLOOKUP(B194,Pricelist!A:I,7,FALSE),"") -> 
A195: 186 | D195: =IF(C195>0,IF(C195>VLOOKUP(B195,Pricelist!A:I,6,0),VLOOKUP(B195,Pricelist!A:I,6,0),C195),"") ->  | E195: =IF(B195>0,VLOOKUP(B195,Pricelist!A:I,2,FALSE),"") ->  | F195: =IF(B195>0,VLOOKUP(B195,Pricelist!A:I,5,0),"") ->  | G195: =IF(B195,VLOOKUP(B195,Pricelist!A:I,3,0),"") ->  | J195: =SUMIF(Pricelist!A:A,B195,Pricelist!A:A) -> 0 | K195: =IF(B195>0,(IF(C195>D195,VLOOKUP(B195,Pricelist!A:I,9,FALSE),"")),"") ->  | L195: =IF(B195>0,VLOOKUP(B195,Pricelist!A:I,7,FALSE),"") -> 
A196: 187 | D196: =IF(C196>0,IF(C196>VLOOKUP(B196,Pricelist!A:I,6,0),VLOOKUP(B196,Pricelist!A:I,6,0),C196),"") ->  | E196: =IF(B196>0,VLOOKUP(B196,Pricelist!A:I,2,FALSE),"") ->  | F196: =IF(B196>0,VLOOKUP(B196,Pricelist!A:I,5,0),"") ->  | G196: =IF(B196,VLOOKUP(B196,Pricelist!A:I,3,0),"") ->  | J196: =SUMIF(Pricelist!A:A,B196,Pricelist!A:A) -> 0 | K196: =IF(B196>0,(IF(C196>D196,VLOOKUP(B196,Pricelist!A:I,9,FALSE),"")),"") ->  | L196: =IF(B196>0,VLOOKUP(B196,Pricelist!A:I,7,FALSE),"") -> 
A197: 188 | D197: =IF(C197>0,IF(C197>VLOOKUP(B197,Pricelist!A:I,6,0),VLOOKUP(B197,Pricelist!A:I,6,0),C197),"") ->  | E197: =IF(B197>0,VLOOKUP(B197,Pricelist!A:I,2,FALSE),"") ->  | F197: =IF(B197>0,VLOOKUP(B197,Pricelist!A:I,5,0),"") ->  | G197: =IF(B197,VLOOKUP(B197,Pricelist!A:I,3,0),"") ->  | J197: =SUMIF(Pricelist!A:A,B197,Pricelist!A:A) -> 0 | K197: =IF(B197>0,(IF(C197>D197,VLOOKUP(B197,Pricelist!A:I,9,FALSE),"")),"") ->  | L197: =IF(B197>0,VLOOKUP(B197,Pricelist!A:I,7,FALSE),"") -> 
A198: 189 | D198: =IF(C198>0,IF(C198>VLOOKUP(B198,Pricelist!A:I,6,0),VLOOKUP(B198,Pricelist!A:I,6,0),C198),"") ->  | E198: =IF(B198>0,VLOOKUP(B198,Pricelist!A:I,2,FALSE),"") ->  | F198: =IF(B198>0,VLOOKUP(B198,Pricelist!A:I,5,0),"") ->  | G198: =IF(B198,VLOOKUP(B198,Pricelist!A:I,3,0),"") ->  | J198: =SUMIF(Pricelist!A:A,B198,Pricelist!A:A) -> 0 | K198: =IF(B198>0,(IF(C198>D198,VLOOKUP(B198,Pricelist!A:I,9,FALSE),"")),"") ->  | L198: =IF(B198>0,VLOOKUP(B198,Pricelist!A:I,7,FALSE),"") -> 
A199: 190 | D199: =IF(C199>0,IF(C199>VLOOKUP(B199,Pricelist!A:I,6,0),VLOOKUP(B199,Pricelist!A:I,6,0),C199),"") ->  | E199: =IF(B199>0,VLOOKUP(B199,Pricelist!A:I,2,FALSE),"") ->  | F199: =IF(B199>0,VLOOKUP(B199,Pricelist!A:I,5,0),"") ->  | G199: =IF(B199,VLOOKUP(B199,Pricelist!A:I,3,0),"") ->  | J199: =SUMIF(Pricelist!A:A,B199,Pricelist!A:A) -> 0 | K199: =IF(B199>0,(IF(C199>D199,VLOOKUP(B199,Pricelist!A:I,9,FALSE),"")),"") ->  | L199: =IF(B199>0,VLOOKUP(B199,Pricelist!A:I,7,FALSE),"") -> 
A200: 191 | D200: =IF(C200>0,IF(C200>VLOOKUP(B200,Pricelist!A:I,6,0),VLOOKUP(B200,Pricelist!A:I,6,0),C200),"") ->  | E200: =IF(B200>0,VLOOKUP(B200,Pricelist!A:I,2,FALSE),"") ->  | F200: =IF(B200>0,VLOOKUP(B200,Pricelist!A:I,5,0),"") ->  | G200: =IF(B200,VLOOKUP(B200,Pricelist!A:I,3,0),"") ->  | J200: =SUMIF(Pricelist!A:A,B200,Pricelist!A:A) -> 0 | K200: =IF(B200>0,(IF(C200>D200,VLOOKUP(B200,Pricelist!A:I,9,FALSE),"")),"") ->  | L200: =IF(B200>0,VLOOKUP(B200,Pricelist!A:I,7,FALSE),"") -> 
A201: 192 | D201: =IF(C201>0,IF(C201>VLOOKUP(B201,Pricelist!A:I,6,0),VLOOKUP(B201,Pricelist!A:I,6,0),C201),"") ->  | E201: =IF(B201>0,VLOOKUP(B201,Pricelist!A:I,2,FALSE),"") ->  | F201: =IF(B201>0,VLOOKUP(B201,Pricelist!A:I,5,0),"") ->  | G201: =IF(B201,VLOOKUP(B201,Pricelist!A:I,3,0),"") ->  | J201: =SUMIF(Pricelist!A:A,B201,Pricelist!A:A) -> 0 | K201: =IF(B201>0,(IF(C201>D201,VLOOKUP(B201,Pricelist!A:I,9,FALSE),"")),"") ->  | L201: =IF(B201>0,VLOOKUP(B201,Pricelist!A:I,7,FALSE),"") -> 
A202: 193 | D202: =IF(C202>0,IF(C202>VLOOKUP(B202,Pricelist!A:I,6,0),VLOOKUP(B202,Pricelist!A:I,6,0),C202),"") ->  | E202: =IF(B202>0,VLOOKUP(B202,Pricelist!A:I,2,FALSE),"") ->  | F202: =IF(B202>0,VLOOKUP(B202,Pricelist!A:I,5,0),"") ->  | G202: =IF(B202,VLOOKUP(B202,Pricelist!A:I,3,0),"") ->  | I202: =IF(J202>0,IF(B202>0,D202*H202,""),"") ->  | J202: =SUMIF(Pricelist!A:A,B202,Pricelist!A:A) -> 0 | K202: =IF(B202>0,(IF(C202>D202,VLOOKUP(B202,Pricelist!A:I,9,FALSE),"")),"") ->  | L202: =IF(B202>0,VLOOKUP(B202,Pricelist!A:I,7,FALSE),"") -> 
A203: 194 | D203: =IF(C203>0,IF(C203>VLOOKUP(B203,Pricelist!A:I,6,0),VLOOKUP(B203,Pricelist!A:I,6,0),C203),"") ->  | E203: =IF(B203>0,VLOOKUP(B203,Pricelist!A:I,2,FALSE),"") ->  | F203: =IF(B203>0,VLOOKUP(B203,Pricelist!A:I,5,0),"") ->  | G203: =IF(B203,VLOOKUP(B203,Pricelist!A:I,3,0),"") ->  | H203: =IF(B203>0,G203*(1-$G$1),"") ->  | J203: =SUMIF(Pricelist!A:A,B203,Pricelist!A:A) -> 0 | K203: =IF(B203>0,(IF(C203>D203,VLOOKUP(B203,Pricelist!A:I,9,FALSE),"")),"") ->  | L203: =IF(B203>0,VLOOKUP(B203,Pricelist!A:I,7,FALSE),"") -> 
A204: 195 | D204: =IF(C204>0,IF(C204>VLOOKUP(B204,Pricelist!A:I,6,0),VLOOKUP(B204,Pricelist!A:I,6,0),C204),"") ->  | E204: =IF(B204>0,VLOOKUP(B204,Pricelist!A:I,2,FALSE),"") ->  | F204: =IF(B204>0,VLOOKUP(B204,Pricelist!A:I,5,0),"") ->  | G204: =IF(B204,VLOOKUP(B204,Pricelist!A:I,3,0),"") ->  | J204: =SUMIF(Pricelist!A:A,B204,Pricelist!A:A) -> 0 | K204: =IF(B204>0,(IF(C204>D204,VLOOKUP(B204,Pricelist!A:I,9,FALSE),"")),"") ->  | L204: =IF(B204>0,VLOOKUP(B204,Pricelist!A:I,7,FALSE),"") -> 
... 105 more rows

Sheet Pricelist
A1: Price list
A2: =NOW() -> 2024-07-29T14:33:52.050
A3: Code | B3: Product | C3: Price without VAT | D3: Category | E3: State | F3: Q-ty | G3: Small pakage | H3: Big package | I3: Delivery | J3: Pictures
A4: 10273 | B4: Kalapács, 300 g, két oldalú utofej, uvegszálas, gumírozott nyél//GROSS | C4: 2684 | D4: B | E4: Active | F4: =VLOOKUP(A4,[1]Sheet1!$A$1:$C$65512,3,FALSE) -> 77 | I4: No info | J4: =HYPERLINK(L4,"линк") -> линк | K4: https://bg.toolsworld.com/search/?query= | L4: =CONCATENATE(K4,A4) -> https://bg.toolsworld.com/search/?query=10273
A5: 10274 | B5: Kalapács, 400 g, két oldalú utofej, uvegszálas, gumírozott nyél//GROSS | C5: 3164 | D5: B | E5: Active | F5: =VLOOKUP(A5,[1]Sheet1!$A$1:$C$65512,3,FALSE) -> 461 | I5: No info | J5: линк | K5: https://bg.toolsworld.com/search/?query= | L5: https://bg.toolsworld.com/search/?query=10274
A6: 10276 | B6: Kalapács, 500 g, két oldalú utofej, uvegszálas, gumírozott nyél//GROSS | C6: 3494 | D6: B | E6: Active | F6: =VLOOKUP(A6,[1]Sheet1!$A$1:$C$65512,3,FALSE) -> 82 | I6: No info | J6: линк | K6: https://bg.toolsworld.com/search/?query= | L6: https://bg.toolsworld.com/search/?query=10276
A7: 10277 | B7: Kalapács, 600 g, két oldalú utofej, uvegszálas, gumírozott nyél//GROSS | C7: 3877 | D7: B | E7: Active | F7: =VLOOKUP(A7,[1]Sheet1!$A$1:$C$65512,3,FALSE) ->  | I7: No info | J7: линк | K7: https://bg.toolsworld.com/search/?query= | L7: https://bg.toolsworld.com/search/?query=10277
A8: 10278 | B8: Kalapács, 800 g, két oldalú utofej, uvegszálas, gumírozott nyél//GROSS | C8: 4618 | D8: B | E8: Active | F8: =VLOOKUP(A8,[1]Sheet1!$A$1:$C$65512,3,FALSE) -> 218 | I8: No info | J8: линк | K8: https://bg.toolsworld.com/search/?query= | L8: https://bg.toolsworld.com/search/?query=10278
A9: 10279 | B9: Kalapács, 1000 g, két oldalú utofej, uvegszálas, gumírozott nyél//GROSS | C9: 5242 | D9: B | E9: Active | F9: =VLOOKUP(A9,[1]Sheet1!$A$1:$C$65512,3,FALSE) -> 287 | I9: No info | J9: линк | K9: https://bg.toolsworld.com/search/?query= | L9: https://bg.toolsworld.com/search/?query=10279
A10: 10316 | B10: Kalapács 100 g. üvegszálas gumírozott fogantyú// Сибртех | C10: 894 | D10: B | E10: Active | F10: =VLOOKUP(A10,[1]Sheet1!$A$1:$C$65512,3,FALSE) ->  | I10: No info | J10: линк | K10: https://bg.toolsworld.com/search/?query= | L10: https://bg.toolsworld.com/search/?query=10316
A11: 10318 | B11: Kalapács 200 g. üvegszálas gumírozott fogantyú// Сибртех | C11: 1254 | D11: B | E11: Active | F11: =VLOOKUP(A11,[1]Sheet1!$A$1:$C$65512,3,FALSE) ->  | I11: No info | J11: линк | K11: https://bg.toolsworld.com/search/?query= | L11: https://bg.toolsworld.com/search/?query=10318
A12: 10319 | B12: Kalapács 300 g. uvegszálas gumírozott nyéllel// Sibrtech | C12: 1346 | D12: B | E12: Active | F12: =VLOOKUP(A12,[1]Sheet1!$A$1:$C$65512,3,FALSE) -> 19 | I12: No info | J12: линк | K12: https://bg.toolsworld.com/search/?query= | L12: https://bg.toolsworld.com/search/?query=10319
A13: 10321 | B13: Kalapács 400 g. üvegszálas gumírozott fogantyú// Сибртех | C13: 1770 | D13: B | E13: Active | F13: =VLOOKUP(A13,[1]Sheet1!$A$1:$C$65512,3,FALSE) ->  | I13: No info | J13: линк | K13: https://bg.toolsworld.com/search/?query= | L13: https://bg.toolsworld.com/search/?query=10321
A14: 10323 | B14: Kalapács 500 g. üvegszálas gumírozott fogantyú// Сибртех | C14: 1882 | D14: B | E14: Active | F14: =VLOOKUP(A14,[1]Sheet1!$A$1:$C$65512,3,FALSE) -> 31 | I14: No info | J14: линк | K14: https://bg.toolsworld.com/search/?query= | L14: https://bg.toolsworld.com/search/?query=10323
A15: 10325 | B15: Kalapács 600 g. üvegszálas gumírozott fogantyú// Сибртех | C15: 1994 | D15: B | E15: Active | F15: =VLOOKUP(A15,[1]Sheet1!$A$1:$C$65512,3,FALSE) ->  | I15: No info | J15: линк | K15: https://bg.toolsworld.com/search/?query= | L15: https://bg.toolsworld.com/search/?query=10325
A16: 10327 | B16: Kalapács 800 g. üvegszálas gumírozott fogantyú// Сибртех | C16: 2415 | D16: B | E16: Active | F16: =VLOOKUP(A16,[1]Sheet1!$A$1:$C$65512,3,FALSE) -> 54 | I16: No info | J16: линк | K16: https://bg.toolsworld.com/search/?query= | L16: https://bg.toolsworld.com/search/?query=10327
A17: 10329 | B17: Kalapács 1000 g. üvegszálas gumírozott fogantyú// Сибртех | C17: 2855 | D17: B | E17: Active | F17: =VLOOKUP(A17,[1]Sheet1!$A$1:$C$65512,3,FALSE) ->  | I17: No info | J17: линк | K17: https://bg.toolsworld.com/search/?query= | L17: https://bg.toolsworld.com/search/?query=10329
A18: 10372 | B18: Kalapács, két oldalú utofej, uvegszálas, gumírozott nyél, 200g//SPARTA | C18: 906 | D18: B | E18: Active | F18: =VLOOKUP(A18,[1]Sheet1!$A$1:$C$65512,3,FALSE) ->  | I18: No info | J18: линк | K18: https://bg.toolsworld.com/search/?query= | L18: https://bg.toolsworld.com/search/?query=10372
A19: 10377 | B19: Gépész kalapács, üvegszálas nyél gumi szárral, 700G// Sparta | C19: 1918 | D19: B | E19: Active | F19: =VLOOKUP(A19,[1]Sheet1!$A$1:$C$65512,3,FALSE) ->  | I19: No info | J19: линк | K19: https://bg.toolsworld.com/search/?query= | L19: https://bg.toolsworld.com/search/?query=10377
A20: 10380 | B20: Gépész kalapács, üvegszálas nyél gumi szárral, 1000G// Sparta | C20: 2159 | D20: B | E20: Active | F20: =VLOOKUP(A20,[1]Sheet1!$A$1:$C$65512,3,FALSE) ->  | I20: No info | J20: линк | K20: https://bg.toolsworld.com/search/?query= | L20: https://bg.toolsworld.com/search/?query=10380
A21: 10381 | B21: Kalapács, két oldalú utofej, uvegszálas, gumírozott nyél, 1500g//SPARTA | C21: 3044 | D21: B | E21: Active | F21: =VLOOKUP(A21,[1]Sheet1!$A$1:$C$65512,3,FALSE) ->  | I21: No info | J21: линк | K21: https://bg.toolsworld.com/search/?query= | L21: https://bg.toolsworld.com/search/?query=10381
A22: 10441 | B22: Karmos kalapács 450 g mágneses üvegszálas gumírozott nyéllel// Сибртех | C22: 1851 | D22: B | E22: Active | F22: =VLOOKUP(A22,[1]Sheet1!$A$1:$C$65512,3,FALSE) ->  | I22: No info | J22: линк | K22: https://bg.toolsworld.com/search/?query= | L22: https://bg.toolsworld.com/search/?query=10441
A23: 10475 | B23: PIRANHA fémfűrész, 300 mm, gumírozott nyél és markolat// GROSS | C23: 3961 | D23: B | E23: Active | F23: =VLOOKUP(A23,[1]Sheet1!$A$1:$C$65512,3,FALSE) -> 164 | I23: No info | J23: линк | K23: https://bg.toolsworld.com/search/?query= | L23: https://bg.toolsworld.com/search/?query=10475
A24: 10640 | B24: Masonry hammer, 400 g, wooden handle (Arefino) Russia | C24: 1987 | D24: B | E24: Active | F24: =VLOOKUP(A24,[1]Sheet1!$A$1:$C$65512,3,FALSE) ->  | I24: No info | J24: линк | K24: https://bg.toolsworld.com/search/?query= | L24: https://bg.toolsworld.com/search/?query=10640
A25: 10905 | B25: Pörölylapács, 1000 g, ejtőkovácsolt fej, fa kétszínű nyél// Sparta | C25: 1928 | D25: B | E25: Active | F25: =VLOOKUP(A25,[1]Sheet1!$A$1:$C$65512,3,FALSE) -> 9 | I25: No info | J25: линк | K25: https://bg.toolsworld.com/search/?query= | L25: https://bg.toolsworld.com/search/?query=10905
A26: 10907 | B26: Pörölylapács, 1500 g, ejtőkovácsolt fej, fa kétszínű nyél// Sparta | C26: 2629 | D26: B | E26: Active | F26: =VLOOKUP(A26,[1]Sheet1!$A$1:$C$65512,3,FALSE) ->  | I26: No info | J26: линк | K26: https://bg.toolsworld.com/search/?query= | L26: https://bg.toolsworld.com/search/?query=10907
A27: 10909 | B27: Pörölylapács, 2000 g, ejtőkovácsolt fej, fa kétszínű nyél// Sparta | C27: 3863 | D27: B | E27: Active | F27: =VLOOKUP(A27,[1]Sheet1!$A$1:$C$65512,3,FALSE) -> 83 | I27: No info | J27: линк | K27: https://bg.toolsworld.com/search/?query= | L27: https://bg.toolsworld.com/search/?query=10909
A28: 10918 | B28: Kalapács 2000g üvegszálas nyél// Сибртех | C28: 4678 | D28: B | E28: Active | F28: =VLOOKUP(A28,[1]Sheet1!$A$1:$C$65512,3,FALSE) -> 50 | I28: No info | J28: линк | K28: https://bg.toolsworld.com/search/?query= | L28: https://bg.toolsworld.com/search/?query=10918
A29: 10929 | B29: Szánkalapács, 3000 g, kovácsolt fej, fa nyél// Сибртех | C29: 7594 | D29: B | E29: Active | F29: =VLOOKUP(A29,[1]Sheet1!$A$1:$C$65512,3,FALSE) ->  | I29: No info | J29: линк | K29: https://bg.toolsworld.com/search/?query= | L29: https://bg.toolsworld.com/search/?query=10929
A30: 10931 | B30: Szánkalapács, 4000 g, kovácsolt fej, fa nyél// Сибртех | C30: 8064 | D30: B | E30: Active | F30: =VLOOKUP(A30,[1]Sheet1!$A$1:$C$65512,3,FALSE) ->  | I30: No info | J30: линк | K30: https://bg.toolsworld.com/search/?query= | L30: https://bg.toolsworld.com/search/?query=10931
A31: 10953 | B31: Stone hammer, 3000 g, forged head, wooden handle (Pavlovo) Russia | C31: 9492 | D31: B | E31: Active | F31: =VLOOKUP(A31,[1]Sheet1!$A$1:$C$65512,3,FALSE) ->  | I31: No info | J31: линк | K31: https://bg.toolsworld.com/search/?query= | L31: https://bg.toolsworld.com/search/?query=10953
A32: 10957 | B32: Ko kalapács, 4000 g, kovácsolt fej, fa fogantyú (Pavlovo) Russia | C32: 11035 | D32: B | E32: Active | F32: =VLOOKUP(A32,[1]Sheet1!$A$1:$C$65512,3,FALSE) ->  | I32: No info | J32: линк | K32: https://bg.toolsworld.com/search/?query= | L32: https://bg.toolsworld.com/search/?query=10957
A33: 10959 | B33: Ko kalapács, 5000 g, kovácsolt fej, fa fogantyú (Pavlovo) Russia | C33: 13737 | D33: B | E33: Active | F33: =VLOOKUP(A33,[1]Sheet1!$A$1:$C$65512,3,FALSE) ->  | I33: No info | J33: линк | K33: https://bg.toolsworld.com/search/?query= | L33: https://bg.toolsworld.com/search/?query=10959
A34: 10963 | B34: Ko kalapács, 6000 g, kovácsolt fej, fa fogantyú (Pavlovo) Russia | C34: 15079 | D34: B | E34: Active | F34: =VLOOKUP(A34,[1]Sheet1!$A$1:$C$65512,3,FALSE) ->  | I34: No info | J34: линк | K34: https://bg.toolsworld.com/search/?query= | L34: https://bg.toolsworld.com/search/?query=10963
A35: 10965 | B35: Ko kalapács, 7000 g, kovácsolt fej, fa fogantyú (Pavlovo) Russia | C35: 17309 | D35: B | E35: Active | F35: =VLOOKUP(A35,[1]Sheet1!$A$1:$C$65512,3,FALSE) ->  | I35: No info | J35: линк | K35: https://bg.toolsworld.com/search/?query= | L35: https://bg.toolsworld.com/search/?query=10965
A36: 10969 | B36: Ko kalapács, 8000 g, kovácsolt fej, fa fogantyú (Pavlovo) Russia | C36: 21687 | D36: B | E36: Active | F36: =VLOOKUP(A36,[1]Sheet1!$A$1:$C$65512,3,FALSE) ->  | I36: No info | J36: линк | K36: https://bg.toolsworld.com/search/?query= | L36: https://bg.toolsworld.com/search/?query=10969
A37: 11161 | B37: Gumikalapács, 1130g, fekete gumi, fa nyél//SPARTA | C37: 1454 | D37: B | E37: Active | F37: =VLOOKUP(A37,[1]Sheet1!$A$1:$C$65512,3,FALSE) -> 45 | I37: No info | J37: линк | K37: https://bg.toolsworld.com/search/?query= | L37: https://bg.toolsworld.com/search/?query=11161
A38: 11201 | B38: Bit Készlet Рz2 х 90, acél S2, 10 db// GROSS | C38: 2374 | D38: B | E38: Active | F38: =VLOOKUP(A38,[1]Sheet1!$A$1:$C$65512,3,FALSE) -> 92 | I38: No info | J38: линк | K38: https://bg.toolsworld.com/search/?query= | L38: https://bg.toolsworld.com/search/?query=11201
A39: 11209 | B39: Bit Készlet dubli Рh2-Рh2 х 45 mm, acél S2, 10 db// GROSS | C39: 1385 | D39: B | E39: Active | F39: =VLOOKUP(A39,[1]Sheet1!$A$1:$C$65512,3,FALSE) -> 39 | I39: No info | J39: линк | K39: https://bg.toolsworld.com/search/?query= | L39: https://bg.toolsworld.com/search/?query=11209
A40: 11211 | B40: Bit Készlet dubli Рh2-Рh1 х 45 mm, acél S2, 10 db// GROSS | C40: 1385 | D40: B | E40: Active | F40: =VLOOKUP(A40,[1]Sheet1!$A$1:$C$65512,3,FALSE) ->  | I40: No info | J40: линк | K40: https://bg.toolsworld.com/search/?query= | L40: https://bg.toolsworld.com/search/?query=11211
A41: 11217 | B41: Bit Készlet dubli Рh2-Рz2 х 45 mm, acél S2, 10 db// GROSS | C41: 1403 | D41: B | E41: Active | F41: =VLOOKUP(A41,[1]Sheet1!$A$1:$C$65512,3,FALSE) -> 44 | I41: No info | J41: линк | K41: https://bg.toolsworld.com/search/?query= | L41: https://bg.toolsworld.com/search/?query=11217
A42: 11262 | B42: Bit Készlet Рh2 х 70, acél S2, 10 db// GROSS | C42: 2010 | D42: B | E42: Active | F42: =VLOOKUP(A42,[1]Sheet1!$A$1:$C$65512,3,FALSE) -> 78 | I42: No info | J42: линк | K42: https://bg.toolsworld.com/search/?query= | L42: https://bg.toolsworld.com/search/?query=11262
A43: 11312 | B43: Csavarbehajtó bit készlet SPLINE, hex nyél 1 1/2, CrV, 10 mm, 11 darab, muanyag tokban//STELS | C43: 4582 | D43: B | E43: Active | F43: =VLOOKUP(A43,[1]Sheet1!$A$1:$C$65512,3,FALSE) -> 174 | I43: No info | J43: линк | K43: https://bg.toolsworld.com/search/?query= | L43: https://bg.toolsworld.com/search/?query=11312
A44: 11313 | B44: Csavarbehajtó bit készlet "HEX", hex nyél 1/2", CrV, 10 mm, 15 darab, muanyag tokban//STELS | C44: 4555 | D44: B | E44: Active | F44: =VLOOKUP(A44,[1]Sheet1!$A$1:$C$65512,3,FALSE) -> 51 | I44: No info | J44: линк | K44: https://bg.toolsworld.com/search/?query= | L44: https://bg.toolsworld.com/search/?query=11313
A45: 11315 | B45: Csavarbehajtó bit készlet "TORX", hex nyél, CrV, 10 mm, 15 darab, muanyag tokban//STELS | C45: 4024 | D45: B | E45: Active | F45: =VLOOKUP(A45,[1]Sheet1!$A$1:$C$65512,3,FALSE) ->  | I45: No info | J45: линк | K45: https://bg.toolsworld.com/search/?query= | L45: https://bg.toolsworld.com/search/?query=11315
A46: 11317 | B46: Csavarfej-rögzíto csavar megállítóval és kettos mágnessel, 1/4" //GROSS | C46: 1599 | D46: B | E46: Active | F46: =VLOOKUP(A46,[1]Sheet1!$A$1:$C$65512,3,FALSE) -> 791 | I46: No info | J46: линк | K46: https://bg.toolsworld.com/search/?query= | L46: https://bg.toolsworld.com/search/?query=11317
A47: 11318 | B47: Csavarbehajtó bit készlet "HEX", "TORX", "SPLINE", hex nyél 3/8", CrV, 42 darab, muanyag tokban//STELS | C47: 11569 | D47: B | E47: Active | F47: =VLOOKUP(A47,[1]Sheet1!$A$1:$C$65512,3,FALSE) -> 78 | I47: No info | J47: линк | K47: https://bg.toolsworld.com/search/?query= | L47: https://bg.toolsworld.com/search/?query=11318
A48: 11325 | B48: Fejkészlet SL5,0x50, acél S2, 10 db// GROSS | C48: 1134 | D48: B | E48: Active | F48: =VLOOKUP(A48,[1]Sheet1!$A$1:$C$65512,3,FALSE) -> 15 | I48: No info | J48: линк | K48: https://bg.toolsworld.com/search/?query= | L48: https://bg.toolsworld.com/search/?query=11325
A49: 11326 | B49: Fejkészlet SL6,0x50, acél S2, 10 db// GROSS | C49: 1122 | D49: B | E49: Active | F49: =VLOOKUP(A49,[1]Sheet1!$A$1:$C$65512,3,FALSE) ->  | I49: No info | J49: линк | K49: https://bg.toolsworld.com/search/?query= | L49: https://bg.toolsworld.com/search/?query=11326
A50: 11329 | B50: Fejkészlet PH1x25, acél S2, 10 db// GROSS | C50: 1041 | D50: B | E50: Active | F50: =VLOOKUP(A50,[1]Sheet1!$A$1:$C$65512,3,FALSE) -> 279 | I50: No info | J50: линк | K50: https://bg.toolsworld.com/search/?query= | L50: https://bg.toolsworld.com/search/?query=11329
A51: 11330 | B51: Fejkészlet PH2x25, acél S2, 10 db// GROSS | C51: 1037 | D51: B | E51: Active | F51: =VLOOKUP(A51,[1]Sheet1!$A$1:$C$65512,3,FALSE) -> 1158 | I51: No info | J51: линк | K51: https://bg.toolsworld.com/search/?query= | L51: https://bg.toolsworld.com/search/?query=11330
A52: 11336 | B52: Fejkészlet PH3x50, acél S2, 10 db// GROSS | C52: 1122 | D52: B | E52: Active | F52: =VLOOKUP(A52,[1]Sheet1!$A$1:$C$65512,3,FALSE) -> 190 | I52: No info | J52: линк | K52: https://bg.toolsworld.com/search/?query= | L52: https://bg.toolsworld.com/search/?query=11336
A53: 11339 | B53: Fejkészlet PH1x25, acél S2, 10 db// GROSS | C53: 1037 | D53: B | E53: Active | F53: =VLOOKUP(A53,[1]Sheet1!$A$1:$C$65512,3,FALSE) -> 86 | I53: No info | J53: линк | K53: https://bg.toolsworld.com/search/?query= | L53: https://bg.toolsworld.com/search/?query=11339
A54: 11340 | B54: Fejkészlet PH2x25, acél S2, 10 db// GROSS | C54: 1028 | D54: B | E54: Active | F54: =VLOOKUP(A54,[1]Sheet1!$A$1:$C$65512,3,FALSE) -> 378 | I54: No info | J54: линк | K54: https://bg.toolsworld.com/search/?query= | L54: https://bg.toolsworld.com/search/?query=11340
A55: 11342 | B55: Csavarfej-rögzíto csavar megállítóval és kettos mágnessel, 1/4" //GROSS | C55: 1468 | D55: B | E55: Active | F55: =VLOOKUP(A55,[1]Sheet1!$A$1:$C$65512,3,FALSE) -> 410 | I55: No info | J55: линк | K55: https://bg.toolsworld.com/search/?query= | L55: https://bg.toolsworld.com/search/?query=11342
A56: 11344 | B56: Fejkészlet PH1x50, acél S2, 10 db// GROSS | C56: 1134 | D56: B | E56: Active | F56: =VLOOKUP(A56,[1]Sheet1!$A$1:$C$65512,3,FALSE) -> 152 | I56: No info | J56: линк | K56: https://bg.toolsworld.com/search/?query= | L56: https://bg.toolsworld.com/search/?query=11344
A57: 11345 | B57: Fejkészlet PH2x50 acél S2, 10 db// GROSS | C57: 1134 | D57: B | E57: Active | F57: =VLOOKUP(A57,[1]Sheet1!$A$1:$C$65512,3,FALSE) -> 636 | I57: No info | J57: линк | K57: https://bg.toolsworld.com/search/?query= | L57: https://bg.toolsworld.com/search/?query=11345
A58: 11346 | B58: Fejkészlet PH3x50, acél S2, 10 db// GROSS | C58: 1130 | D58: B | E58: Active | F58: =VLOOKUP(A58,[1]Sheet1!$A$1:$C$65512,3,FALSE) -> 98 | I58: No info | J58: линк | K58: https://bg.toolsworld.com/search/?query= | L58: https://bg.toolsworld.com/search/?query=11346
A59: 11347 | B59: Fordított csavarhúzó fejkészlettel, CrV, 12 db//SPARTA | C59: 2163 | D59: B | E59: Active | F59: =VLOOKUP(A59,[1]Sheet1!$A$1:$C$65512,3,FALSE) -> 373 | I59: No info | J59: линк | K59: https://bg.toolsworld.com/search/?query= | L59: https://bg.toolsworld.com/search/?query=11347
A60: 11349 | B60: Fejkészlet PH1x 25, acél S2, 2 db// GROSS | C60: 375 | D60: B | E60: Active | F60: =VLOOKUP(A60,[1]Sheet1!$A$1:$C$65512,3,FALSE) -> 111 | I60: No info | J60: линк | K60: https://bg.toolsworld.com/search/?query= | L60: https://bg.toolsworld.com/search/?query=11349
A61: 11351 | B61: Fejkészlet PH2x25, acél S2, 2 db// GROSS | C61: 397 | D61: B | E61: Active | F61: =VLOOKUP(A61,[1]Sheet1!$A$1:$C$65512,3,FALSE) -> 561 | I61: No info | J61: линк | K61: https://bg.toolsworld.com/search/?query= | L61: https://bg.toolsworld.com/search/?query=11351
A62: 11355 | B62: Fejkészlet PH1x50, acél S2, 2 db// GROSS | C62: 407 | D62: B | E62: Active | F62: =VLOOKUP(A62,[1]Sheet1!$A$1:$C$65512,3,FALSE) -> 117 | I62: No info | J62: линк | K62: https://bg.toolsworld.com/search/?query= | L62: https://bg.toolsworld.com/search/?query=11355
A63: 11357 | B63: Fejkészlet PH2x50, acél S2, 2 db// GROSS | C63: 407 | D63: B | E63: Active | F63: =VLOOKUP(A63,[1]Sheet1!$A$1:$C$65512,3,FALSE) -> 903 | I63: No info | J63: линк | K63: https://bg.toolsworld.com/search/?query= | L63: https://bg.toolsworld.com/search/?query=11357
A64: 11359 | B64: Fejkészlet PH3x50, acél S2, 2 db// GROSS | C64: 407 | D64: B | E64: Active | F64: =VLOOKUP(A64,[1]Sheet1!$A$1:$C$65512,3,FALSE) -> 486 | I64: No info | J64: линк | K64: https://bg.toolsworld.com/search/?query= | L64: https://bg.toolsworld.com/search/?query=11359
A65: 11365 | B65: Fejkészlet, 1/4", mágnes adapter, acél S2, muanyag doboz, 33 db//GROSS | C65: 10381 | D65: B | E65: Active | F65: =VLOOKUP(A65,[1]Sheet1!$A$1:$C$65512,3,FALSE) -> 92 | I65: No info | J65: линк | K65: https://bg.toolsworld.com/search/?query= | L65: https://bg.toolsworld.com/search/?query=11365
A66: 11367 | B66: Rugalmas nyél csavarfejhez,145mm, 1/4" //GROSS | C66: 1022 | D66: B | E66: Active | F66: =VLOOKUP(A66,[1]Sheet1!$A$1:$C$65512,3,FALSE) -> 711 | I66: No info | J66: линк | K66: https://bg.toolsworld.com/search/?query= | L66: https://bg.toolsworld.com/search/?query=11367
A67: 11369 | B67: Rugalmas nyél csavarfejhez,190mm, 1/4" //GROSS | C67: 1179 | D67: B | E67: Active | F67: =VLOOKUP(A67,[1]Sheet1!$A$1:$C$65512,3,FALSE) -> 1186 | I67: No info | J67: линк | K67: https://bg.toolsworld.com/search/?query= | L67: https://bg.toolsworld.com/search/?query=11369
A68: 11376 | B68: Fejkészlet SL5,0x50, acél S2, 2db// GROSS | C68: 407 | D68: B | E68: Active | F68: =VLOOKUP(A68,[1]Sheet1!$A$1:$C$65512,3,FALSE) -> 1700 | I68: No info | J68: =HYPERLINK(L68,"линк") -> линк | K68: https://bg.toolsworld.com/search/?query= | L68: =CONCATENATE(K68,A68) -> https://bg.toolsworld.com/search/?query=11376
A69: 11378 | B69: Fejkészlet PH2x70, acél S2, 10db// GROSS | C69: 1757 | D69: B | E69: Active | F69: =VLOOKUP(A69,[1]Sheet1!$A$1:$C$65512,3,FALSE) -> 92 | I69: No info | J69: линк | K69: https://bg.toolsworld.com/search/?query= | L69: https://bg.toolsworld.com/search/?query=11378
A70: 11379 | B70: Fejkészlet PH2x90, acél S2, 10db// GROSS | C70: 1994 | D70: B | E70: Active | F70: =VLOOKUP(A70,[1]Sheet1!$A$1:$C$65512,3,FALSE) -> 192 | I70: No info | J70: линк | K70: https://bg.toolsworld.com/search/?query= | L70: https://bg.toolsworld.com/search/?query=11379
A71: 11455 | B71: Fej PH 2x25 mm megállítóval és mágnessel gipsztáblákhoz, S2 //GROSS | C71: 1116 | D71: B | E71: Active | F71: =VLOOKUP(A71,[1]Sheet1!$A$1:$C$65512,3,FALSE) -> 3365 | I71: No info | J71: линк | K71: https://bg.toolsworld.com/search/?query= | L71: https://bg.toolsworld.com/search/?query=11455
A72: 11456 | B72: Fej PH 2x50 mm megállítóval és mágnessel gipsztáblákhoz, S2 //GROSS | C72: 1165 | D72: B | E72: Active | F72: =VLOOKUP(A72,[1]Sheet1!$A$1:$C$65512,3,FALSE) -> 1837 | I72: No info | J72: линк | K72: https://bg.toolsworld.com/search/?query= | L72: https://bg.toolsworld.com/search/?query=11456
A73: 11462 | B73: Csavarbehajtó bit készlet HEX 3×50, S2, 10 darab//GROSS | C73: 1140 | D73: B | E73: Active | F73: =VLOOKUP(A73,[1]Sheet1!$A$1:$C$65512,3,FALSE) -> 163 | I73: No info | J73: линк | K73: https://bg.toolsworld.com/search/?query= | L73: https://bg.toolsworld.com/search/?query=11462
A74: 11463 | B74: Csavarbehajtó bit készlet HEX 4×50, S2, 10 darab//GROSS | C74: 1140 | D74: B | E74: Active | F74: =VLOOKUP(A74,[1]Sheet1!$A$1:$C$65512,3,FALSE) -> 14 | I74: No info | J74: линк | K74: https://bg.toolsworld.com/search/?query= | L74: https://bg.toolsworld.com/search/?query=11463
A75: 11464 | B75: Csavarbehajtó bit készlet HEX 5×50, S2, 10 darab//GROSS | C75: 1140 | D75: B | E75: Active | F75: =VLOOKUP(A75,[1]Sheet1!$A$1:$C$65512,3,FALSE) ->  | I75: No info | J75: линк | K75: https://bg.toolsworld.com/search/?query= | L75: https://bg.toolsworld.com/search/?query=11464
A76: 11465 | B76: Csavarbehajtó bit készlet HEX 6×50, S2, 10 darab//GROSS | C76: 1140 | D76: B | E76: Active | F76: =VLOOKUP(A76,[1]Sheet1!$A$1:$C$65512,3,FALSE) ->  | I76: No info | J76: линк | K76: https://bg.toolsworld.com/search/?query= | L76: https://bg.toolsworld.com/search/?query=11465
A77: 11466 | B77: Csavarbehajtó bit készlet TORX 6×50, S2, 10 darab//GROSS | C77: 1120 | D77: B | E77: Active | F77: =VLOOKUP(A77,[1]Sheet1!$A$1:$C$65512,3,FALSE) -> 185 | I77: No info | J77: линк | K77: https://bg.toolsworld.com/search/?query= | L77: https://bg.toolsworld.com/search/?query=11466
A78: 11467 | B78: Csavarbehajtó bit készlet TORX 8×50, S2, 10 darab//GROSS | C78: 1120 | D78: B | E78: Active | F78: =VLOOKUP(A78,[1]Sheet1!$A$1:$C$65512,3,FALSE) -> 278 | I78: No info | J78: линк | K78: https://bg.toolsworld.com/search/?query= | L78: https://bg.toolsworld.com/search/?query=11467
A79: 11468 | B79: Csavarbehajtó bit készlet TORX 10×50, S2, 10 darab//GROSS | C79: 1120 | D79: B | E79: Active | F79: =VLOOKUP(A79,[1]Sheet1!$A$1:$C$65512,3,FALSE) -> 55 | I79: No info | J79: линк | K79: https://bg.toolsworld.com/search/?query= | L79: https://bg.toolsworld.com/search/?query=11468
A80: 11469 | B80: Csavarbehajtó bit készlet TORX 15×50, S2, 10 darab//GROSS | C80: 1120 | D80: B | E80: Active | F80: =VLOOKUP(A80,[1]Sheet1!$A$1:$C$65512,3,FALSE) -> 49 | I80: No info | J80: линк | K80: https://bg.toolsworld.com/search/?query= | L80: https://bg.toolsworld.com/search/?query=11469
A81: 11471 | B81: Csavarbehajtó bit készlet TORX 25×50, S2, 10 darab//GROSS | C81: 1120 | D81: B | E81: Active | F81: =VLOOKUP(A81,[1]Sheet1!$A$1:$C$65512,3,FALSE) ->  | I81: No info | J81: линк | K81: https://bg.toolsworld.com/search/?query= | L81: https://bg.toolsworld.com/search/?query=11471
A82: 11472 | B82: Csavarbehajtó bit készlet TORX 30×50, S2, 10 darab//GROSS | C82: 1120 | D82: B | E82: Active | F82: =VLOOKUP(A82,[1]Sheet1!$A$1:$C$65512,3,FALSE) -> 232 | I82: No info | J82: линк | K82: https://bg.toolsworld.com/search/?query= | L82: https://bg.toolsworld.com/search/?query=11472
A83: 11473 | B83: Csavarbehajtó bit készlet TORX 40×50, S2, 10 darab//GROSS | C83: 1120 | D83: B | E83: Active | F83: =VLOOKUP(A83,[1]Sheet1!$A$1:$C$65512,3,FALSE) -> 70 | I83: No info | J83: линк | K83: https://bg.toolsworld.com/search/?query= | L83: https://bg.toolsworld.com/search/?query=11473
A84: 11599 | B84: Csavarhúzó bitekkel és foglalatokkal a precíziós munkához, rugalmas csavarhúzó, 48 db, CrMo// Gross | C84: 10972 | D84: B | E84: Active | F84: =VLOOKUP(A84,[1]Sheet1!$A$1:$C$65512,3,FALSE) -> 1432 | I84: No info | J84: линк | K84: https://bg.toolsworld.com/search/?query= | L84: https://bg.toolsworld.com/search/?query=11599
A85: 11601 | B85: Autótöltos racsanis csavarhúzó, 11 pcs., S2// Gross | C85: 6076 | D85: B | E85: Active | F85: =VLOOKUP(A85,[1]Sheet1!$A$1:$C$65512,3,FALSE) -> 280 | I85: No info | J85: линк | K85: https://bg.toolsworld.com/search/?query= | L85: https://bg.toolsworld.com/search/?query=11601
A86: 11611 | B86: Racsnis csavarhúzó, mechanizmus SmartPush 12 db, S2// Gross | C86: 4781 | D86: B | E86: Active | F86: =VLOOKUP(A86,[1]Sheet1!$A$1:$C$65512,3,FALSE) -> 57 | I86: No info | J86: линк | K86: https://bg.toolsworld.com/search/?query= | L86: https://bg.toolsworld.com/search/?query=11611
A87: 11617 | B87: bit anyabeállítóval mágnessel, anyacsavarozó, 8 mm, S2// Gross | C87: 1364 | D87: B | E87: Active | F87: =VLOOKUP(A87,[1]Sheet1!$A$1:$C$65512,3,FALSE) ->  | I87: No info | J87: линк | K87: https://bg.toolsworld.com/search/?query= | L87: https://bg.toolsworld.com/search/?query=11617
A88: 11619 | B88: bit anyabeállítóval mágnessel, anyacsavarozó, 10 mm, S2// Gross | C88: 1434 | D88: B | E88: Active | F88: =VLOOKUP(A88,[1]Sheet1!$A$1:$C$65512,3,FALSE) -> 3 | I88: No info | J88: линк | K88: https://bg.toolsworld.com/search/?query= | L88: https://bg.toolsworld.com/search/?query=11619
A89: 11625 | B89: Fej-, és kulcskészlet, 1/4", vezetokulcs, racsni, adapter, S2, 37 db//GROSS | C89: 16790 | D89: B | E89: Active | F89: =VLOOKUP(A89,[1]Sheet1!$A$1:$C$65512,3,FALSE) -> 9 | I89: No info | J89: линк | K89: https://bg.toolsworld.com/search/?query= | L89: https://bg.toolsworld.com/search/?query=11625
A90: 11627 | B90: Fúrószár készlet anyabeállítóval mágnessel, anyacsavarozó, 8,10,12,13 mm, S2// Gross | C90: 5223 | D90: B | E90: Active | F90: =VLOOKUP(A90,[1]Sheet1!$A$1:$C$65512,3,FALSE) -> 175 | I90: No info | J90: линк | K90: https://bg.toolsworld.com/search/?query= | L90: https://bg.toolsworld.com/search/?query=11627
A91: 11638 | B91: Professzionális csavarhúzó PH3x150 mm, CrV, két komponensu nyél// SPARTA | C91: 253 | D91: B | E91: Active | F91: =VLOOKUP(A91,[1]Sheet1!$A$1:$C$65512,3,FALSE) ->  | I91: No info | J91: линк | K91: https://bg.toolsworld.com/search/?query= | L91: https://bg.toolsworld.com/search/?query=11638
A92: 11751 | B92: Csavarhúzó "Point", SL6 х 38 mm, CrV, 2 komponensű fogantyú// Sparta | C92: 216 | D92: B | E92: Active | F92: =VLOOKUP(A92,[1]Sheet1!$A$1:$C$65512,3,FALSE) ->  | I92: No info | J92: линк | K92: https://bg.toolsworld.com/search/?query= | L92: https://bg.toolsworld.com/search/?query=11751
A93: 11762 | B93: Csavarhúzó "Hegyesvégu", SL3,0 x 100 mm, CrV, 2 komponensu nyél// SPARTA | C93: 189 | D93: B | E93: Active | F93: =VLOOKUP(A93,[1]Sheet1!$A$1:$C$65512,3,FALSE) -> 3842 | I93: No info | J93: линк | K93: https://bg.toolsworld.com/search/?query= | L93: https://bg.toolsworld.com/search/?query=11762
A94: 11763 | B94: Csavarhúzó "Hegyesvégu", P SL4,0 x 100, CrV, 2 komponensu nyél// SPARTA | C94: 230 | D94: B | E94: Active | F94: =VLOOKUP(A94,[1]Sheet1!$A$1:$C$65512,3,FALSE) -> 491 | I94: No info | J94: линк | K94: https://bg.toolsworld.com/search/?query= | L94: https://bg.toolsworld.com/search/?query=11763
A95: 11764 | B95: Csavarhúzó "Hegyesvégu", SL4,0 x 150 mm, CrV, 2 komponensu nyél // SPARTA | C95: 244 | D95: B | E95: Active | F95: =VLOOKUP(A95,[1]Sheet1!$A$1:$C$65512,3,FALSE) ->  | I95: No info | J95: линк | K95: https://bg.toolsworld.com/search/?query= | L95: https://bg.toolsworld.com/search/?query=11764
A96: 11765 | B96: Csavarhúzó "Hegyesvégu", SL5,0 x 75 mm, CrV, 2 komponensu nyél // SPARTA | C96: 220 | D96: B | E96: Active | F96: =VLOOKUP(A96,[1]Sheet1!$A$1:$C$65512,3,FALSE) -> 1058 | I96: No info | J96: линк | K96: https://bg.toolsworld.com/search/?query= | L96: https://bg.toolsworld.com/search/?query=11765
A97: 11766 | B97: Csavarhúzó "Hegyesvégu", SL5,0 x 100 mm, CrV, 2 komponensu nyél// SPARTA | C97: 238 | D97: B | E97: Active | F97: =VLOOKUP(A97,[1]Sheet1!$A$1:$C$65512,3,FALSE) ->  | I97: No info | J97: линк | K97: https://bg.toolsworld.com/search/?query= | L97: https://bg.toolsworld.com/search/?query=11766
A98: 11767 | B98: Csavarhúzó "Hegyesvégu", SL5,0 x 150 mm, CrV, 2 komponensu nyél // SPARTA | C98: 271 | D98: B | E98: Active | F98: =VLOOKUP(A98,[1]Sheet1!$A$1:$C$65512,3,FALSE) ->  | I98: No info | J98: линк | K98: https://bg.toolsworld.com/search/?query= | L98: https://bg.toolsworld.com/search/?query=11767
A99: 11768 | B99: Csavarhúzó "Hegyesvégu", SL6,0 x 100 mm, CrV, 2 komponensu nyél// SPARTA | C99: 293 | D99: B | E99: Active | F99: =VLOOKUP(A99,[1]Sheet1!$A$1:$C$65512,3,FALSE) ->  | I99: No info | J99: линк | K99: https://bg.toolsworld.com/search/?query= | L99: https://bg.toolsworld.com/search/?query=11768
A100: 11769 | B100: Csavarhúzó "Hegyesvégu", SL6,0 x 150 mm, CrV, 2 komponensu nyél // SPARTA | C100: 330 | D100: B | E100: Active | F100: =VLOOKUP(A100,[1]Sheet1!$A$1:$C$65512,3,FALSE) ->  | I100: No info | J100: линк | K100: https://bg.toolsworld.com/search/?query= | L100: https://bg.toolsworld.com/search/?query=11769
A101: 11770 | B101: Csavarhúzó "Hegyesvégu", SL8,0 x 150 mm, CrV, 2 komponensu nyél // SPARTA | C101: 417 | D101: B | E101: Active | F101: =VLOOKUP(A101,[1]Sheet1!$A$1:$C$65512,3,FALSE) ->  | I101: No info | J101: линк | K101: https://bg.toolsworld.com/search/?query= | L101: https://bg.toolsworld.com/search/?query=11770
A102: 11772 | B102: Csavarhúzó "Hegyesvégu", Ph2 x 38 mm, CrV, 2 komponensu nyél // SPARTA | C102: 220 | D102: B | E102: Active | F102: =VLOOKUP(A102,[1]Sheet1!$A$1:$C$65512,3,FALSE) -> 521 | I102: No info | J102: линк | K102: https://bg.toolsworld.com/search/?query= | L102: https://bg.toolsworld.com/search/?query=11772
A103: 11773 | B103: Csavarhúzó "Hegyesvégu", Ph0 x 80 mm, CrV, 2 komponensu nyél // SPARTA | C103: 189 | D103: B | E103: Active | F103: =VLOOKUP(A103,[1]Sheet1!$A$1:$C$65512,3,FALSE) -> 1062 | I103: No info | J103: линк | K103: https://bg.toolsworld.com/search/?query= | L103: https://bg.toolsworld.com/search/?query=11773
A104: 11774 | B104: Csavarhúzó "Hegyesvégu", Ph0 x 100 mm, CrV, 2 komponensu nyél// SPARTA | C104: 196 | D104: B | E104: Active | F104: =VLOOKUP(A104,[1]Sheet1!$A$1:$C$65512,3,FALSE) ->  | I104: No info | J104: линк | K104: https://bg.toolsworld.com/search/?query= | L104: https://bg.toolsworld.com/search/?query=11774
A105: 11775 | B105: Csavarhúzó "Hegyesvégu", Ph1 x 100 mm, CrV, 2 komponensu nyél// SPARTA | C105: 238 | D105: B | E105: Active | F105: =VLOOKUP(A105,[1]Sheet1!$A$1:$C$65512,3,FALSE) ->  | I105: No info | J105: линк | K105: https://bg.toolsworld.com/search/?query= | L105: https://bg.toolsworld.com/search/?query=11775
A106: 11776 | B106: Csavarhúzó "Hegyesvégu", Ph1 x 150 mm, CrV, 2 komponensu nyél // SPARTA | C106: 252 | D106: B | E106: Active | F106: =VLOOKUP(A106,[1]Sheet1!$A$1:$C$65512,3,FALSE) ->  | I106: No info | J106: линк | K106: https://bg.toolsworld.com/search/?query= | L106: https://bg.toolsworld.com/search/?query=11776
A107: 11777 | B107: Csavarhúzó "Hegyesvégu", Ph1 x 75 mm, CrV, 2 komponensu nyél // SPARTA | C107: 210 | D107: B | E107: Active | F107: =VLOOKUP(A107,[1]Sheet1!$A$1:$C$65512,3,FALSE) -> 188 | I107: No info | J107: линк | K107: https://bg.toolsworld.com/search/?query= | L107: https://bg.toolsworld.com/search/?query=11777
A108: 11778 | B108: Csavarhúzó "Hegyesvégu", Ph2 x 100 mm, CrV, 2 komponensu nyél// SPARTA | C108: 293 | D108: B | E108: Active | F108: =VLOOKUP(A108,[1]Sheet1!$A$1:$C$65512,3,FALSE) -> 108 | I108: No info | J108: линк | K108: https://bg.toolsworld.com/search/?query= | L108: https://bg.toolsworld.com/search/?query=11778
A109: 11779 | B109: Csavarhúzó "Hegyesvégu", Ph2x 200 mm, CrV, 2 komponensu nyél // SPARTA | C109: 362 | D109: B | E109: Active | F109: =VLOOKUP(A109,[1]Sheet1!$A$1:$C$65512,3,FALSE) ->  | I109: No info | J109: линк | K109: https://bg.toolsworld.com/search/?query= | L109: https://bg.toolsworld.com/search/?query=11779
A110: 11780 | B110: Csavarhúzó "Hegyesvégu", Ph2 x 150 mm, CrV, 2 komponensu nyél// SPARTA | C110: 330 | D110: B | E110: Active | F110: =VLOOKUP(A110,[1]Sheet1!$A$1:$C$65512,3,FALSE) ->  | I110: No info | J110: линк | K110: https://bg.toolsworld.com/search/?query= | L110: https://bg.toolsworld.com/search/?query=11780
A111: 11781 | B111: Csavarhúzó "Hegyesvégu", Ph3 x 150 mm, CrV, 2 komponensu nyél// SPARTA | C111: 417 | D111: B | E111: Active | F111: =VLOOKUP(A111,[1]Sheet1!$A$1:$C$65512,3,FALSE) -> 949 | I111: No info | J111: линк | K111: https://bg.toolsworld.com/search/?query= | L111: https://bg.toolsworld.com/search/?query=11781
A112: 11782 | B112: Csavarhúzó "Hegyesvégu", 6 db, két komponensu nyél // SPARTA | C112: 1981 | D112: B | E112: Active | F112: =VLOOKUP(A112,[1]Sheet1!$A$1:$C$65512,3,FALSE) -> 58 | I112: No info | J112: линк | K112: https://bg.toolsworld.com/search/?query= | L112: https://bg.toolsworld.com/search/?query=11782
A113: 11841 | B113: Csavarhúzó, PH1 х 100 mm, CrV, kétkomponensű fogantyú// Сибртех | C113: 389 | D113: B | E113: Active | F113: =VLOOKUP(A113,[1]Sheet1!$A$1:$C$65512,3,FALSE) -> 35 | I113: No info | J113: линк | K113: https://bg.toolsworld.com/search/?query= | L113: https://bg.toolsworld.com/search/?query=11841
A114: 11845 | B114: Csavarhúzó, PH2 х 100 mm, CrV, kétkomponensű fogantyú// Сибртех | C114: 409 | D114: B | E114: Active | F114: =VLOOKUP(A114,[1]Sheet1!$A$1:$C$65512,3,FALSE) -> 47 | I114: No info | J114: линк | K114: https://bg.toolsworld.com/search/?query= | L114: https://bg.toolsworld.com/search/?query=11845
A115: 11861 | B115: Csavarhúzó, SL4,0 х 100 mm, CrV, kétkomponensű fogantyú// Сибртех | C115: 334 | D115: B | E115: Active | F115: =VLOOKUP(A115,[1]Sheet1!$A$1:$C$65512,3,FALSE) -> 77 | I115: No info | J115: линк | K115: https://bg.toolsworld.com/search/?query= | L115: https://bg.toolsworld.com/search/?query=11861
A116: 12101 | B116: Csavarhúzó SL3,0 x 75 mm, S2, három komponensu nyél// GROSS | C116: 815 | D116: B | E116: Active | F116: =VLOOKUP(A116,[1]Sheet1!$A$1:$C$65512,3,FALSE) -> 1393 | I116: No info | J116: линк | K116: https://bg.toolsworld.com/search/?query= | L116: https://bg.toolsworld.com/search/?query=12101
A117: 12105 | B117: Csavarhúzó SL4,0 x 100 mm, S2, három komponensu nyél//GROSS | C117: 1028 | D117: B | E117: Active | F117: =VLOOKUP(A117,[1]Sheet1!$A$1:$C$65512,3,FALSE) -> 1736 | I117: No info | J117: линк | K117: https://bg.toolsworld.com/search/?query= | L117: https://bg.toolsworld.com/search/?query=12105
A118: 12110 | B118: Csavarhúzó SL5,5 x 100 mm, S2, három komponensu nyél//GROSS | C118: 1472 | D118: B | E118: Active | F118: =VLOOKUP(A118,[1]Sheet1!$A$1:$C$65512,3,FALSE) -> 2239 | I118: No info | J118: линк | K118: https://bg.toolsworld.com/search/?query= | L118: https://bg.toolsworld.com/search/?query=12110
A119: 12112 | B119: Csavarhúzó SL5,5 x 150 mm, S2, három komponensu nyél//GROSS | C119: 1523 | D119: B | E119: Active | F119: =VLOOKUP(A119,[1]Sheet1!$A$1:$C$65512,3,FALSE) -> 2188 | I119: No info | J119: линк | K119: https://bg.toolsworld.com/search/?query= | L119: https://bg.toolsworld.com/search/?query=12112
A120: 12116 | B120: Csavarhúzó SL6,5 x 100 mm, S2, három komponensu nyél//GROSS | C120: 1531 | D120: B | E120: Active | F120: =VLOOKUP(A120,[1]Sheet1!$A$1:$C$65512,3,FALSE) -> 2372 | I120: No info | J120: линк | K120: https://bg.toolsworld.com/search/?query= | L120: https://bg.toolsworld.com/search/?query=12116
A121: 12117 | B121: Csavarhúzó SL6,5 x 150 mm, S2, három komponensu nyél//GROSS | C121: 1584 | D121: B | E121: Active | F121: =VLOOKUP(A121,[1]Sheet1!$A$1:$C$65512,3,FALSE) -> 1720 | I121: No info | J121: линк | K121: https://bg.toolsworld.com/search/?query= | L121: https://bg.toolsworld.com/search/?query=12117
A122: 12119 | B122: Csavarhúzó SL8,0 x 150 mm, S2, három komponensu nyél//GROSS | C122: 1910 | D122: B | E122: Active | F122: =VLOOKUP(A122,[1]Sheet1!$A$1:$C$65512,3,FALSE) -> 2036 | I122: No info | J122: линк | K122: https://bg.toolsworld.com/search/?query= | L122: https://bg.toolsworld.com/search/?query=12119
A123: 12123 | B123: Csavarhúzó SL8,0x 200 mm, S2, három komponensu nyél//GROSS | C123: 2008 | D123: B | E123: Active | F123: =VLOOKUP(A123,[1]Sheet1!$A$1:$C$65512,3,FALSE) -> 30 | I123: No info | J123: линк | K123: https://bg.toolsworld.com/search/?query= | L123: https://bg.toolsworld.com/search/?query=12123
A124: 12131 | B124: Csavarhúzó PH0 x 75 mm, S2, három komponensu nyél//GROSS | C124: 751 | D124: B | E124: Active | F124: =VLOOKUP(A124,[1]Sheet1!$A$1:$C$65512,3,FALSE) -> 370 | I124: No info | J124: линк | K124: https://bg.toolsworld.com/search/?query= | L124: https://bg.toolsworld.com/search/?query=12131
A125: 12140 | B125: Csavarhúzó PH1 x 100 mm, S2, három komponensu nyél//GROSS | C125: 1014 | D125: B | E125: Active | F125: =VLOOKUP(A125,[1]Sheet1!$A$1:$C$65512,3,FALSE) -> 1701 | I125: No info | J125: линк | K125: https://bg.toolsworld.com/search/?query= | L125: https://bg.toolsworld.com/search/?query=12140
A126: 12142 | B126: Csavarhúzó PH1 x 150 mm, S2, három komponensu nyél//GROSS | C126: 1134 | D126: B | E126: Active | F126: =VLOOKUP(A126,[1]Sheet1!$A$1:$C$65512,3,FALSE) -> 2105 | I126: No info | J126: линк | K126: https://bg.toolsworld.com/search/?query= | L126: https://bg.toolsworld.com/search/?query=12142
A127: 12144 | B127: Csavarhúzó PH2 x 100 mm, S2, három komponensu nyél// GROSS | C127: 1423 | D127: B | E127: Active | F127: =VLOOKUP(A127,[1]Sheet1!$A$1:$C$65512,3,FALSE) -> 1874 | I127: No info | J127: линк | K127: https://bg.toolsworld.com/search/?query= | L127: https://bg.toolsworld.com/search/?query=12144
A128: 12145 | B128: Csavarhúzó PH2 x 150 mm, S2, három komponensu nyél//GROSS | C128: 1476 | D128: B | E128: Active | F128: =VLOOKUP(A128,[1]Sheet1!$A$1:$C$65512,3,FALSE) -> 1543 | I128: No info | J128: линк | K128: https://bg.toolsworld.com/search/?query= | L128: https://bg.toolsworld.com/search/?query=12145
A129: 12149 | B129: Csavarhúzó PH3 x 150 mm, S2, három komponensu nyél//GROSS | C129: 1802 | D129: B | E129: Active | F129: =VLOOKUP(A129,[1]Sheet1!$A$1:$C$65512,3,FALSE) -> 2196 | I129: No info | J129: линк | K129: https://bg.toolsworld.com/search/?query= | L129: https://bg.toolsworld.com/search/?query=12149
A130: 12155 | B130: Csavarhúzó PZ0 x 75 mm, S2, háromkomponensű nyél// Gross | C130: 819 | D130: B | E130: Active | F130: =VLOOKUP(A130,[1]Sheet1!$A$1:$C$65512,3,FALSE) -> 215 | I130: No info | J130: линк | K130: https://bg.toolsworld.com/search/?query= | L130: https://bg.toolsworld.com/search/?query=12155
A131: 12156 | B131: Csavarhúzó PZ1 x 75 mm, S2, három komponensu nyél//GROSS | C131: 1012 | D131: B | E131: Active | F131: =VLOOKUP(A131,[1]Sheet1!$A$1:$C$65512,3,FALSE) -> 1856 | I131: No info | J131: линк | K131: https://bg.toolsworld.com/search/?query= | L131: https://bg.toolsworld.com/search/?query=12156
A132: 12159 | B132: Csavarhúzó PZ2 x 100 mm, S2, három komponensu nyél//GROSS | C132: 1517 | D132: B | E132: Active | F132: =VLOOKUP(A132,[1]Sheet1!$A$1:$C$65512,3,FALSE) -> 1519 | I132: No info | J132: =HYPERLINK(L132,"линк") -> линк | K132: https://bg.toolsworld.com/search/?query= | L132: =CONCATENATE(K132,A132) -> https://bg.toolsworld.com/search/?query=12159
A133: 12163 | B133: Csavarhúzó PZ3 x 150 mm, S2, három komponensu nyél//GROSS | C133: 1926 | D133: B | E133: Active | F133: =VLOOKUP(A133,[1]Sheet1!$A$1:$C$65512,3,FALSE) -> 647 | I133: No info | J133: линк | K133: https://bg.toolsworld.com/search/?query= | L133: https://bg.toolsworld.com/search/?query=12163
A134: 12164 | B134: Csavarhúzó készlet, 6 db, S2, három komponensu nyél//GROSS | C134: 7746 | D134: B | E134: Active | F134: =VLOOKUP(A134,[1]Sheet1!$A$1:$C$65512,3,FALSE) -> 481 | I134: No info | J134: линк | K134: https://bg.toolsworld.com/search/?query= | L134: https://bg.toolsworld.com/search/?query=12164
A135: 12165 | B135: Csavarhúzó készlet SL, 3 db, S2, három komponensu nyél//GROSS | C135: 3788 | D135: B | E135: Active | F135: =VLOOKUP(A135,[1]Sheet1!$A$1:$C$65512,3,FALSE) -> 93 | I135: No info | J135: линк | K135: https://bg.toolsworld.com/search/?query= | L135: https://bg.toolsworld.com/search/?query=12165
A136: 12166 | B136: Csavarhúzó készlet PH, 3 db, S2, három komponensu nyél//GROSS | C136: 3871 | D136: B | E136: Active | F136: =VLOOKUP(A136,[1]Sheet1!$A$1:$C$65512,3,FALSE) -> 127 | I136: No info | J136: линк | K136: https://bg.toolsworld.com/search/?query= | L136: https://bg.toolsworld.com/search/?query=12166
A137: 12167 | B137: Kombinált csavarhúzó készlet, 3 db, S2, három komponensu nyél//GROSS | C137: 4252 | D137: B | E137: Active | F137: =VLOOKUP(A137,[1]Sheet1!$A$1:$C$65512,3,FALSE) -> 95 | I137: No info | J137: линк | K137: https://bg.toolsworld.com/search/?query= | L137: https://bg.toolsworld.com/search/?query=12167
A138: 12168 | B138: Kombinált csavarhúzó készlet, 2 db, S2, három komponensu nyél//GROSS | C138: 3500 | D138: B | E138: Active | F138: =VLOOKUP(A138,[1]Sheet1!$A$1:$C$65512,3,FALSE) -> 131 | I138: No info | J138: линк | K138: https://bg.toolsworld.com/search/?query= | L138: https://bg.toolsworld.com/search/?query=12168
A139: 12316 | B139: HEX kulcskészlet, 2-12, 45x, edzett, 9 db, rövid, nikkelezett// Сибртех | C139: 1271 | D139: B | E139: Active | F139: =VLOOKUP(A139,[1]Sheet1!$A$1:$C$65512,3,FALSE) -> 16 | I139: No info | J139: линк | K139: https://bg.toolsworld.com/search/?query= | L139: https://bg.toolsworld.com/search/?query=12316
A140: 12317 | B140: HEX kulcskészlet, 1,5-10, 45x, edzett, 9 db, rövid, nikkelezett// Сибртех | C140: 839 | D140: B | E140: Active | F140: =VLOOKUP(A140,[1]Sheet1!$A$1:$C$65512,3,FALSE) ->  | I140: No info | J140: линк | K140: https://bg.toolsworld.com/search/?query= | L140: https://bg.toolsworld.com/search/?query=12317
A141: 12318 | B141: HEX kulcskészlet, 1,5-10, 45x, edzett, 9 db, hosszú, nikkelezett// Сибртех | C141: 1544 | D141: B | E141: Active | F141: =VLOOKUP(A141,[1]Sheet1!$A$1:$C$65512,3,FALSE) -> 2 | I141: No info | J141: линк | K141: https://bg.toolsworld.com/search/?query= | L141: https://bg.toolsworld.com/search/?query=12318
A142: 12321 | B142: Tamper-Torx kulcskészlet, TT10-ТТ50, 45x, edzett, 9 db, rövid, nikkelezett// Сибртех | C142: 1041 | D142: B | E142: Active | F142: =VLOOKUP(A142,[1]Sheet1!$A$1:$C$65512,3,FALSE) ->  | I142: No info | J142: линк | K142: https://bg.toolsworld.com/search/?query= | L142: https://bg.toolsworld.com/search/?query=12321
A143: 12322 | B143: Tamper-Torx kulcskészlet, TT10-ТТ50, 45x, edzett, 9 db, hosszú, nikkelezett// Сибртех | C143: 1214 | D143: B | E143: Active | F143: =VLOOKUP(A143,[1]Sheet1!$A$1:$C$65512,3,FALSE) ->  | I143: No info | J143: линк | K143: https://bg.toolsworld.com/search/?query= | L143: https://bg.toolsworld.com/search/?query=12322
A144: 12328 | B144: Imbusz kulcs, 4mm, 45x, nikkel/SIBRTECH | C144: 140 | D144: B | E144: Active | F144: =VLOOKUP(A144,[1]Sheet1!$A$1:$C$65512,3,FALSE) -> 8 | I144: No info | J144: линк | K144: https://bg.toolsworld.com/search/?query= | L144: https://bg.toolsworld.com/search/?query=12328
A145: 12330 | B145: Imbusz kulcs, 5mm, 45x, nikkel/SIBRTECH | C145: 173 | D145: B | E145: Active | F145: =VLOOKUP(A145,[1]Sheet1!$A$1:$C$65512,3,FALSE) ->  | I145: No info | J145: линк | K145: https://bg.toolsworld.com/search/?query= | L145: https://bg.toolsworld.com/search/?query=12330
A146: 12333 | B146: Imbusz kulcs, 6mm, 45x, nikkel/SIBRTECH | C146: 226 | D146: B | E146: Active | F146: =VLOOKUP(A146,[1]Sheet1!$A$1:$C$65512,3,FALSE) ->  | I146: No info | J146: линк | K146: https://bg.toolsworld.com/search/?query= | L146: https://bg.toolsworld.com/search/?query=12333
A147: 12334 | B147: Imbusz kulcs, 7mm, 45x, nikkel/SIBRTECH | C147: 255 | D147: B | E147: Active | F147: =VLOOKUP(A147,[1]Sheet1!$A$1:$C$65512,3,FALSE) ->  | I147: No info | J147: линк | K147: https://bg.toolsworld.com/search/?query= | L147: https://bg.toolsworld.com/search/?query=12334
A148: 12340 | B148: Imbusz kulcs, 8mm, 45x, nikkel/SIBRTECH | C148: 299 | D148: B | E148: Active | F148: =VLOOKUP(A148,[1]Sheet1!$A$1:$C$65512,3,FALSE) -> 57 | I148: No info | J148: линк | K148: https://bg.toolsworld.com/search/?query= | L148: https://bg.toolsworld.com/search/?query=12340
A149: 12342 | B149: Imbusz kulcs, 9mm, 45x, nikkel/SIBRTECH | C149: 371 | D149: B | E149: Active | F149: =VLOOKUP(A149,[1]Sheet1!$A$1:$C$65512,3,FALSE) ->  | I149: No info | J149: линк | K149: https://bg.toolsworld.com/search/?query= | L149: https://bg.toolsworld.com/search/?query=12342
A150: 12343 | B150: Imbusz kulcs, 10mm, 45x, nikkel/SIBRTECH | C150: 415 | D150: B | E150: Active | F150: =VLOOKUP(A150,[1]Sheet1!$A$1:$C$65512,3,FALSE) ->  | I150: No info | J150: линк | K150: https://bg.toolsworld.com/search/?query= | L150: https://bg.toolsworld.com/search/?query=12343
A151: 12346 | B151: Imbusz kulcs, 14mm, 45x, nikkel//PALISAD | C151: 853 | D151: B | E151: Active | F151: =VLOOKUP(A151,[1]Sheet1!$A$1:$C$65512,3,FALSE) ->  | I151: No info | J151: линк | K151: https://bg.toolsworld.com/search/?query= | L151: https://bg.toolsworld.com/search/?query=12346
A152: 12929 | B152: Dielektromos csavarhúzó PH2 x 100 mm, 1000 V-ig, kétkomponensű fogantyú// Сибртех | C152: 623 | D152: B | E152: Active | F152: =VLOOKUP(A152,[1]Sheet1!$A$1:$C$65512,3,FALSE) ->  | I152: No info | J152: линк | K152: https://bg.toolsworld.com/search/?query= | L152: https://bg.toolsworld.com/search/?query=12929
A153: 12932 | B153: Dielektromos csavarhúzó SL4 x 100 mm, 1000 V-ig, kétkomponensű fogantyú// Сибртех | C153: 375 | D153: B | E153: Active | F153: =VLOOKUP(A153,[1]Sheet1!$A$1:$C$65512,3,FALSE) -> 147 | I153: No info | J153: линк | K153: https://bg.toolsworld.com/search/?query= | L153: https://bg.toolsworld.com/search/?query=12932
A154: 12933 | B154: Dielektromos csavarhúzó SL5,5 x 125 mm, 1000 V-ig, kétkomponensű fogantyú// Сибртех | C154: 532 | D154: B | E154: Active | F154: =VLOOKUP(A154,[1]Sheet1!$A$1:$C$65512,3,FALSE) -> 115 | I154: No info | J154: линк | K154: https://bg.toolsworld.com/search/?query= | L154: https://bg.toolsworld.com/search/?query=12933
A155: 12934 | B155: Dielektromos csavarhúzó PH0 x 75 mm, 1000 V-ig, kétkomponensű fogantyú// Сибртех | C155: 354 | D155: B | E155: Active | F155: =VLOOKUP(A155,[1]Sheet1!$A$1:$C$65512,3,FALSE) ->  | I155: No info | J155: линк | K155: https://bg.toolsworld.com/search/?query= | L155: https://bg.toolsworld.com/search/?query=12934
A156: 12935 | B156: Dielektromos csavarhúzó SL6 x 150 mm, 1000 V-ig, kétkomponensű fogantyú// Сибртех | C156: 674 | D156: B | E156: Active | F156: =VLOOKUP(A156,[1]Sheet1!$A$1:$C$65512,3,FALSE) -> 211 | I156: No info | J156: линк | K156: https://bg.toolsworld.com/search/?query= | L156: https://bg.toolsworld.com/search/?query=12935
A157: 13189 | B157: 1/2 Gyújtógyertya foglalat mágneses tartóval 12 pt 21mm// GROSS | C157: 2230 | D157: B | E157: Active | F157: =VLOOKUP(A157,[1]Sheet1!$A$1:$C$65512,3,FALSE) -> 290 | I157: No info | J157: линк | K157: https://bg.toolsworld.com/search/?query= | L157: https://bg.toolsworld.com/search/?query=13189
A158: 13190 | B158: Vezetofoglalat eltéro méretben, 1/2", 11-32mm, CrV, króm lemezzel// GROSS | C158: 8481 | D158: B | E158: Active | F158: =VLOOKUP(A158,[1]Sheet1!$A$1:$C$65512,3,FALSE) -> 144 | I158: No info | J158: линк | K158: https://bg.toolsworld.com/search/?query= | L158: https://bg.toolsworld.com/search/?query=13190
A159: 13191 | B159: Vezetofoglalat eltéro méretben, 3/8", 6-21mm, CrV, króm lemezzel// GROSS | C159: 2659 | D159: B | E159: Active | F159: =VLOOKUP(A159,[1]Sheet1!$A$1:$C$65512,3,FALSE) -> 1549 | I159: No info | J159: линк | K159: https://bg.toolsworld.com/search/?query= | L159: https://bg.toolsworld.com/search/?query=13191
A160: 13201 | B160: Csavarhúzó SL3*75mm, fekete nyél, szénacél// SPARTA | C160: 102 | D160: B | E160: Active | F160: =VLOOKUP(A160,[1]Sheet1!$A$1:$C$65512,3,FALSE) -> 1785 | I160: No info | J160: линк | K160: https://bg.toolsworld.com/search/?query= | L160: https://bg.toolsworld.com/search/?query=13201
A161: 13203 | B161: Csavarhúzó SL4*75mm, fekete nyél, szénacél// SPARTA | C161: 124 | D161: B | E161: Active | F161: =VLOOKUP(A161,[1]Sheet1!$A$1:$C$65512,3,FALSE) -> 2013 | I161: No info | J161: линк | K161: https://bg.toolsworld.com/search/?query= | L161: https://bg.toolsworld.com/search/?query=13203
A162: 13206 | B162: Csavarhúzó SL6*100mm, fekete nyél, szénacél// SPARTA | C162: 191 | D162: B | E162: Active | F162: =VLOOKUP(A162,[1]Sheet1!$A$1:$C$65512,3,FALSE) -> 2760 | I162: No info | J162: линк | K162: https://bg.toolsworld.com/search/?query= | L162: https://bg.toolsworld.com/search/?query=13206
A163: 13211 | B163: Csavarhúzó PH1*75mm, fekete nyél, szénacél// SPARTA | C163: 143 | D163: B | E163: Active | F163: =VLOOKUP(A163,[1]Sheet1!$A$1:$C$65512,3,FALSE) -> 231 | I163: No info | J163: линк | K163: https://bg.toolsworld.com/search/?query= | L163: https://bg.toolsworld.com/search/?query=13211
A164: 13213 | B164: Csavarhúzó PH2*100mm, fekete nyél, szénacél// SPARTA | C164: 169 | D164: B | E164: Active | F164: =VLOOKUP(A164,[1]Sheet1!$A$1:$C$65512,3,FALSE) -> 1915 | I164: No info | J164: линк | K164: https://bg.toolsworld.com/search/?query= | L164: https://bg.toolsworld.com/search/?query=13213
A165: 13220 | B165: Csavarhúzó készlet, 4db, (SL5x100,6x100, PH1x100,2x100), fekete nyél, szénacél// SPARTA | C165: 900 | D165: B | E165: Active | F165: =VLOOKUP(A165,[1]Sheet1!$A$1:$C$65512,3,FALSE) -> 46 | I165: No info | J165: линк | K165: https://bg.toolsworld.com/search/?query= | L165: https://bg.toolsworld.com/search/?query=13220
A166: 13334 | B166: Precíziós csavarhúzó bitekkel, 21db, CrV// Сибртех | C166: 2165 | D166: B | E166: Active | F166: =VLOOKUP(A166,[1]Sheet1!$A$1:$C$65512,3,FALSE) -> 6 | I166: No info | J166: линк | K166: https://bg.toolsworld.com/search/?query= | L166: https://bg.toolsworld.com/search/?query=13334
A167: 13347 | B167: Precíziós csavarhúzó készlet, CrMo, kétkomponensu fogantyúk, 6 db, muanyag tok// Gross | C167: 2920 | D167: B | E167: Active | F167: =VLOOKUP(A167,[1]Sheet1!$A$1:$C$65512,3,FALSE) ->  | I167: No info | J167: линк | K167: https://bg.toolsworld.com/search/?query= | L167: https://bg.toolsworld.com/search/?query=13347
A168: 13363 | B168: Váltható csavarhúzó készlet, bittel, foglalatfejjel, 61 darab, CrV Sibrtech | C168: 6789 | D168: B | E168: Active | F168: =VLOOKUP(A168,[1]Sheet1!$A$1:$C$65512,3,FALSE) ->  | I168: No info | J168: линк | K168: https://bg.toolsworld.com/search/?query= | L168: https://bg.toolsworld.com/search/?query=13363
A169: 13364 | B169: Ratchet screwdriver T-handle, PH2/SL6, combined, CrV// SIBRTEH | C169: 1391 | D169: B | E169: Active | F169: =VLOOKUP(A169,[1]Sheet1!$A$1:$C$65512,3,FALSE) -> 49 | I169: No info | J169: линк | K169: https://bg.toolsworld.com/search/?query= | L169: https://bg.toolsworld.com/search/?query=13364
A170: 13368 | B170: Racsnis csavarhúzó, PH2/SL6 kombinált, CrV// Сибртех | C170: 1354 | D170: B | E170: Active | F170: =VLOOKUP(A170,[1]Sheet1!$A$1:$C$65512,3,FALSE) ->  | I170: No info | J170: линк | K170: https://bg.toolsworld.com/search/?query= | L170: https://bg.toolsworld.com/search/?query=13368
A171: 13370 | B171: Precision ratchet screwdriver with bits, sockets, adapter 32 pcs., CrV// SIBRTEH | C171: 2440 | D171: B | E171: Active | F171: =VLOOKUP(A171,[1]Sheet1!$A$1:$C$65512,3,FALSE) -> 310 | I171: No info | J171: линк | K171: https://bg.toolsworld.com/search/?query= | L171: https://bg.toolsworld.com/search/?query=13370
A172: 13374 | B172: Csavarhúzó készlet, CrV, 3 komponensű nyél, 6 db.// Сибртех | C172: 3651 | D172: B | E172: Active | F172: =VLOOKUP(A172,[1]Sheet1!$A$1:$C$65512,3,FALSE) ->  | I172: No info | J172: линк | K172: https://bg.toolsworld.com/search/?query= | L172: https://bg.toolsworld.com/search/?query=13374
A173: 13377 | B173: Kombinált csavarhúzó SL5/PH SL6/PH2// Сибртех | C173: 1436 | D173: B | E173: Active | F173: =VLOOKUP(A173,[1]Sheet1!$A$1:$C$65512,3,FALSE) -> 15 | I173: No info | J173: линк | K173: https://bg.toolsworld.com/search/?query= | L173: https://bg.toolsworld.com/search/?query=13377
A174: 13378 | B174: Többcélú csvarhúzó készlet precízoós munkákhoz 8 db.// SIBRTEH | C174: 1757 | D174: B | E174: Active | F174: =VLOOKUP(A174,[1]Sheet1!$A$1:$C$65512,3,FALSE) -> 3 | I174: No info | J174: линк | K174: https://bg.toolsworld.com/search/?query= | L174: https://bg.toolsworld.com/search/?query=13378
A175: 13384 | B175: Screwdriver with interchangeable blades, 5 pcs., CrV// SIBRTEH | C175: 1533 | D175: B | E175: Active | F175: =VLOOKUP(A175,[1]Sheet1!$A$1:$C$65512,3,FALSE) ->  | I175: No info | J175: линк | K175: https://bg.toolsworld.com/search/?query= | L175: https://bg.toolsworld.com/search/?query=13384
A176: 13534 | B176: Szerszámkészlet 25db // SPARTA | C176: 3124 | D176: B | E176: Active | F176: =VLOOKUP(A176,[1]Sheet1!$A$1:$C$65512,3,FALSE) ->  | I176: No info | J176: линк | K176: https://bg.toolsworld.com/search/?query= | L176: https://bg.toolsworld.com/search/?query=13534
A177: 13535 | B177: Szerszámkészlet 29db // SPARTA | C177: 4028 | D177: B | E177: Active | F177: =VLOOKUP(A177,[1]Sheet1!$A$1:$C$65512,3,FALSE) -> 18 | I177: No info | J177: линк | K177: https://bg.toolsworld.com/search/?query= | L177: https://bg.toolsworld.com/search/?query=13535
A178: 13537 | B178: Szerszámkészlet, 21 db// SPARTA | C178: 3268 | D178: B | E178: Active | F178: =VLOOKUP(A178,[1]Sheet1!$A$1:$C$65512,3,FALSE) ->  | I178: No info | J178: линк | K178: https://bg.toolsworld.com/search/?query= | L178: https://bg.toolsworld.com/search/?query=13537
A179: 13540 | B179: Szerszámkészlet, 6 db //SPARTA | C179: 3839 | D179: B | E179: Active | F179: =VLOOKUP(A179,[1]Sheet1!$A$1:$C$65512,3,FALSE) ->  | I179: No info | J179: линк | K179: https://bg.toolsworld.com/search/?query= | L179: https://bg.toolsworld.com/search/?query=13540
A180: 13541 | B180: Szerszámkészlet, 37 db// SPARTA | C180: 3193 | D180: B | E180: Active | F180: =VLOOKUP(A180,[1]Sheet1!$A$1:$C$65512,3,FALSE) -> 1015 | I180: No info | J180: линк | K180: https://bg.toolsworld.com/search/?query= | L180: https://bg.toolsworld.com/search/?query=13541
A181: 13545 | B181: 3 db-os fogókészlet ¹2 (fogó, oldalcsípofogó, csokulcs fogó)//SPARTA | C181: 2574 | D181: B | E181: Active | F181: =VLOOKUP(A181,[1]Sheet1!$A$1:$C$65512,3,FALSE) -> 118 | I181: No info | J181: линк | K181: https://bg.toolsworld.com/search/?query= | L181: https://bg.toolsworld.com/search/?query=13545
A182: 13546 | B182: Szerszámkészlet, 19 db// SPARTA | C182: 3217 | D182: B | E182: Active | F182: =VLOOKUP(A182,[1]Sheet1!$A$1:$C$65512,3,FALSE) -> 72 | I182: No info | J182: линк | K182: https://bg.toolsworld.com/search/?query= | L182: https://bg.toolsworld.com/search/?query=13546
A183: 13573 | B183: DUGÓFEJ set with ratchet wrench, 1/4", 18 pcs.// Stels | C183: 10846 | D183: B | E183: Active | F183: =VLOOKUP(A183,[1]Sheet1!$A$1:$C$65512,3,FALSE) -> 3 | I183: No info | J183: линк | K183: https://bg.toolsworld.com/search/?query= | L183: https://bg.toolsworld.com/search/?query=13573
A184: 13574 | B184: DUGÓFEJ set with ratchet wrench, 1/4", 26 pcs.// Stels | C184: 11797 | D184: B | E184: Active | F184: =VLOOKUP(A184,[1]Sheet1!$A$1:$C$65512,3,FALSE) ->  | I184: No info | J184: линк | K184: https://bg.toolsworld.com/search/?query= | L184: https://bg.toolsworld.com/search/?query=13574
A185: 13575 | B185: DUGÓFEJ set with ratchet wrench, 1/4" and 3/8", 26 pcs.// Stels | C185: 21203 | D185: B | E185: Active | F185: =VLOOKUP(A185,[1]Sheet1!$A$1:$C$65512,3,FALSE) -> 25 | I185: No info | J185: линк | K185: https://bg.toolsworld.com/search/?query= | L185: https://bg.toolsworld.com/search/?query=13575
A186: 13576 | B186: DUGÓFEJ set with ratchet wrench, 1/2" and 1/4", 68 pcs.// Stels | C186: 28517 | D186: B | E186: Active | F186: =VLOOKUP(A186,[1]Sheet1!$A$1:$C$65512,3,FALSE) -> 4 | I186: No info | J186: линк | K186: https://bg.toolsworld.com/search/?query= | L186: https://bg.toolsworld.com/search/?query=13576
A187: 13577 | B187: DUGÓFEJ set, 1/2", sockets 10-24 mm, with ratchet wrench, 12 pcs.// Stels | C187: 13412 | D187: B | E187: Active | F187: =VLOOKUP(A187,[1]Sheet1!$A$1:$C$65512,3,FALSE) ->  | I187: No info | J187: линк | K187: https://bg.toolsworld.com/search/?query= | L187: https://bg.toolsworld.com/search/?query=13577
A188: 13600 | B188: 1/2" socket set, hexagonal, CrV, 10pcs., 10-22 mm// Stels | C188: 4201 | D188: B | E188: Active | F188: =VLOOKUP(A188,[1]Sheet1!$A$1:$C$65512,3,FALSE) ->  | I188: No info | J188: линк | K188: https://bg.toolsworld.com/search/?query= | L188: https://bg.toolsworld.com/search/?query=13600
A189: 13601 | B189: 3/8" socket set, hexagonal, CrV, 10pcs., 8-19 mm// Stels | C189: 3158 | D189: B | E189: Active | F189: =VLOOKUP(A189,[1]Sheet1!$A$1:$C$65512,3,FALSE) -> 22 | I189: No info | J189: линк | K189: https://bg.toolsworld.com/search/?query= | L189: https://bg.toolsworld.com/search/?query=13601
A190: 13602 | B190: 1/4" socket set, hexagonal, CrV, 10pcs., 4-13 mm// Stels | C190: 2118 | D190: B | E190: Active | F190: =VLOOKUP(A190,[1]Sheet1!$A$1:$C$65512,3,FALSE) ->  | I190: No info | J190: линк | K190: https://bg.toolsworld.com/search/?query= | L190: https://bg.toolsworld.com/search/?query=13602
A191: 13603 | B191: 1/2" deep socket set, hexagonal, CrV, 10 pcs., 10-22 mm// Stels | C191: 6899 | D191: B | E191: Active | F191: =VLOOKUP(A191,[1]Sheet1!$A$1:$C$65512,3,FALSE) -> 2 | I191: No info | J191: линк | K191: https://bg.toolsworld.com/search/?query= | L191: https://bg.toolsworld.com/search/?query=13603
A192: 13604 | B192: 3/8" deep socket set, hexagonal, CrV, 10 pcs., 8-19 mm// Stels | C192: 4922 | D192: B | E192: Active | F192: =VLOOKUP(A192,[1]Sheet1!$A$1:$C$65512,3,FALSE) -> 57 | I192: No info | J192: линк | K192: https://bg.toolsworld.com/search/?query= | L192: https://bg.toolsworld.com/search/?query=13604
A193: 13605 | B193: 1/4" deep socket set, hexagonal, CrV, 10 pcs., 4-13 mm// Stels | C193: 3277 | D193: B | E193: Active | F193: =VLOOKUP(A193,[1]Sheet1!$A$1:$C$65512,3,FALSE) ->  | I193: No info | J193: линк | K193: https://bg.toolsworld.com/search/?query= | L193: https://bg.toolsworld.com/search/?query=13605
A194: 13606 | B194: DUGÓFEJ set., 1/4", 12 lapos, CrV, 10 pcs., 4-13 mm// Stels | C194: 2739 | D194: B | E194: Active | F194: =VLOOKUP(A194,[1]Sheet1!$A$1:$C$65512,3,FALSE) ->  | I194: No info | J194: линк | K194: https://bg.toolsworld.com/search/?query= | L194: https://bg.toolsworld.com/search/?query=13606
A195: 13607 | B195: DUGÓFEJ set., 3/8", 12 lapos, CrV, 10 pcs., 9-19 mm// Stels | C195: 3698 | D195: B | E195: Active | F195: =VLOOKUP(A195,[1]Sheet1!$A$1:$C$65512,3,FALSE) -> 31 | I195: No info | J195: линк | K195: https://bg.toolsworld.com/search/?query= | L195: https://bg.toolsworld.com/search/?query=13607
A196: 13638 | B196: DUGÓFEJ set., 1/2", 12 lapos, CrV, 10 pcs., 10-24 mm// Stels | C196: 4763 | D196: B | E196: Active | F196: =VLOOKUP(A196,[1]Sheet1!$A$1:$C$65512,3,FALSE) -> 27 | I196: No info | J196: =HYPERLINK(L196,"линк") -> линк | K196: https://bg.toolsworld.com/search/?query= | L196: =CONCATENATE(K196,A196) -> https://bg.toolsworld.com/search/?query=13638
A197: 13639 | B197: Universal DUGÓFEJ set., 3/8",Spline, CrV, 10 pcs., 8-19 mm// Stels | C197: 2649 | D197: B | E197: Active | F197: =VLOOKUP(A197,[1]Sheet1!$A$1:$C$65512,3,FALSE) ->  | I197: No info | J197: линк | K197: https://bg.toolsworld.com/search/?query= | L197: https://bg.toolsworld.com/search/?query=13639
A198: 13641 | B198: Universal DUGÓFEJ set., 1/2",Spline, CrV, 10 pcs., 10-22 mm// Stels | C198: 3409 | D198: B | E198: Active | F198: =VLOOKUP(A198,[1]Sheet1!$A$1:$C$65512,3,FALSE) ->  | I198: No info | J198: линк | K198: https://bg.toolsworld.com/search/?query= | L198: https://bg.toolsworld.com/search/?query=13641
A199: 13643 | B199: Universal DUGÓFEJ set., 1/4",Spline, CrV, 10 pcs., 4-13 mm// Stels | C199: 1882 | D199: B | E199: Active | F199: =VLOOKUP(A199,[1]Sheet1!$A$1:$C$65512,3,FALSE) ->  | I199: No info | J199: линк | K199: https://bg.toolsworld.com/search/?query= | L199: https://bg.toolsworld.com/search/?query=13643
A200: 13647 | B200: DUGÓFEJ, 8 mm, 12 lapos, CrV, for 1/2" csatlakozó négyzet, krómozott// Stels | C200: 267 | D200: B | E200: Active | F200: =VLOOKUP(A200,[1]Sheet1!$A$1:$C$65512,3,FALSE) -> 22 | I200: No info | J200: линк | K200: https://bg.toolsworld.com/search/?query= | L200: https://bg.toolsworld.com/search/?query=13647
... 5211 more rows
